Workbook

Sheet Adequacy
A1: Adequacy Assessment Summary
A2: Base Case: 2015, 210 games, hist wind (08-10), sequential hydro, lockstep temperature, Purchase Ahead ON
A4: Previous Metrics | E4: New | F4: Other Metrics
A5: LOLP | B5: LOLP | C5: LOLP | D5: LOLP | E5: LOLP | G5: CVaR | H5: CVaR
A6: W Cap | B6: W Eng | C6: S Cap | D6: S Eng | E6: Annual | F6: EERD | G6: Energy | H6: Peak | I6: EUE | J6: LOLE
A7: % | B7: % | C7: % | D7: % | E7: % | F7: % | G7: MW-Hrs | H7: MW | I7: MW/Hr | J7: Hrs/Yr
A9: 2.4 | B9: 0.5 | C9: 0 | D9: 0 | E9: 2.4 | F9: 7.1 | G9: 43599.2 | H9: 2815.4 | I9: 0.2 | J9: 1.8
A12: LOLP W Cap = Winter Capacity LOLP
A13: LOLP W Eng = Winter Energy LOLP
A14: LOLP S Cap = Summer Capacity LOLP
A15: LOLP S Eng = Summer Energy LOLP
A16: LOLP Annual = Annual LOLP (counts all "bad" events)
A17: EERD = Expected Emergency Resource Dispatch = number of games ER used/total number of games
A18: CVaR Energy = Average of 5% worst games sorted by total annual curtailment (mw-hours)
A19: CVaR Peak = Average of 5% worst games sorted by highest hour curtailment (mw)
A20: EUE = Expected Unserved Energy = total curtailment over all games/(number of hours*number of games)
A21: LOLE = Loss of Load Expectation = total number of hours of curtailment/number of games

Sheet Curtailment Record
A1: Maximum of 4000 Curtailment Entries | E1: Curtailment Records | K1: Warning: Cannot Undo a Clear
K2: =IF($A$4004="","","Error: Too Many Records!") -> 
A3: Event Hour Mapping | B3: Event | C3: Event Hour counter | D3: Event-Hour Counter mapping | E3: Sim | F3: Month | G3: Day | H3: Hour | I3: Curt | J3: Rviol | K3: Wat Yr | L3: Temp Yr | M3: Wind Yr | N3: Load | O3: Rreq | P3: Arsrv | Q3: Thr | R3: Purc | S3: Hydro | T3: Wind | U3: FO MW | V3: Per FO | W3: WCF | X3: Sliceacc
A4: =CONCATENATE(B4,"_",H4) -> 1_1 | B4: 1 | C4: 1 | D4: =CONCATENATE(B4,"_",C4) -> 1_1 | E4: 4 | F4: 3 | G4: 10 | H4: 1 | I4: 1793.9 | J4: 0 | K4: 1932 | L4: 1932 | M4: 1 | N4: 27520 | O4: 2850 | P4: 0 | Q4: 15409 | R4: 3000 | S4: 6368 | T4: 124 | U4: 601 | V4: 0.029 | W4: 0.04 | X4: 0
A5: =CONCATENATE(B5,"_",H5) -> 1_2 | B5: =IF(E5=E4, (IF(F5=F4, (IF(G5=G4, (IF(H5=H4+1,B4,B4+1)), (IF(AND(G5=G4+1,H5=1,H4=24),B4,B4+1)))), B4+1)), B4+1) -> 1 | C5: =IF(B5=B4,C4+1,1) -> 2 | D5: =CONCATENATE(B5,"_",C5) -> 1_2 | E5: 4 | F5: 3 | G5: 10 | H5: 2 | I5: 1035.1 | J5: 0 | K5: 1932 | L5: 1932 | M5: 1 | N5: 26947 | O5: 2850 | P5: 0 | Q5: 15409 | R5: 3000 | S5: 6368 | T5: 310 | U5: 601 | V5: 0.029 | W5: 0.1 | X5: 0
A6: 1_3 | B6: =IF(E6=E5, (IF(F6=F5, (IF(G6=G5, (IF(H6=H5+1,B5,B5+1)), (IF(AND(G6=G5+1,H6=1,H5=24),B5,B5+1)))), B5+1)), B5+1) -> 1 | C6: =IF(B6=B5,C5+1,1) -> 3 | D6: =CONCATENATE(B6,"_",C6) -> 1_3 | E6: 4 | F6: 3 | G6: 10 | H6: 3 | I6: 937.5 | J6: 0 | K6: 1932 | L6: 1932 | M6: 1 | N6: 26764 | O6: 2850 | P6: 0 | Q6: 15075 | R6: 3000 | S6: 6368 | T6: 558 | U6: 934 | V6: 0.046 | W6: 0.18 | X6: 0
A7: 1_4 | B7: 1 | C7: 4 | D7: 1_4 | E7: 4 | F7: 3 | G7: 10 | H7: 4 | I7: 1319.7 | J7: 0 | K7: 1932 | L7: 1932 | M7: 1 | N7: 27050 | O7: 2850 | P7: 0 | Q7: 14948 | R7: 3000 | S7: 6368 | T7: 589 | U7: 1061 | V7: 0.052 | W7: 0.19 | X7: 0
A8: 1_5 | B8: 1 | C8: 5 | D8: 1_5 | E8: 4 | F8: 3 | G8: 10 | H8: 5 | I8: 2274.6 | J8: 0 | K8: 1932 | L8: 1932 | M8: 1 | N8: 28097 | O8: 2850 | P8: 0 | Q8: 14669 | R8: 3000 | S8: 6368 | T8: 960 | U8: 1341 | V8: 0.065 | W8: 0.31 | X8: 0
A9: 1_6 | B9: 1 | C9: 6 | D9: 1_6 | E9: 4 | F9: 3 | G9: 10 | H9: 6 | I9: 3780.4 | J9: 0 | K9: 1932 | L9: 1932 | M9: 1 | N9: 30616 | O9: 2850 | P9: 0 | Q9: 14484 | R9: 3000 | S9: 7411 | T9: 1115 | U9: 1526 | V9: 0.074 | W9: 0.36 | X9: 0
A10: 1_7 | B10: 1 | C10: 7 | D10: 1_7 | E10: 4 | F10: 3 | G10: 10 | H10: 7 | I10: 822.7 | J10: 0 | K10: 1932 | L10: 1932 | M10: 1 | N10: 34269 | O10: 2850 | P10: 0 | Q10: 14484 | R10: 3000 | S10: 14713 | T10: 1301 | U10: 1526 | V10: 0.074 | W10: 0.42 | X10: 0
A11: 1_8 | B11: 1 | C11: 8 | D11: 1_8 | E11: 4 | F11: 3 | G11: 10 | H11: 8 | I11: 822.7 | J11: 0 | K11: 1932 | L11: 1932 | M11: 1 | N11: 36631 | O11: 2850 | P11: 0 | Q11: 14484 | R11: 3000 | S11: 16641 | T11: 1735 | U11: 1526 | V11: 0.074 | W11: 0.56 | X11: 0
A12: 1_9 | B12: 1 | C12: 9 | D12: 1_9 | E12: 4 | F12: 3 | G12: 10 | H12: 9 | I12: 822.7 | J12: 0 | K12: 1932 | L12: 1932 | M12: 1 | N12: 37083 | O12: 2850 | P12: 0 | Q12: 14484 | R12: 3000 | S12: 16597 | T12: 2231 | U12: 1526 | V12: 0.074 | W12: 0.72 | X12: 0
A13: 1_10 | B13: 1 | C13: 10 | D13: 1_10 | E13: 4 | F13: 3 | G13: 10 | H13: 10 | I13: 822.7 | J13: 0 | K13: 1932 | L13: 1932 | M13: 1 | N13: 36862 | O13: 2850 | P13: 0 | Q13: 14484 | R13: 3000 | S13: 15973 | T13: 2633 | U13: 1526 | V13: 0.074 | W13: 0.85 | X13: 0
A14: 1_11 | B14: 1 | C14: 11 | D14: 1_11 | E14: 4 | F14: 3 | G14: 10 | H14: 11 | I14: 822.7 | J14: 0 | K14: 1932 | L14: 1932 | M14: 1 | N14: 36303 | O14: 2850 | P14: 0 | Q14: 14484 | R14: 3000 | S14: 15260 | T14: 2788 | U14: 1526 | V14: 0.074 | W14: 0.9 | X14: 0
A15: 1_12 | B15: 1 | C15: 12 | D15: 1_12 | E15: 4 | F15: 3 | G15: 10 | H15: 12 | I15: 822.7 | J15: 0 | K15: 1932 | L15: 1932 | M15: 1 | N15: 35484 | O15: 2850 | P15: 0 | Q15: 14484 | R15: 3000 | S15: 13901 | T15: 2788 | U15: 1526 | V15: 0.074 | W15: 0.9 | X15: 0
A16: 1_13 | B16: 1 | C16: 13 | D16: 1_13 | E16: 4 | F16: 3 | G16: 10 | H16: 13 | I16: 822.7 | J16: 0 | K16: 1932 | L16: 1932 | M16: 1 | N16: 34755 | O16: 2850 | P16: 0 | Q16: 14484 | R16: 3000 | S16: 12486 | T16: 2664 | U16: 1526 | V16: 0.074 | W16: 0.86 | X16: 0
A17: 1_14 | B17: 1 | C17: 14 | D17: 1_14 | E17: 4 | F17: 3 | G17: 10 | H17: 14 | I17: 822.7 | J17: 0 | K17: 1932 | L17: 1932 | M17: 1 | N17: 34119 | O17: 2850 | P17: 0 | Q17: 14484 | R17: 3000 | S17: 12097 | T17: 2416 | U17: 1526 | V17: 0.074 | W17: 0.78 | X17: 0
A18: 1_15 | B18: 1 | C18: 15 | D18: 1_15 | E18: 4 | F18: 3 | G18: 10 | H18: 15 | I18: 822.7 | J18: 0 | K18: 1932 | L18: 1932 | M18: 1 | N18: 33784 | O18: 2850 | P18: 0 | Q18: 14484 | R18: 3000 | S18: 12196 | T18: 1983 | U18: 1526 | V18: 0.074 | W18: 0.64 | X18: 0
A19: 1_16 | B19: 1 | C19: 16 | D19: 1_16 | E19: 4 | F19: 3 | G19: 10 | H19: 16 | I19: 822.7 | J19: 0 | K19: 1932 | L19: 1932 | M19: 1 | N19: 34272 | O19: 2850 | P19: 0 | Q19: 14484 | R19: 3000 | S19: 13975 | T19: 1518 | U19: 1526 | V19: 0.074 | W19: 0.49 | X19: 0
A20: 1_17 | B20: 1 | C20: 17 | D20: 1_17 | E20: 4 | F20: 3 | G20: 10 | H20: 17 | I20: 822.7 | J20: 0 | K20: 1932 | L20: 1932 | M20: 1 | N20: 36590 | O20: 2850 | P20: 0 | Q20: 14484 | R20: 3000 | S20: 17375 | T20: 960 | U20: 1526 | V20: 0.074 | W20: 0.31 | X20: 0
A21: 1_18 | B21: 1 | C21: 18 | D21: 1_18 | E21: 4 | F21: 3 | G21: 10 | H21: 18 | I21: 822.7 | J21: 0 | K21: 1932 | L21: 1932 | M21: 1 | N21: 38729 | O21: 2850 | P21: 0 | Q21: 14484 | R21: 3000 | S21: 19792 | T21: 682 | U21: 1526 | V21: 0.074 | W21: 0.22 | X21: 0
A22: 1_19 | B22: 1 | C22: 19 | D22: 1_19 | E22: 4 | F22: 3 | G22: 10 | H22: 19 | I22: 822.7 | J22: 0 | K22: 1932 | L22: 1932 | M22: 1 | N22: 38519 | O22: 2850 | P22: 0 | Q22: 14484 | R22: 3000 | S22: 19830 | T22: 434 | U22: 1526 | V22: 0.074 | W22: 0.14 | X22: 0
A23: 1_20 | B23: 1 | C23: 20 | D23: 1_20 | E23: 4 | F23: 3 | G23: 10 | H23: 20 | I23: 822.7 | J23: 0 | K23: 1932 | L23: 1932 | M23: 1 | N23: 37538 | O23: 2850 | P23: 0 | Q23: 14484 | R23: 3000 | S23: 19066 | T23: 217 | U23: 1526 | V23: 0.074 | W23: 0.07 | X23: 0
A24: 1_21 | B24: 1 | C24: 21 | D24: 1_21 | E24: 4 | F24: 3 | G24: 10 | H24: 21 | I24: 822.7 | J24: 0 | K24: 1932 | L24: 1932 | M24: 1 | N24: 36333 | O24: 2850 | P24: 0 | Q24: 14484 | R24: 3000 | S24: 17954 | T24: 124 | U24: 1526 | V24: 0.074 | W24: 0.04 | X24: 0
A25: 1_22 | B25: 1 | C25: 22 | D25: 1_22 | E25: 4 | F25: 3 | G25: 10 | H25: 22 | I25: 822.7 | J25: 0 | K25: 1932 | L25: 1932 | M25: 1 | N25: 34504 | O25: 2850 | P25: 0 | Q25: 14484 | R25: 3000 | S25: 15617 | T25: 93 | U25: 1526 | V25: 0.074 | W25: 0.03 | X25: 0
A26: 1_23 | B26: 1 | C26: 23 | D26: 1_23 | E26: 4 | F26: 3 | G26: 10 | H26: 23 | I26: 4398.2 | J26: 0 | K26: 1932 | L26: 1932 | M26: 1 | N26: 31758 | O26: 2850 | P26: 0 | Q26: 13866 | R26: 3000 | S26: 9545 | T26: 124 | U26: 2144 | V26: 0.105 | W26: 0.04 | X26: 0
A27: 1_24 | B27: 1 | C27: 24 | D27: 1_24 | E27: 4 | F27: 3 | G27: 10 | H27: 24 | I27: 3832.8 | J27: 0 | K27: 1932 | L27: 1932 | M27: 1 | N27: 29187 | O27: 2850 | P27: 0 | Q27: 14431 | R27: 3000 | S27: 6880 | T27: 217 | U27: 1578 | V27: 0.077 | W27: 0.07 | X27: 0
A28: 1_1 | B28: 1 | C28: 25 | D28: 1_25 | E28: 4 | F28: 3 | G28: 11 | H28: 1 | I28: 2278.9 | J28: 0 | K28: 1932 | L28: 1932 | M28: 1 | N28: 27274 | O28: 2850 | P28: 0 | Q28: 14444 | R28: 3000 | S28: 6293 | T28: 434 | U28: 1566 | V28: 0.076 | W28: 0.14 | X28: 0
A29: 1_2 | B29: 1 | C29: 26 | D29: 1_26 | E29: 4 | F29: 3 | G29: 11 | H29: 2 | I29: 1130.1 | J29: 0 | K29: 1932 | L29: 1932 | M29: 1 | N29: 26686 | O29: 2850 | P29: 0 | Q29: 14602 | R29: 3000 | S29: 6293 | T29: 836 | U29: 1408 | V29: 0.069 | W29: 0.27 | X29: 0
A30: 1_3 | B30: 1 | C30: 27 | D30: 1_27 | E30: 4 | F30: 3 | G30: 11 | H30: 3 | I30: 189.6 | J30: 0 | K30: 1932 | L30: 1932 | M30: 1 | N30: 26514 | O30: 2850 | P30: 0 | Q30: 14689 | R30: 3000 | S30: 6293 | T30: 1518 | U30: 1321 | V30: 0.064 | W30: 0.49 | X30: 0
A31: 1_4 | B31: 1 | C31: 28 | D31: 1_28 | E31: 4 | F31: 3 | G31: 11 | H31: 4 | I31: 214.7 | J31: 0 | K31: 1932 | L31: 1932 | M31: 1 | N31: 26818 | O31: 2850 | P31: 0 | Q31: 14689 | R31: 3000 | S31: 6293 | T31: 1797 | U31: 1321 | V31: 0.064 | W31: 0.58 | X31: 0
A32: 1_5 | B32: 1 | C32: 29 | D32: 1_29 | E32: 4 | F32: 3 | G32: 11 | H32: 5 | I32: 1317.9 | J32: 0 | K32: 1932 | L32: 1932 | M32: 1 | N32: 27921 | O32: 2850 | P32: 0 | Q32: 14689 | R32: 3000 | S32: 6293 | T32: 1797 | U32: 1321 | V32: 0.064 | W32: 0.58 | X32: 0
A33: 1_6 | B33: 1 | C33: 30 | D33: 1_30 | E33: 4 | F33: 3 | G33: 11 | H33: 6 | I33: 3282.5 | J33: 0 | K33: 1932 | L33: 1932 | M33: 1 | N33: 30575 | O33: 2850 | P33: 0 | Q33: 14689 | R33: 3000 | S33: 6796 | T33: 1983 | U33: 1321 | V33: 0.064 | W33: 0.64 | X33: 0
A34: 1_7 | B34: 1 | C34: 31 | D34: 1_31 | E34: 4 | F34: 3 | G34: 11 | H34: 7 | I34: 324.8 | J34: 0 | K34: 1932 | L34: 1932 | M34: 1 | N34: 34385 | O34: 2850 | P34: 0 | Q34: 14689 | R34: 3000 | S34: 14285 | T34: 2138 | U34: 1321 | V34: 0.064 | W34: 0.69 | X34: 0
A35: 1_8 | B35: 1 | C35: 32 | D35: 1_32 | E35: 4 | F35: 3 | G35: 11 | H35: 8 | I35: 324.8 | J35: 0 | K35: 1932 | L35: 1932 | M35: 1 | N35: 36718 | O35: 2850 | P35: 0 | Q35: 14689 | R35: 3000 | S35: 16680 | T35: 2076 | U35: 1321 | V35: 0.064 | W35: 0.67 | X35: 0
A36: 1_9 | B36: 1 | C36: 33 | D36: 1_33 | E36: 4 | F36: 3 | G36: 11 | H36: 9 | I36: 324.8 | J36: 0 | K36: 1932 | L36: 1932 | M36: 1 | N36: 37010 | O36: 2850 | P36: 0 | Q36: 14689 | R36: 3000 | S36: 16817 | T36: 2231 | U36: 1321 | V36: 0.064 | W36: 0.72 | X36: 0
A37: 1_10 | B37: 1 | C37: 34 | D37: 1_34 | E37: 4 | F37: 3 | G37: 11 | H37: 10 | I37: 324.8 | J37: 0 | K37: 1932 | L37: 1932 | M37: 1 | N37: 36692 | O37: 2850 | P37: 0 | Q37: 14689 | R37: 3000 | S37: 16654 | T37: 2076 | U37: 1321 | V37: 0.064 | W37: 0.67 | X37: 0
A38: 1_11 | B38: 1 | C38: 35 | D38: 1_35 | E38: 4 | F38: 3 | G38: 11 | H38: 11 | I38: 324.8 | J38: 0 | K38: 1932 | L38: 1932 | M38: 1 | N38: 36111 | O38: 2850 | P38: 0 | Q38: 14689 | R38: 3000 | S38: 16135 | T38: 2014 | U38: 1321 | V38: 0.064 | W38: 0.65 | X38: 0
A39: 1_12 | B39: 1 | C39: 36 | D39: 1_36 | E39: 4 | F39: 3 | G39: 11 | H39: 12 | I39: 324.8 | J39: 0 | K39: 1932 | L39: 1932 | M39: 1 | N39: 35297 | O39: 2850 | P39: 0 | Q39: 14689 | R39: 3000 | S39: 14751 | T39: 2045 | U39: 1321 | V39: 0.064 | W39: 0.66 | X39: 0
A40: 1_13 | B40: 1 | C40: 37 | D40: 1_37 | E40: 4 | F40: 3 | G40: 11 | H40: 13 | I40: 324.8 | J40: 0 | K40: 1932 | L40: 1932 | M40: 1 | N40: 34591 | O40: 2850 | P40: 0 | Q40: 14689 | R40: 3000 | S40: 13172 | T40: 2107 | U40: 1321 | V40: 0.064 | W40: 0.68 | X40: 0
A41: 1_14 | B41: 1 | C41: 38 | D41: 1_38 | E41: 4 | F41: 3 | G41: 11 | H41: 14 | I41: 324.8 | J41: 0 | K41: 1932 | L41: 1932 | M41: 1 | N41: 33982 | O41: 2850 | P41: 0 | Q41: 14689 | R41: 3000 | S41: 12625 | T41: 2045 | U41: 1321 | V41: 0.064 | W41: 0.66 | X41: 0
A42: 2_7 | B42: 2 | C42: 1 | D42: 2_1 | E42: 12 | F42: 11 | G42: 7 | H42: 7 | I42: 847.1 | J42: 0 | K42: 1940 | L42: 1940 | M42: 1 | N42: 20920 | O42: 2850 | P42: 0 | Q42: 10506 | R42: 0 | S42: 10335 | T42: 248 | U42: 2977 | V42: 0.166 | W42: 0.08 | X42: 0
A43: 2_8 | B43: 2 | C43: 2 | D43: 2_2 | E43: 12 | F43: 11 | G43: 7 | H43: 8 | I43: 847.1 | J43: 0 | K43: 1940 | L43: 1940 | M43: 1 | N43: 22492 | O43: 1329 | P43: 0 | Q43: 10506 | R43: 0 | S43: 11876 | T43: 279 | U43: 2977 | V43: 0.166 | W43: 0.09 | X43: 0
A44: 2_9 | B44: 2 | C44: 3 | D44: 2_3 | E44: 12 | F44: 11 | G44: 7 | H44: 9 | I44: 971.9 | J44: 0 | K44: 1940 | L44: 1940 | M44: 1 | N44: 23710 | O44: 1389 | P44: 0 | Q44: 10381 | R44: 0 | S44: 13249 | T44: 124 | U44: 3102 | V44: 0.173 | W44: 0.04 | X44: 0
A45: 2_10 | B45: 2 | C45: 4 | D45: 2_4 | E45: 12 | F45: 11 | G45: 7 | H45: 10 | I45: 910.2 | J45: 0 | K45: 1940 | L45: 1940 | M45: 1 | N45: 24632 | O45: 1443 | P45: 0 | Q45: 10443 | R45: 0 | S45: 14233 | T45: 62 | U45: 3041 | V45: 0.169 | W45: 0.02 | X45: 0
A46: 2_11 | B46: 2 | C46: 5 | D46: 2_5 | E46: 12 | F46: 11 | G46: 7 | H46: 11 | I46: 906.6 | J46: 0 | K46: 1940 | L46: 1940 | M46: 1 | N46: 25285 | O46: 1477 | P46: 0 | Q46: 10446 | R46: 0 | S46: 14917 | T46: 31 | U46: 3037 | V46: 0.169 | W46: 0.01 | X46: 0
A47: 2_12 | B47: 2 | C47: 6 | D47: 2_6 | E47: 12 | F47: 11 | G47: 7 | H47: 12 | I47: 906.6 | J47: 0 | K47: 1940 | L47: 1940 | M47: 1 | N47: 25691 | O47: 1470 | P47: 0 | Q47: 10446 | R47: 0 | S47: 14783 | T47: 31 | U47: 3037 | V47: 0.169 | W47: 0.01 | X47: 0
A48: 2_13 | B48: 2 | C48: 7 | D48: 2_7 | E48: 12 | F48: 11 | G48: 7 | H48: 13 | I48: 906.6 | J48: 0 | K48: 1940 | L48: 1940 | M48: 1 | N48: 26004 | O48: 1447 | P48: 0 | Q48: 10446 | R48: 0 | S48: 14316 | T48: 0 | U48: 3037 | V48: 0.169 | W48: 0 | X48: 0
A49: 2_14 | B49: 2 | C49: 8 | D49: 2_8 | E49: 12 | F49: 11 | G49: 7 | H49: 14 | I49: 970.1 | J49: 0 | K49: 1940 | L49: 1940 | M49: 1 | N49: 26220 | O49: 1453 | P49: 0 | Q49: 10383 | R49: 0 | S49: 14532 | T49: 0 | U49: 3100 | V49: 0.172 | W49: 0 | X49: 0
A50: 2_15 | B50: 2 | C50: 9 | D50: 2_9 | E50: 12 | F50: 11 | G50: 7 | H50: 15 | I50: 992.9 | J50: 0 | K50: 1940 | L50: 1940 | M50: 1 | N50: 26350 | O50: 1457 | P50: 0 | Q50: 10360 | R50: 0 | S50: 14631 | T50: 31 | U50: 3123 | V50: 0.174 | W50: 0.01 | X50: 0
A51: 2_16 | B51: 2 | C51: 10 | D51: 2_10 | E51: 12 | F51: 11 | G51: 7 | H51: 16 | I51: 933.5 | J51: 0 | K51: 1940 | L51: 1940 | M51: 1 | N51: 26442 | O51: 1507 | P51: 0 | Q51: 10419 | R51: 0 | S51: 15549 | T51: 31 | U51: 3064 | V51: 0.17 | W51: 0.01 | X51: 0
A52: 2_17 | B52: 2 | C52: 11 | D52: 2_11 | E52: 12 | F52: 11 | G52: 7 | H52: 17 | I52: 933.5 | J52: 0 | K52: 1940 | L52: 1940 | M52: 1 | N52: 26541 | O52: 1540 | P52: 0 | Q52: 10419 | R52: 0 | S52: 16204 | T52: 0 | U52: 3064 | V52: 0.17 | W52: 0 | X52: 0
A53: 2_18 | B53: 2 | C53: 12 | D53: 2_12 | E53: 12 | F53: 11 | G53: 7 | H53: 18 | I53: 1166.5 | J53: 0 | K53: 1940 | L53: 1940 | M53: 1 | N53: 26392 | O53: 1516 | P53: 0 | Q53: 10186 | R53: 0 | S53: 16055 | T53: 0 | U53: 3297 | V53: 0.183 | W53: 0 | X53: 0
A54: 2_19 | B54: =IF(E54=E53, (IF(F54=F53, (IF(G54=G53, (IF(H54=H53+1,B53,B53+1)), (IF(AND(G54=G53+1,H54=1,H53=24),B53,B53+1)))), B53+1)), B53+1) -> 2 | C54: 13 | D54: 2_13 | E54: 12 | F54: 11 | G54: 7 | H54: 19 | I54: 1222.5 | J54: 0 | K54: 1940 | L54: 1940 | M54: 1 | N54: 26053 | O54: 1495 | P54: 0 | Q54: 10130 | R54: 0 | S54: 15716 | T54: 0 | U54: 3353 | V54: 0.186 | W54: 0 | X54: 0
A55: 2_20 | B55: =IF(E55=E54, (IF(F55=F54, (IF(G55=G54, (IF(H55=H54+1,B54,B54+1)), (IF(AND(G55=G54+1,H55=1,H54=24),B54,B54+1)))), B54+1)), B54+1) -> 2 | C55: 14 | D55: 2_14 | E55: 12 | F55: 11 | G55: 7 | H55: 20 | I55: 1222.5 | J55: 0 | K55: 1940 | L55: 1940 | M55: 1 | N55: 25700 | O55: 1476 | P55: 0 | Q55: 10130 | R55: 0 | S55: 15332 | T55: 31 | U55: 3353 | V55: 0.186 | W55: 0.01 | X55: 0
A56: 2_21 | B56: 2 | C56: 15 | D56: 2_15 | E56: 12 | F56: 11 | G56: 7 | H56: 21 | I56: 1222.5 | J56: 0 | K56: 1940 | L56: 1940 | M56: 1 | N56: 25496 | O56: 1466 | P56: 0 | Q56: 10130 | R56: 0 | S56: 15128 | T56: 31 | U56: 3353 | V56: 0.186 | W56: 0.01 | X56: 0
A57: 2_22 | B57: 2 | C57: 16 | D57: 2_16 | E57: 12 | F57: 11 | G57: 7 | H57: 22 | I57: 1147.7 | J57: 0 | K57: 1940 | L57: 1940 | M57: 1 | N57: 24656 | O57: 1394 | P57: 0 | Q57: 10205 | R57: 0 | S57: 13593 | T57: 186 | U57: 3278 | V57: 0.182 | W57: 0.06 | X57: 0
A58: 2_23 | B58: 2 | C58: 17 | D58: 2_17 | E58: 12 | F58: 11 | G58: 7 | H58: 23 | I58: 1042.7 | J58: 0 | K58: 1940 | L58: 1940 | M58: 1 | N58: 22564 | O58: 1091 | P58: 0 | Q58: 10311 | R58: 3000 | S58: 7383 | T58: 248 | U58: 3172 | V58: 0.176 | W58: 0.08 | X58: 0
A59: 2_24 | B59: 2 | C59: 18 | D59: 2_18 | E59: 12 | F59: 11 | G59: 7 | H59: 24 | I59: 208.2 | J59: 0 | K59: 1940 | L59: 1940 | M59: 1 | N59: 20510 | O59: 2850 | P59: 0 | Q59: 10311 | R59: 3000 | S59: 6040 | T59: 372 | U59: 3172 | V59: 0.176 | W59: 0.12 | X59: 0
A60: 3_5 | B60: 3 | C60: 1 | D60: 3_1 | E60: 13 | F60: 4 | G60: 5 | H60: 5 | I60: 882.3 | J60: 0 | K60: 1941 | L60: 1941 | M60: 1 | N60: 25410 | O60: 2850 | P60: 0 | Q60: 14598 | R60: 3000 | S60: 5912 | T60: 62 | U60: 1422 | V60: 0.069 | W60: 0.02 | X60: 0
A61: 3_6 | B61: 3 | C61: 2 | D61: 3_2 | E61: 13 | F61: 4 | G61: 5 | H61: 6 | I61: 949.6 | J61: 0 | K61: 1941 | L61: 1941 | M61: 1 | N61: 27643 | O61: 2850 | P61: 0 | Q61: 14598 | R61: 3000 | S61: 8077 | T61: 62 | U61: 1422 | V61: 0.069 | W61: 0.02 | X61: 0
A62: 4_7 | B62: 4 | C62: 1 | D62: 4_1 | E62: 49 | F62: 11 | G62: 7 | H62: 7 | I62: 175.6 | J62: 0 | K62: 1977 | L62: 1977 | M62: 3 | N62: 21682 | O62: 2850 | P62: 0 | Q62: 12698 | R62: 0 | S62: 9730 | T62: 93 | U62: 785 | V62: 0.044 | W62: 0.03 | X62: 0
A63: 4_8 | B63: 4 | C63: 2 | D63: 4_2 | E63: 49 | F63: 11 | G63: 7 | H63: 8 | I63: 233.2 | J63: 0 | K63: 1977 | L63: 1977 | M63: 3 | N63: 23314 | O63: 1456 | P63: 0 | Q63: 12641 | R63: 0 | S63: 11424 | T63: 31 | U63: 842 | V63: 0.047 | W63: 0.01 | X63: 0
A64: 4_9 | B64: 4 | C64: 3 | D64: 4_3 | E64: 49 | F64: 11 | G64: 7 | H64: 9 | I64: 235.1 | J64: 0 | K64: 1977 | L64: 1977 | M64: 3 | N64: 24576 | O64: 1519 | P64: 0 | Q64: 12639 | R64: 0 | S64: 12686 | T64: 31 | U64: 844 | V64: 0.047 | W64: 0.01 | X64: 0
A65: 4_10 | B65: 4 | C65: 4 | D65: 4_4 | E65: 49 | F65: 11 | G65: 7 | H65: 10 | I65: 235.1 | J65: 0 | K65: 1977 | L65: 1977 | M65: 3 | N65: 25533 | O65: 1568 | P65: 0 | Q65: 12639 | R65: 0 | S65: 13674 | T65: 0 | U65: 844 | V65: 0.047 | W65: 0 | X65: 0
A66: 4_11 | B66: 4 | C66: 5 | D66: 4_5 | E66: 49 | F66: 11 | G66: 7 | H66: 11 | I66: 235.1 | J66: 0 | K66: 1977 | L66: 1977 | M66: 3 | N66: 26209 | O66: 1601 | P66: 0 | Q66: 12639 | R66: 0 | S66: 14320 | T66: 31 | U66: 844 | V66: 0.047 | W66: 0.01 | X66: 0
A67: 4_12 | B67: 4 | C67: 6 | D67: 4_6 | E67: 49 | F67: 11 | G67: 7 | H67: 12 | I67: 235.1 | J67: 0 | K67: 1977 | L67: 1977 | M67: 3 | N67: 26631 | O67: 1592 | P67: 0 | Q67: 12639 | R67: 0 | S67: 14140 | T67: 93 | U67: 844 | V67: 0.047 | W67: 0.03 | X67: 0
A68: 4_13 | B68: 4 | C68: 7 | D68: 4_7 | E68: 49 | F68: 11 | G68: 7 | H68: 13 | I68: 235.1 | J68: 0 | K68: 1977 | L68: 1977 | M68: 3 | N68: 26953 | O68: 1561 | P68: 0 | Q68: 12639 | R68: 0 | S68: 13527 | T68: 217 | U68: 844 | V68: 0.047 | W68: 0.07 | X68: 0
A69: =CONCATENATE(B69,"_",H69) -> 4_14 | B69: 4 | C69: 8 | D69: 4_8 | E69: 49 | F69: 11 | G69: 7 | H69: 14 | I69: 235.1 | J69: 0 | K69: 1977 | L69: 1977 | M69: 3 | N69: 27177 | O69: 1572 | P69: 0 | Q69: 12639 | R69: 0 | S69: 13751 | T69: 217 | U69: 844 | V69: 0.047 | W69: 0.07 | X69: 0
A70: 4_15 | B70: =IF(E70=E69, (IF(F70=F69, (IF(G70=G69, (IF(H70=H69+1,B69,B69+1)), (IF(AND(G70=G69+1,H70=1,H69=24),B69,B69+1)))), B69+1)), B69+1) -> 4 | C70: =IF(B70=B69,C69+1,1) -> 9 | D70: =CONCATENATE(B70,"_",C70) -> 4_9 | E70: 49 | F70: 11 | G70: 7 | H70: 15 | I70: 458 | J70: 0 | K70: 1977 | L70: 1977 | M70: 3 | N70: 27314 | O70: 1568 | P70: 0 | Q70: 12416 | R70: 0 | S70: 13981 | T70: 124 | U70: 1067 | V70: 0.059 | W70: 0.04 | X70: 0
A71: 4_16 | B71: 4 | C71: 10 | D71: 4_10 | E71: 49 | F71: 11 | G71: 7 | H71: 16 | I71: 484.5 | J71: 0 | K71: 1977 | L71: 1977 | M71: 3 | N71: 27408 | O71: 1615 | P71: 0 | Q71: 12390 | R71: 0 | S71: 14963 | T71: 62 | U71: 1094 | V71: 0.061 | W71: 0.02 | X71: 0
A72: 4_17 | B72: 4 | C72: 11 | D72: 4_11 | E72: 49 | F72: 11 | G72: 7 | H72: 17 | I72: 484.4 | J72: 0 | K72: 1977 | L72: 1977 | M72: 3 | N72: 27512 | O72: 1647 | P72: 0 | Q72: 12390 | R72: 0 | S72: 15592 | T72: 62 | U72: 1093 | V72: 0.061 | W72: 0.02 | X72: 0
A73: 4_18 | B73: 4 | C73: 12 | D73: 4_12 | E73: 49 | F73: 11 | G73: 7 | H73: 18 | I73: 484.4 | J73: 0 | K73: 1977 | L73: 1977 | M73: 3 | N73: 27358 | O73: 1641 | P73: 0 | Q73: 12390 | R73: 0 | S73: 15468 | T73: 31 | U73: 1093 | V73: 0.061 | W73: 0.01 | X73: 0
A74: 4_19 | B74: 4 | C74: 13 | D74: 4_13 | E74: 49 | F74: 11 | G74: 7 | H74: 19 | I74: 484.4 | J74: 0 | K74: 1977 | L74: 1977 | M74: 3 | N74: 27006 | O74: 1623 | P74: 0 | Q74: 12390 | R74: 0 | S74: 15116 | T74: 31 | U74: 1093 | V74: 0.061 | W74: 0.01 | X74: 0
A75: 4_20 | B75: 4 | C75: 14 | D75: 4_14 | E75: 49 | F75: 11 | G75: 7 | H75: 20 | I75: 715 | J75: 0 | K75: 1977 | L75: 1977 | M75: 3 | N75: 26640 | O75: 1589 | P75: 0 | Q75: 12159 | R75: 0 | S75: 14750 | T75: 31 | U75: 1324 | V75: 0.074 | W75: 0.01 | X75: 0
A76: 4_21 | B76: 4 | C76: 15 | D76: 4_15 | E76: 49 | F76: 11 | G76: 7 | H76: 21 | I76: 765.4 | J76: 0 | K76: 1977 | L76: 1977 | M76: 3 | N76: 26428 | O76: 1575 | P76: 0 | Q76: 12109 | R76: 0 | S76: 14539 | T76: 31 | U76: 1374 | V76: 0.076 | W76: 0.01 | X76: 0
A77: 4_22 | B77: 4 | C77: 16 | D77: 4_16 | E77: 49 | F77: 11 | G77: 7 | H77: 22 | I77: 765.4 | J77: 0 | K77: 1977 | L77: 1977 | M77: 3 | N77: 25557 | O77: 1502 | P77: 0 | Q77: 12109 | R77: 0 | S77: 13097 | T77: 62 | U77: 1374 | V77: 0.076 | W77: 0.02 | X77: 0
A78: 4_23 | B78: 4 | C78: 17 | D78: 4_17 | E78: 49 | F78: 11 | G78: 7 | H78: 23 | I78: 766.5 | J78: 0 | K78: 1977 | L78: 1977 | M78: 3 | N78: 23392 | O78: 1193 | P78: 0 | Q78: 12109 | R78: 3000 | S78: 6907 | T78: 31 | U78: 1374 | V78: 0.076 | W78: 0.01 | X78: 0
A79: 5_17 | B79: 5 | C79: 1 | D79: 5_1 | E79: 52 | F79: 11 | G79: 7 | H79: 17 | I79: 204.2 | J79: 0 | K79: 1980 | L79: 1980 | M79: 1 | N79: 27774 | O79: 1647 | P79: 0 | Q79: 10897 | R79: 0 | S79: 17688 | T79: 0 | U79: 2586 | V79: 0.144 | W79: 0 | X79: 0
A80: 5_18 | B80: 5 | C80: 2 | D80: 5_2 | E80: 52 | F80: 11 | G80: 7 | H80: 18 | I80: 363.1 | J80: 0 | K80: 1980 | L80: 1980 | M80: 1 | N80: 27619 | O80: 1636 | P80: 0 | Q80: 11117 | R80: 0 | S80: 17154 | T80: 0 | U80: 2366 | V80: 0.132 | W80: 0 | X80: 0
A81: 5_19 | B81: 5 | C81: 3 | D81: 5_3 | E81: 52 | F81: 11 | G81: 7 | H81: 19 | I81: 338.2 | J81: 0 | K81: 1980 | L81: 1980 | M81: 1 | N81: 27263 | O81: 1620 | P81: 0 | Q81: 11142 | R81: 0 | S81: 16798 | T81: 0 | U81: 2341 | V81: 0.13 | W81: 0 | X81: 0
A82: 5_20 | B82: 5 | C82: 4 | D82: 5_4 | E82: 52 | F82: 11 | G82: 7 | H82: 20 | I82: 338.2 | J82: 0 | K82: 1980 | L82: 1980 | M82: 1 | N82: 26894 | O82: 1600 | P82: 0 | Q82: 11142 | R82: 0 | S82: 16398 | T82: 31 | U82: 2341 | V82: 0.13 | W82: 0.01 | X82: 0
A83: 5_21 | B83: 5 | C83: 5 | D83: 5_5 | E83: 52 | F83: 11 | G83: 7 | H83: 21 | I83: 338.2 | J83: 0 | K83: 1980 | L83: 1980 | M83: 1 | N83: 26680 | O83: 1589 | P83: 0 | Q83: 11142 | R83: 0 | S83: 16184 | T83: 31 | U83: 2341 | V83: 0.13 | W83: 0.01 | X83: 0
A84: 5_22 | B84: 5 | C84: 6 | D84: 5_6 | E84: 52 | F84: 11 | G84: 7 | H84: 22 | I84: 338.2 | J84: 0 | K84: 1980 | L84: 1980 | M84: 1 | N84: 25800 | O84: 1510 | P84: 0 | Q84: 11142 | R84: 0 | S84: 14609 | T84: 186 | U84: 2341 | V84: 0.13 | W84: 0.06 | X84: 0
A85: 5_23 | B85: 5 | C85: 7 | D85: 5_7 | E85: 52 | F85: 11 | G85: 7 | H85: 23 | I85: 339.3 | J85: 0 | K85: 1980 | L85: 1980 | M85: 1 | N85: 23615 | O85: 1195 | P85: 0 | Q85: 11142 | R85: 3000 | S85: 8307 | T85: 248 | U85: 2341 | V85: 0.13 | W85: 0.08 | X85: 0
A86: 5_24 | B86: 5 | C86: 8 | D86: 5_8 | E86: 52 | F86: 11 | G86: 7 | H86: 24 | I86: 332 | J86: 0 | K86: 1980 | L86: 1980 | M86: 1 | N86: 21465 | O86: 2850 | P86: 0 | Q86: 11142 | R86: 3000 | S86: 6040 | T86: 372 | U86: 2341 | V86: 0.13 | W86: 0.12 | X86: 0
A87: 6_12 | B87: 6 | C87: 1 | D87: 6_1 | E87: 64 | F87: 11 | G87: 4 | H87: 12 | I87: 368.5 | J87: 0 | K87: 1992 | L87: 1992 | M87: 3 | N87: 27797 | O87: 1617 | P87: 0 | Q87: 12172 | R87: 0 | S87: 15299 | T87: 434 | U87: 1311 | V87: 0.073 | W87: 0.14 | X87: 0
A88: 6_13 | B88: 6 | C88: 2 | D88: 6_2 | E88: 64 | F88: 11 | G88: 4 | H88: 13 | I88: 759.6 | J88: 0 | K88: 1992 | L88: 1992 | M88: 3 | N88: 28111 | O88: 1577 | P88: 0 | Q88: 12172 | R88: 0 | S88: 14504 | T88: 341 | U88: 1311 | V88: 0.073 | W88: 0.11 | X88: 0
A89: 6_14 | B89: 6 | C89: 3 | D89: 6_3 | E89: 64 | F89: 11 | G89: 4 | H89: 14 | I89: 759.6 | J89: 0 | K89: 1992 | L89: 1992 | M89: 3 | N89: 28319 | O89: 1588 | P89: 0 | Q89: 12172 | R89: 0 | S89: 14712 | T89: 341 | U89: 1311 | V89: 0.073 | W89: 0.11 | X89: 0
A90: 6_15 | B90: 6 | C90: 4 | D90: 6_4 | E90: 64 | F90: 11 | G90: 4 | H90: 15 | I90: 759.6 | J90: 0 | K90: 1992 | L90: 1992 | M90: 3 | N90: 28449 | O90: 1588 | P90: 0 | Q90: 12172 | R90: 0 | S90: 14718 | T90: 465 | U90: 1311 | V90: 0.073 | W90: 0.15 | X90: 0
A91: 6_16 | B91: 6 | C91: 5 | D91: 6_5 | E91: 64 | F91: 11 | G91: 4 | H91: 16 | I91: 759.6 | J91: 0 | K91: 1992 | L91: 1992 | M91: 3 | N91: 28551 | O91: 1631 | P91: 0 | Q91: 12172 | R91: 0 | S91: 15584 | T91: 527 | U91: 1311 | V91: 0.073 | W91: 0.17 | X91: 0
A92: 6_17 | B92: 6 | C92: 6 | D92: 6_6 | E92: 64 | F92: 11 | G92: 4 | H92: 17 | I92: 759.6 | J92: 0 | K92: 1992 | L92: 1992 | M92: 3 | N92: 28674 | O92: 1659 | P92: 0 | Q92: 12172 | R92: 0 | S92: 16139 | T92: 620 | U92: 1311 | V92: 0.073 | W92: 0.2 | X92: 0
A93: 6_18 | B93: 6 | C93: 7 | D93: 6_7 | E93: 64 | F93: 11 | G93: 4 | H93: 18 | I93: 759.6 | J93: 0 | K93: 1992 | L93: 1992 | M93: 3 | N93: 28485 | O93: 1639 | P93: 0 | Q93: 12172 | R93: 0 | S93: 15733 | T93: 836 | U93: 1311 | V93: 0.073 | W93: 0.27 | X93: 0
A94: 6_19 | B94: 6 | C94: 8 | D94: 6_8 | E94: 64 | F94: 11 | G94: 4 | H94: 19 | I94: 759.6 | J94: 0 | K94: 1992 | L94: 1992 | M94: 3 | N94: 28039 | O94: 1606 | P94: 0 | Q94: 12172 | R94: 0 | S94: 15070 | T94: 1053 | U94: 1311 | V94: 0.073 | W94: 0.34 | X94: 0
A95: 6_20 | B95: 6 | C95: 9 | D95: 6_9 | E95: 64 | F95: 11 | G95: 4 | H95: 20 | I95: 759.6 | J95: 0 | K95: 1992 | L95: 1992 | M95: 3 | N95: 27606 | O95: 1581 | P95: 0 | Q95: 12172 | R95: 0 | S95: 14575 | T95: 1115 | U95: 1311 | V95: 0.073 | W95: 0.36 | X95: 0
A96: 6_21 | B96: 6 | C96: 10 | D96: 6_10 | E96: 64 | F96: 11 | G96: 4 | H96: 21 | I96: 757.6 | J96: 0 | K96: 1992 | L96: 1992 | M96: 3 | N96: 27422 | O96: 1573 | P96: 0 | Q96: 12174 | R96: 0 | S96: 14422 | T96: 1084 | U96: 1309 | V96: 0.073 | W96: 0.35 | X96: 0
A97: 6_22 | B97: 6 | C97: 11 | D97: 6_11 | E97: 64 | F97: 11 | G97: 4 | H97: 22 | I97: 749.6 | J97: 0 | K97: 1992 | L97: 1992 | M97: 3 | N97: 26627 | O97: 1506 | P97: 0 | Q97: 12182 | R97: 0 | S97: 13056 | T97: 1115 | U97: 1301 | V97: 0.072 | W97: 0.36 | X97: 0
A98: 6_23 | B98: 6 | C98: 12 | D98: 6_12 | E98: 64 | F98: 11 | G98: 4 | H98: 23 | I98: 750.7 | J98: 0 | K98: 1992 | L98: 1992 | M98: 3 | N98: 24459 | O98: 1204 | P98: 0 | Q98: 12182 | R98: 3000 | S98: 7018 | T98: 929 | U98: 1301 | V98: 0.072 | W98: 0.3 | X98: 0
A99: 7_7 | B99: 7 | C99: 1 | D99: 7_1 | E99: 64 | F99: 11 | G99: 5 | H99: 7 | I99: 698.6 | J99: 0 | K99: 1992 | L99: 1992 | M99: 3 | N99: 21130 | O99: 2850 | P99: 0 | Q99: 12089 | R99: 0 | S99: 9172 | T99: 186 | U99: 1395 | V99: 0.078 | W99: 0.06 | X99: 0
A100: 7_8 | B100: 7 | C100: 2 | D100: 7_2 | E100: 64 | F100: 11 | G100: 5 | H100: 8 | I100: 698.6 | J100: 0 | K100: 1992 | L100: 1992 | M100: 3 | N100: 22796 | O100: 1393 | P100: 0 | Q100: 12089 | R100: 0 | S100: 10931 | T100: 93 | U100: 1395 | V100: 0.078 | W100: 0.03 | X100: 0
A101: 7_9 | B101: 7 | C101: 3 | D101: 7_3 | E101: 64 | F101: 11 | G101: 5 | H101: 9 | I101: 698.6 | J101: 0 | K101: 1992 | L101: 1992 | M101: 3 | N101: 24267 | O101: 1469 | P101: 0 | Q101: 12089 | R101: 0 | S101: 12464 | T101: 31 | U101: 1395 | V101: 0.078 | W101: 0.01 | X101: 0
A102: 7_10 | B102: 7 | C102: 4 | D102: 7_4 | E102: 64 | F102: 11 | G102: 5 | H102: 10 | I102: 698.6 | J102: 0 | K102: 1992 | L102: 1992 | M102: 3 | N102: 25358 | O102: 1524 | P102: 0 | Q102: 12089 | R102: 0 | S102: 13555 | T102: 31 | U102: 1395 | V102: 0.078 | W102: 0.01 | X102: 0
A103: 7_11 | B103: 7 | C103: 5 | D103: 7_5 | E103: 64 | F103: 11 | G103: 5 | H103: 11 | I103: 698.6 | J103: 0 | K103: 1992 | L103: 1992 | M103: 3 | N103: 26077 | O103: 1558 | P103: 0 | Q103: 12089 | R103: 0 | S103: 14243 | T103: 62 | U103: 1395 | V103: 0.078 | W103: 0.02 | X103: 0
A104: 7_12 | B104: 7 | C104: 6 | D104: 7_6 | E104: 64 | F104: 11 | G104: 5 | H104: 12 | I104: 698.6 | J104: 0 | K104: 1992 | L104: 1992 | M104: 3 | N104: 26504 | O104: 1548 | P104: 0 | Q104: 12089 | R104: 0 | S104: 14038 | T104: 155 | U104: 1395 | V104: 0.078 | W104: 0.05 | X104: 0
A105: 7_13 | B105: 7 | C105: 7 | D105: 7_7 | E105: 64 | F105: 11 | G105: 5 | H105: 13 | I105: 698.6 | J105: 0 | K105: 1992 | L105: 1992 | M105: 3 | N105: 26803 | O105: 1519 | P105: 0 | Q105: 12089 | R105: 0 | S105: 13464 | T105: 217 | U105: 1395 | V105: 0.078 | W105: 0.07 | X105: 0
A106: 7_14 | B106: 7 | C106: 8 | D106: 7_8 | E106: 64 | F106: 11 | G106: 5 | H106: 14 | I106: 698.6 | J106: 0 | K106: 1992 | L106: 1992 | M106: 3 | N106: 26999 | O106: 1531 | P106: 0 | Q106: 12089 | R106: 0 | S106: 13691 | T106: 186 | U106: 1395 | V106: 0.078 | W106: 0.06 | X106: 0
A107: 7_15 | B107: 7 | C107: 9 | D107: 7_9 | E107: 64 | F107: 11 | G107: 5 | H107: 15 | I107: 835.4 | J107: 0 | K107: 1992 | L107: 1992 | M107: 3 | N107: 27127 | O107: 1528 | P107: 0 | Q107: 11952 | R107: 0 | S107: 13819 | T107: 186 | U107: 1531 | V107: 0.085 | W107: 0.06 | X107: 0
A108: 7_16 | B108: 7 | C108: 10 | D108: 7_10 | E108: 64 | F108: 11 | G108: 5 | H108: 16 | I108: 877.6 | J108: 0 | K108: 1992 | L108: 1992 | M108: 3 | N108: 27226 | O108: 1568 | P108: 0 | Q108: 11910 | R108: 0 | S108: 14682 | T108: 248 | U108: 1574 | V108: 0.087 | W108: 0.08 | X108: 0
A109: 7_17 | B109: 7 | C109: 11 | D109: 7_11 | E109: 64 | F109: 11 | G109: 5 | H109: 17 | I109: 877.6 | J109: 0 | K109: 1992 | L109: 1992 | M109: 3 | N109: 27346 | O109: 1594 | P109: 0 | Q109: 11910 | R109: 0 | S109: 15203 | T109: 372 | U109: 1574 | V109: 0.087 | W109: 0.12 | X109: 0
A110: 7_18 | B110: 7 | C110: 12 | D110: 7_12 | E110: 64 | F110: 11 | G110: 5 | H110: 18 | I110: 877.6 | J110: 0 | K110: 1992 | L110: 1992 | M110: 3 | N110: 27181 | O110: 1579 | P110: 0 | Q110: 11910 | R110: 0 | S110: 14914 | T110: 496 | U110: 1574 | V110: 0.087 | W110: 0.16 | X110: 0
A111: 7_19 | B111: 7 | C111: 13 | D111: 7_13 | E111: 64 | F111: 11 | G111: 5 | H111: 19 | I111: 877.6 | J111: 0 | K111: 1992 | L111: 1992 | M111: 3 | N111: 26783 | O111: 1556 | P111: 0 | Q111: 11910 | R111: 0 | S111: 14454 | T111: 558 | U111: 1574 | V111: 0.087 | W111: 0.18 | X111: 0
A112: 7_20 | B112: 7 | C112: 14 | D112: 7_14 | E112: 64 | F112: 11 | G112: 5 | H112: 20 | I112: 877.6 | J112: 0 | K112: 1992 | L112: 1992 | M112: 3 | N112: 26391 | O112: 1538 | P112: 0 | Q112: 11910 | R112: 0 | S112: 14093 | T112: 527 | U112: 1574 | V112: 0.087 | W112: 0.17 | X112: 0
A113: 7_21 | B113: 7 | C113: 15 | D113: 7_15 | E113: 64 | F113: 11 | G113: 5 | H113: 21 | I113: 877.6 | J113: 0 | K113: 1992 | L113: 1992 | M113: 3 | N113: 26207 | O113: 1538 | P113: 0 | Q113: 11910 | R113: 0 | S113: 14095 | T113: 341 | U113: 1574 | V113: 0.087 | W113: 0.11 | X113: 0
A114: 7_22 | B114: 7 | C114: 16 | D114: 7_16 | E114: 64 | F114: 11 | G114: 5 | H114: 22 | I114: 877.6 | J114: 0 | K114: 1992 | L114: 1992 | M114: 3 | N114: 25417 | O114: 1480 | P114: 0 | Q114: 11910 | R114: 0 | S114: 12920 | T114: 186 | U114: 1574 | V114: 0.087 | W114: 0.06 | X114: 0
A115: 7_23 | B115: 7 | C115: 17 | D115: 7_17 | E115: 64 | F115: 11 | G115: 5 | H115: 23 | I115: 730.7 | J115: 0 | K115: 1992 | L115: 1992 | M115: 3 | N115: 23323 | O115: 1186 | P115: 0 | Q115: 12058 | R115: 3000 | S115: 6832 | T115: 124 | U115: 1425 | V115: 0.079 | W115: 0.04 | X115: 0
A116: 8_7 | B116: 8 | C116: 1 | D116: 8_1 | E116: 64 | F116: 11 | G116: 6 | H116: 7 | I116: 267.6 | J116: 0 | K116: 1992 | L116: 1992 | M116: 3 | N116: 20818 | O116: 2850 | P116: 0 | Q116: 11925 | R116: 0 | S116: 9393 | T116: 248 | U116: 1559 | V116: 0.087 | W116: 0.08 | X116: 0
A117: 8_8 | B117: 8 | C117: 2 | D117: 8_2 | E117: 64 | F117: 11 | G117: 6 | H117: 8 | I117: 267.6 | J117: 0 | K117: 1992 | L117: 1992 | M117: 3 | N117: 22428 | O117: 1390 | P117: 0 | Q117: 11925 | R117: 0 | S117: 11096 | T117: 155 | U117: 1559 | V117: 0.087 | W117: 0.05 | X117: 0
A118: 8_9 | B118: 8 | C118: 3 | D118: 8_3 | E118: 64 | F118: 11 | G118: 6 | H118: 9 | I118: 267.6 | J118: 0 | K118: 1992 | L118: 1992 | M118: 3 | N118: 23805 | O118: 1460 | P118: 0 | Q118: 11925 | R118: 0 | S118: 12504 | T118: 124 | U118: 1559 | V118: 0.087 | W118: 0.04 | X118: 0
A119: 8_10 | B119: 8 | C119: 4 | D119: 8_4 | E119: 64 | F119: 11 | G119: 6 | H119: 10 | I119: 267.6 | J119: 0 | K119: 1992 | L119: 1992 | M119: 3 | N119: 24833 | O119: 1507 | P119: 0 | Q119: 11925 | R119: 0 | S119: 13439 | T119: 217 | U119: 1559 | V119: 0.087 | W119: 0.07 | X119: 0
A120: 8_11 | B120: 8 | C120: 5 | D120: 8_5 | E120: 64 | F120: 11 | G120: 6 | H120: 11 | I120: 46.3 | J120: 0 | K120: 1992 | L120: 1992 | M120: 3 | N120: 25528 | O120: 1548 | P120: 0 | Q120: 12146 | R120: 0 | S120: 13949 | T120: 403 | U120: 1337 | V120: 0.074 | W120: 0.13 | X120: 0
A121: 8_12 | B121: 8 | C121: 6 | D121: 8_6 | E121: 64 | F121: 11 | G121: 6 | H121: 12 | I121: 45.9 | J121: 0 | K121: 1992 | L121: 1992 | M121: 3 | N121: 25948 | O121: 1539 | P121: 0 | Q121: 12146 | R121: 0 | S121: 13767 | T121: 465 | U121: 1337 | V121: 0.074 | W121: 0.15 | X121: 0
A122: 8_13 | B122: 8 | C122: 7 | D122: 8_7 | E122: 64 | F122: 11 | G122: 6 | H122: 13 | I122: 45.9 | J122: 0 | K122: 1992 | L122: 1992 | M122: 3 | N122: 26255 | O122: 1509 | P122: 0 | Q122: 12146 | R122: 0 | S122: 13170 | T122: 558 | U122: 1337 | V122: 0.074 | W122: 0.18 | X122: 0
A123: 8_14 | B123: 8 | C123: 8 | D123: 8_8 | E123: 64 | F123: 11 | G123: 6 | H123: 14 | I123: 45.9 | J123: 0 | K123: 1992 | L123: 1992 | M123: 3 | N123: 26460 | O123: 1513 | P123: 0 | Q123: 12146 | R123: 0 | S123: 13251 | T123: 682 | U123: 1337 | V123: 0.074 | W123: 0.22 | X123: 0
A124: 8_15 | B124: 8 | C124: 9 | D124: 8_9 | E124: 64 | F124: 11 | G124: 6 | H124: 15 | I124: 45.9 | J124: 0 | K124: 1992 | L124: 1992 | M124: 3 | N124: 26591 | O124: 1519 | P124: 0 | Q124: 12146 | R124: 0 | S124: 13382 | T124: 682 | U124: 1337 | V124: 0.074 | W124: 0.22 | X124: 0
A125: 8_16 | B125: 8 | C125: 10 | D125: 8_10 | E125: 64 | F125: 11 | G125: 6 | H125: 16 | I125: 45.9 | J125: 0 | K125: 1992 | L125: 1992 | M125: 3 | N125: 26690 | O125: 1569 | P125: 0 | Q125: 12146 | R125: 0 | S125: 14369 | T125: 620 | U125: 1337 | V125: 0.074 | W125: 0.2 | X125: 0
A126: 8_17 | B126: 8 | C126: 11 | D126: 8_11 | E126: 64 | F126: 11 | G126: 6 | H126: 17 | I126: 45.9 | J126: 0 | K126: 1992 | L126: 1992 | M126: 3 | N126: 26811 | O126: 1604 | P126: 0 | Q126: 12146 | R126: 0 | S126: 15077 | T126: 558 | U126: 1337 | V126: 0.074 | W126: 0.18 | X126: 0
A127: 8_18 | B127: 8 | C127: 12 | D127: 8_12 | E127: 64 | F127: 11 | G127: 6 | H127: 18 | I127: 45.9 | J127: 0 | K127: 1992 | L127: 1992 | M127: 3 | N127: 26669 | O127: 1595 | P127: 0 | Q127: 12146 | R127: 0 | S127: 14904 | T127: 589 | U127: 1337 | V127: 0.074 | W127: 0.19 | X127: 0
A128: 8_19 | B128: 8 | C128: 13 | D128: 8_13 | E128: 64 | F128: 11 | G128: 6 | H128: 19 | I128: 45.9 | J128: 0 | K128: 1992 | L128: 1992 | M128: 3 | N128: 26315 | O128: 1581 | P128: 0 | Q128: 12146 | R128: 0 | S128: 14612 | T128: 527 | U128: 1337 | V128: 0.074 | W128: 0.17 | X128: 0
A129: 8_20 | B129: 8 | C129: 14 | D129: 8_14 | E129: 64 | F129: 11 | G129: 6 | H129: 20 | I129: 45.9 | J129: 0 | K129: 1992 | L129: 1992 | M129: 3 | N129: 25961 | O129: 1563 | P129: 0 | Q129: 12146 | R129: 0 | S129: 14258 | T129: 527 | U129: 1337 | V129: 0.074 | W129: 0.17 | X129: 0
A130: 8_21 | B130: 8 | C130: 15 | D130: 8_15 | E130: 64 | F130: 11 | G130: 6 | H130: 21 | I130: 45.9 | J130: 0 | K130: 1992 | L130: 1992 | M130: 3 | N130: 25773 | O130: 1557 | P130: 0 | Q130: 12146 | R130: 0 | S130: 14132 | T130: 465 | U130: 1337 | V130: 0.074 | W130: 0.15 | X130: 0
A131: 8_22 | B131: 8 | C131: 16 | D131: 8_16 | E131: 64 | F131: 11 | G131: 6 | H131: 22 | I131: 45.9 | J131: 0 | K131: 1992 | L131: 1992 | M131: 3 | N131: 24951 | O131: 1483 | P131: 0 | Q131: 12146 | R131: 0 | S131: 12646 | T131: 589 | U131: 1337 | V131: 0.074 | W131: 0.19 | X131: 0
A132: 8_23 | B132: 8 | C132: 17 | D132: 8_17 | E132: 64 | F132: 11 | G132: 6 | H132: 23 | I132: 47 | J132: 0 | K132: 1992 | L132: 1992 | M132: 3 | N132: 22847 | O132: 1173 | P132: 0 | Q132: 12146 | R132: 3000 | S132: 6455 | T132: 620 | U132: 1337 | V132: 0.074 | W132: 0.2 | X132: 0
A133: =CONCATENATE(B133,"_",H133) -> 9_21 | B133: 9 | C133: 1 | D133: 9_1 | E133: 75 | F133: 3 | G133: 8 | H133: 21 | I133: 204.5 | J133: 0 | K133: 1932 | L133: 1932 | M133: 2 | N133: 36055 | O133: 2850 | P133: 0 | Q133: 14575 | R133: 3000 | S133: 18203 | T133: 124 | U133: 1435 | V133: 0.07 | W133: 0.04 | X133: 0
A134: 9_22 | B134: =IF(E134=E133, (IF(F134=F133, (IF(G134=G133, (IF(H134=H133+1,B133,B133+1)), (IF(AND(G134=G133+1,H134=1,H133=24),B133,B133+1)))), B133+1)), B133+1) -> 9 | C134: =IF(B134=B133,C133+1,1) -> 2 | D134: =CONCATENATE(B134,"_",C134) -> 9_2 | E134: 75 | F134: 3 | G134: 8 | H134: 22 | I134: 1737.8 | J134: 0 | K134: 1932 | L134: 1932 | M134: 2 | N134: 34268 | O134: 2850 | P134: 0 | Q134: 14575 | R134: 3000 | S134: 14312 | T134: 155 | U134: 1435 | V134: 0.07 | W134: 0.05 | X134: 0
A135: 9_23 | B135: 9 | C135: 3 | D135: 9_3 | E135: 75 | F135: 3 | G135: 8 | H135: 23 | I135: 4695.4 | J135: 0 | K135: 1932 | L135: 1932 | M135: 2 | N135: 31601 | O135: 2850 | P135: 0 | Q135: 14575 | R135: 3000 | S135: 8444 | T135: 62 | U135: 1435 | V135: 0.07 | W135: 0.02 | X135: 0
A136: 9_24 | B136: 9 | C136: 4 | D136: 9_4 | E136: 75 | F136: 3 | G136: 8 | H136: 24 | I136: 4248.3 | J136: 0 | K136: 1932 | L136: 1932 | M136: 2 | N136: 29081 | O136: 2850 | P136: 0 | Q136: 14575 | R136: 3000 | S136: 6339 | T136: 93 | U136: 1435 | V136: 0.07 | W136: 0.03 | X136: 0
A137: 9_1 | B137: 9 | C137: 5 | D137: 9_5 | E137: 75 | F137: 3 | G137: 9 | H137: 1 | I137: 2789.2 | J137: 0 | K137: 1932 | L137: 1932 | M137: 2 | N137: 27739 | O137: 2850 | P137: 0 | Q137: 14523 | R137: 3000 | S137: 6323 | T137: 279 | U137: 1487 | V137: 0.072 | W137: 0.09 | X137: 0
A138: 9_2 | B138: 9 | C138: 6 | D138: 9_6 | E138: 75 | F138: 3 | G138: 9 | H138: 2 | I138: 2049.2 | J138: 0 | K138: 1932 | L138: 1932 | M138: 2 | N138: 27165 | O138: 2850 | P138: 0 | Q138: 14441 | R138: 3000 | S138: 6323 | T138: 527 | U138: 1569 | V138: 0.076 | W138: 0.17 | X138: 0
A139: 9_3 | B139: 9 | C139: 7 | D139: 9_7 | E139: 75 | F139: 3 | G139: 9 | H139: 3 | I139: 1643.3 | J139: 0 | K139: 1932 | L139: 1932 | M139: 2 | N139: 26976 | O139: 2850 | P139: 0 | Q139: 14441 | R139: 3000 | S139: 6323 | T139: 744 | U139: 1569 | V139: 0.076 | W139: 0.24 | X139: 0
A140: 9_4 | B140: 9 | C140: 8 | D140: 9_8 | E140: 75 | F140: 3 | G140: 9 | H140: 4 | I140: 1803.4 | J140: 0 | K140: 1932 | L140: 1932 | M140: 2 | N140: 27260 | O140: 2850 | P140: 0 | Q140: 14441 | R140: 3000 | S140: 6323 | T140: 867 | U140: 1569 | V140: 0.076 | W140: 0.28 | X140: 0
A141: 9_5 | B141: 9 | C141: 9 | D141: 9_9 | E141: 75 | F141: 3 | G141: 9 | H141: 5 | I141: 2781.7 | J141: 0 | K141: 1932 | L141: 1932 | M141: 2 | N141: 28300 | O141: 2850 | P141: 0 | Q141: 14441 | R141: 3000 | S141: 6323 | T141: 929 | U141: 1569 | V141: 0.076 | W141: 0.3 | X141: 0
A142: 9_6 | B142: 9 | C142: 10 | D142: 9_10 | E142: 75 | F142: 3 | G142: 9 | H142: 6 | I142: 4304.1 | J142: 0 | K142: 1932 | L142: 1932 | M142: 2 | N142: 30794 | O142: 2850 | P142: 0 | Q142: 14441 | R142: 3000 | S142: 7666 | T142: 558 | U142: 1569 | V142: 0.076 | W142: 0.18 | X142: 0
A143: 9_7 | B143: 9 | C143: 11 | D143: 9_11 | E143: 75 | F143: 3 | G143: 9 | H143: 7 | I143: 1346.4 | J143: 0 | K143: 1932 | L143: 1932 | M143: 2 | N143: 34422 | O143: 2850 | P143: 0 | Q143: 14441 | R143: 3000 | S143: 15159 | T143: 527 | U143: 1569 | V143: 0.076 | W143: 0.17 | X143: 0
A144: 9_8 | B144: 9 | C144: 12 | D144: 9_12 | E144: 75 | F144: 3 | G144: 9 | H144: 8 | I144: 1346.4 | J144: 0 | K144: 1932 | L144: 1932 | M144: 2 | N144: 36816 | O144: 2850 | P144: 0 | Q144: 14441 | R144: 3000 | S144: 17429 | T144: 651 | U144: 1569 | V144: 0.076 | W144: 0.21 | X144: 0
A145: 9_9 | B145: 9 | C145: 13 | D145: 9_13 | E145: 75 | F145: 3 | G145: 9 | H145: 9 | I145: 1346.4 | J145: 0 | K145: 1932 | L145: 1932 | M145: 2 | N145: 37335 | O145: 2850 | P145: 0 | Q145: 14441 | R145: 3000 | S145: 17886 | T145: 713 | U145: 1569 | V145: 0.076 | W145: 0.23 | X145: 0
A146: 9_10 | B146: 9 | C146: 14 | D146: 9_14 | E146: 75 | F146: 3 | G146: 9 | H146: 10 | I146: 1346.4 | J146: 0 | K146: 1932 | L146: 1932 | M146: 2 | N146: 37149 | O146: 2850 | P146: 0 | Q146: 14441 | R146: 3000 | S146: 17731 | T146: 682 | U146: 1569 | V146: 0.076 | W146: 0.22 | X146: 0
A147: 9_11 | B147: 9 | C147: 15 | D147: 9_15 | E147: 75 | F147: 3 | G147: 9 | H147: 11 | I147: 1346.4 | J147: 0 | K147: 1932 | L147: 1932 | M147: 2 | N147: 36589 | O147: 2850 | P147: 0 | Q147: 14441 | R147: 3000 | S147: 17079 | T147: 774 | U147: 1569 | V147: 0.076 | W147: 0.25 | X147: 0
A148: 9_12 | B148: 9 | C148: 16 | D148: 9_16 | E148: 75 | F148: 3 | G148: 9 | H148: 12 | I148: 1346.4 | J148: 0 | K148: 1932 | L148: 1932 | M148: 2 | N148: 35755 | O148: 2850 | P148: 0 | Q148: 14441 | R148: 3000 | S148: 15612 | T148: 867 | U148: 1569 | V148: 0.076 | W148: 0.28 | X148: 0
A149: 9_13 | B149: 9 | C149: 17 | D149: 9_17 | E149: 75 | F149: 3 | G149: 9 | H149: 13 | I149: 1346.4 | J149: 0 | K149: 1932 | L149: 1932 | M149: 2 | N149: 34998 | O149: 2850 | P149: 0 | Q149: 14441 | R149: 3000 | S149: 13921 | T149: 991 | U149: 1569 | V149: 0.076 | W149: 0.32 | X149: 0
A150: 9_14 | B150: 9 | C150: 18 | D150: 9_18 | E150: 75 | F150: 3 | G150: 9 | H150: 14 | I150: 1346.4 | J150: 0 | K150: 1932 | L150: 1932 | M150: 2 | N150: 34340 | O150: 2850 | P150: 0 | Q150: 14441 | R150: 3000 | S150: 13108 | T150: 1146 | U150: 1569 | V150: 0.076 | W150: 0.37 | X150: 0
A151: 9_15 | B151: 9 | C151: 19 | D151: 9_19 | E151: 75 | F151: 3 | G151: 9 | H151: 15 | I151: 1346.4 | J151: 0 | K151: 1932 | L151: 1932 | M151: 2 | N151: 33992 | O151: 2850 | P151: 0 | Q151: 14441 | R151: 3000 | S151: 12791 | T151: 1115 | U151: 1569 | V151: 0.076 | W151: 0.36 | X151: 0
A152: 9_16 | B152: 9 | C152: 20 | D152: 9_20 | E152: 75 | F152: 3 | G152: 9 | H152: 16 | I152: 1346.4 | J152: 0 | K152: 1932 | L152: 1932 | M152: 2 | N152: 34481 | O152: 2850 | P152: 0 | Q152: 14441 | R152: 3000 | S152: 14260 | T152: 960 | U152: 1569 | V152: 0.076 | W152: 0.31 | X152: 0
A153: 9_17 | B153: 9 | C153: 21 | D153: 9_21 | E153: 75 | F153: 3 | G153: 9 | H153: 17 | I153: 1346.4 | J153: 0 | K153: 1932 | L153: 1932 | M153: 2 | N153: 36809 | O153: 2850 | P153: 0 | Q153: 14441 | R153: 3000 | S153: 16989 | T153: 1084 | U153: 1569 | V153: 0.076 | W153: 0.35 | X153: 0
A154: 9_18 | B154: 9 | C154: 22 | D154: 9_22 | E154: 75 | F154: 3 | G154: 9 | H154: 18 | I154: 1381 | J154: 0 | K154: 1932 | L154: 1932 | M154: 2 | N154: 38936 | O154: 2850 | P154: 0 | Q154: 14406 | R154: 3000 | S154: 19053 | T154: 1146 | U154: 1603 | V154: 0.078 | W154: 0.37 | X154: 0
A155: 9_19 | B155: 9 | C155: 23 | D155: 9_23 | E155: 75 | F155: 3 | G155: 9 | H155: 19 | I155: 1396.4 | J155: 0 | K155: 1932 | L155: 1932 | M155: 2 | N155: 38698 | O155: 2850 | P155: 0 | Q155: 14391 | R155: 3000 | S155: 18754 | T155: 1208 | U155: 1619 | V155: 0.079 | W155: 0.39 | X155: 0
A156: 9_20 | B156: 9 | C156: 24 | D156: 9_24 | E156: 75 | F156: 3 | G156: 9 | H156: 20 | I156: 1396.4 | J156: 0 | K156: 1932 | L156: 1932 | M156: 2 | N156: 37702 | O156: 2850 | P156: 0 | Q156: 14391 | R156: 3000 | S156: 17758 | T156: 1208 | U156: 1619 | V156: 0.079 | W156: 0.39 | X156: 0
A157: 9_21 | B157: 9 | C157: 25 | D157: 9_25 | E157: 75 | F157: 3 | G157: 9 | H157: 21 | I157: 1396.4 | J157: 0 | K157: 1932 | L157: 1932 | M157: 2 | N157: 36491 | O157: 2850 | P157: 0 | Q157: 14391 | R157: 3000 | S157: 16454 | T157: 1301 | U157: 1619 | V157: 0.079 | W157: 0.42 | X157: 0
A158: 9_22 | B158: 9 | C158: 26 | D158: 9_26 | E158: 75 | F158: 3 | G158: 9 | H158: 22 | I158: 1396.4 | J158: 0 | K158: 1932 | L158: 1932 | M158: 2 | N158: 34676 | O158: 2850 | P158: 0 | Q158: 14391 | R158: 3000 | S158: 13975 | T158: 1425 | U158: 1619 | V158: 0.079 | W158: 0.46 | X158: 0
A159: 9_23 | B159: 9 | C159: 27 | D159: 9_27 | E159: 75 | F159: 3 | G159: 9 | H159: 23 | I159: 4354.1 | J159: 0 | K159: 1932 | L159: 1932 | M159: 2 | N159: 31964 | O159: 2850 | P159: 0 | Q159: 14391 | R159: 3000 | S159: 7535 | T159: 1859 | U159: 1619 | V159: 0.079 | W159: 0.6 | X159: 0
A160: 9_24 | B160: 9 | C160: 28 | D160: 9_28 | E160: 75 | F160: 3 | G160: 9 | H160: 24 | I160: 2883.7 | J160: 0 | K160: 1932 | L160: 1932 | M160: 2 | N160: 29406 | O160: 2850 | P160: 0 | Q160: 14391 | R160: 3000 | S160: 6323 | T160: 1983 | U160: 1619 | V160: 0.079 | W160: 0.64 | X160: 0
A161: 9_1 | B161: 9 | C161: 29 | D161: 9_29 | E161: 75 | F161: 3 | G161: 10 | H161: 1 | I161: 905.2 | J161: 0 | K161: 1932 | L161: 1932 | M161: 2 | N161: 27520 | O161: 2850 | P161: 0 | Q161: 14391 | R161: 3000 | S161: 6323 | T161: 2076 | U161: 1619 | V161: 0.079 | W161: 0.67 | X161: 0
A162: 9_2 | B162: 9 | C162: 30 | D162: 9_30 | E162: 75 | F162: 3 | G162: 10 | H162: 2 | I162: 239.3 | J162: 0 | K162: 1932 | L162: 1932 | M162: 2 | N162: 26947 | O162: 2850 | P162: 0 | Q162: 14391 | R162: 3000 | S162: 6323 | T162: 2169 | U162: 1619 | V162: 0.079 | W162: 0.7 | X162: 0
A163: 10_4 | B163: 10 | C163: 1 | D163: 10_1 | E163: 75 | F163: 3 | G163: 10 | H163: 4 | I163: 260.2 | J163: 0 | K163: 1932 | L163: 1932 | M163: 2 | N163: 27050 | O163: 2850 | P163: 0 | Q163: 14473 | R163: 3000 | S163: 6323 | T163: 2169 | U163: 1537 | V163: 0.075 | W163: 0.7 | X163: 0
A164: 10_5 | B164: 10 | C164: 2 | D164: 10_2 | E164: 75 | F164: 3 | G164: 10 | H164: 5 | I164: 1063.1 | J164: 0 | K164: 1932 | L164: 1932 | M164: 2 | N164: 28097 | O164: 2850 | P164: 0 | Q164: 14500 | R164: 3000 | S164: 6323 | T164: 2385 | U164: 1509 | V164: 0.074 | W164: 0.77 | X164: 0
A165: 10_6 | B165: 10 | C165: 3 | D165: 10_3 | E165: 75 | F165: 3 | G165: 10 | H165: 6 | I165: 3057.1 | J165: 0 | K165: 1932 | L165: 1932 | M165: 2 | N165: 30616 | O165: 2850 | P165: 0 | Q165: 14500 | R165: 3000 | S165: 7003 | T165: 2231 | U165: 1509 | V165: 0.074 | W165: 0.72 | X165: 0
A166: 10_7 | B166: 10 | C166: 4 | D166: 10_4 | E166: 75 | F166: 3 | G166: 10 | H166: 7 | I166: 99.4 | J166: 0 | K166: 1932 | L166: 1932 | M166: 2 | N166: 34269 | O166: 2850 | P166: 0 | Q166: 14500 | R166: 3000 | S166: 14985 | T166: 1735 | U166: 1509 | V166: 0.074 | W166: 0.56 | X166: 0
A167: 10_8 | B167: 10 | C167: 5 | D167: 10_5 | E167: 75 | F167: 3 | G167: 10 | H167: 8 | I167: 99.4 | J167: 0 | K167: 1932 | L167: 1932 | M167: 2 | N167: 36631 | O167: 2850 | P167: 0 | Q167: 14500 | R167: 3000 | S167: 17254 | T167: 1828 | U167: 1509 | V167: 0.074 | W167: 0.59 | X167: 0
A168: 10_9 | B168: 10 | C168: 6 | D168: 10_6 | E168: 75 | F168: 3 | G168: 10 | H168: 9 | I168: 99.4 | J168: 0 | K168: 1932 | L168: 1932 | M168: 2 | N168: 37083 | O168: 2850 | P168: 0 | Q168: 14500 | R168: 3000 | S168: 17644 | T168: 1890 | U168: 1509 | V168: 0.074 | W168: 0.61 | X168: 0
A169: 10_10 | B169: 10 | C169: 7 | D169: 10_7 | E169: 75 | F169: 3 | G169: 10 | H169: 10 | I169: 99.4 | J169: 0 | K169: 1932 | L169: 1932 | M169: 2 | N169: 36862 | O169: 2850 | P169: 0 | Q169: 14500 | R169: 3000 | S169: 17454 | T169: 1859 | U169: 1509 | V169: 0.074 | W169: 0.6 | X169: 0
A170: 11_24 | B170: 11 | C170: 1 | D170: 11_1 | E170: 75 | F170: 3 | G170: 10 | H170: 24 | I170: 774 | J170: 0 | K170: 1932 | L170: 1932 | M170: 2 | N170: 29187 | O170: 2850 | P170: 0 | Q170: 15847 | R170: 3000 | S170: 7594 | T170: 1146 | U170: 162 | V170: 0.008 | W170: 0.37 | X170: 0
A171: 11_1 | B171: 11 | C171: 2 | D171: 11_2 | E171: 75 | F171: 3 | G171: 11 | H171: 1 | I171: 138.9 | J171: 0 | K171: 1932 | L171: 1932 | M171: 2 | N171: 27274 | O171: 2850 | P171: 0 | Q171: 15847 | R171: 3000 | S171: 6285 | T171: 1177 | U171: 162 | V171: 0.008 | W171: 0.38 | X171: 0
A172: 12_4 | B172: 12 | C172: 1 | D172: 12_1 | E172: 75 | F172: 3 | G172: 11 | H172: 4 | I172: 385.3 | J172: 0 | K172: 1932 | L172: 1932 | M172: 2 | N172: 26818 | O172: 2850 | P172: 0 | Q172: 15981 | R172: 3000 | S172: 6285 | T172: 341 | U172: 28 | V172: 0.001 | W172: 0.11 | X172: 0
A173: 12_5 | B173: 12 | C173: 2 | D173: 12_2 | E173: 75 | F173: 3 | G173: 11 | H173: 5 | I173: 1550.5 | J173: 0 | K173: 1932 | L173: 1932 | M173: 2 | N173: 27921 | O173: 2850 | P173: 0 | Q173: 15981 | R173: 3000 | S173: 6285 | T173: 279 | U173: 28 | V173: 0.001 | W173: 0.09 | X173: 0
A174: 12_6 | B174: 12 | C174: 3 | D174: 12_3 | E174: 75 | F174: 3 | G174: 11 | H174: 6 | I174: 2429.2 | J174: 0 | K174: 1932 | L174: 1932 | M174: 2 | N174: 30575 | O174: 2850 | P174: 0 | Q174: 15981 | R174: 3000 | S174: 7813 | T174: 527 | U174: 28 | V174: 0.001 | W174: 0.17 | X174: 0
A175: 13_24 | B175: 13 | C175: 1 | D175: 13_1 | E175: 75 | F175: 3 | G175: 11 | H175: 24 | I175: 93.2 | J175: 0 | K175: 1932 | L175: 1932 | M175: 2 | N175: 28963 | O175: 2850 | P175: 0 | Q175: 15981 | R175: 3000 | S175: 7886 | T175: 1177 | U175: 28 | V175: 0.001 | W175: 0.38 | X175: 0
A176: 14_7 | B176: 14 | C176: 1 | D176: 14_1 | E176: 79 | F176: 4 | G176: 8 | H176: 7 | I176: 2223.8 | J176: 0 | K176: 1936 | L176: 1936 | M176: 2 | N176: 35228 | O176: 2850 | P176: 0 | Q176: 14139 | R176: 3000 | S176: 15489 | T176: 403 | U176: 1880 | V176: 0.092 | W176: 0.13 | X176: 0
A177: 14_8 | B177: 14 | C177: 2 | D177: 14_2 | E177: 79 | F177: 4 | G177: 8 | H177: 8 | I177: 2622.3 | J177: 0 | K177: 1936 | L177: 1936 | M177: 2 | N177: 37735 | O177: 2850 | P177: 0 | Q177: 14139 | R177: 3000 | S177: 17598 | T177: 403 | U177: 1880 | V177: 0.092 | W177: 0.13 | X177: 0
A178: 14_9 | B178: 14 | C178: 3 | D178: 14_3 | E178: 79 | F178: 4 | G178: 8 | H178: 9 | I178: 2622.4 | J178: 0 | K178: 1936 | L178: 1936 | M178: 2 | N178: 38109 | O178: 2850 | P178: 0 | Q178: 14139 | R178: 3000 | S178: 17941 | T178: 434 | U178: 1881 | V178: 0.092 | W178: 0.14 | X178: 0
A179: 14_10 | B179: 14 | C179: 4 | D179: 14_4 | E179: 79 | F179: 4 | G179: 8 | H179: 10 | I179: 2676.8 | J179: 0 | K179: 1936 | L179: 1936 | M179: 2 | N179: 37787 | O179: 2850 | P179: 0 | Q179: 14085 | R179: 3000 | S179: 17650 | T179: 403 | U179: 1935 | V179: 0.094 | W179: 0.13 | X179: 0
A180: 14_11 | B180: 14 | C180: 5 | D180: 14_5 | E180: 79 | F180: 4 | G180: 8 | H180: 11 | I180: 2681 | J180: 0 | K180: 1936 | L180: 1936 | M180: 2 | N180: 37151 | O180: 2850 | P180: 0 | Q180: 14081 | R180: 3000 | S180: 16952 | T180: 465 | U180: 1939 | V180: 0.095 | W180: 0.15 | X180: 0
A181: 14_12 | B181: 14 | C181: 6 | D181: 14_6 | E181: 79 | F181: 4 | G181: 8 | H181: 12 | I181: 2681 | J181: 0 | K181: 1936 | L181: 1936 | M181: 2 | N181: 36245 | O181: 2850 | P181: 0 | Q181: 14081 | R181: 3000 | S181: 15538 | T181: 434 | U181: 1939 | V181: 0.095 | W181: 0.14 | X181: 0
A182: 14_13 | B182: 14 | C182: 7 | D182: 14_7 | E182: 79 | F182: 4 | G182: 8 | H182: 13 | I182: 2681 | J182: 0 | K182: 1936 | L182: 1936 | M182: 2 | N182: 35434 | O182: 2850 | P182: 0 | Q182: 14081 | R182: 3000 | S182: 13854 | T182: 496 | U182: 1939 | V182: 0.095 | W182: 0.16 | X182: 0
A183: 14_14 | B183: 14 | C183: 8 | D183: 14_8 | E183: 79 | F183: 4 | G183: 8 | H183: 14 | I183: 2681 | J183: 0 | K183: 1936 | L183: 1936 | M183: 2 | N183: 34723 | O183: 2850 | P183: 0 | Q183: 14081 | R183: 3000 | S183: 13143 | T183: 496 | U183: 1939 | V183: 0.095 | W183: 0.16 | X183: 0
A184: 14_15 | B184: 14 | C184: 9 | D184: 14_9 | E184: 79 | F184: 4 | G184: 8 | H184: 15 | I184: 2681 | J184: 0 | K184: 1936 | L184: 1936 | M184: 2 | N184: 34277 | O184: 2850 | P184: 0 | Q184: 14081 | R184: 3000 | S184: 12914 | T184: 279 | U184: 1939 | V184: 0.095 | W184: 0.09 | X184: 0
A185: 14_16 | B185: 14 | C185: 10 | D185: 14_10 | E185: 79 | F185: 4 | G185: 8 | H185: 16 | I185: 2681 | J185: 0 | K185: 1936 | L185: 1936 | M185: 2 | N185: 34605 | O185: 2850 | P185: 0 | Q185: 14081 | R185: 3000 | S185: 14099 | T185: 248 | U185: 1939 | V185: 0.095 | W185: 0.08 | X185: 0
A186: 14_17 | B186: 14 | C186: 11 | D186: 14_11 | E186: 79 | F186: 4 | G186: 8 | H186: 17 | I186: 2681 | J186: 0 | K186: 1936 | L186: 1936 | M186: 2 | N186: 36525 | O186: 2850 | P186: 0 | Q186: 14081 | R186: 3000 | S186: 16233 | T186: 558 | U186: 1939 | V186: 0.095 | W186: 0.18 | X186: 0
A187: 14_18 | B187: 14 | C187: 12 | D187: 14_12 | E187: 79 | F187: 4 | G187: 8 | H187: 18 | I187: 2681 | J187: 0 | K187: 1936 | L187: 1936 | M187: 2 | N187: 38965 | O187: 2850 | P187: 0 | Q187: 14081 | R187: 3000 | S187: 18487 | T187: 744 | U187: 1939 | V187: 0.095 | W187: 0.24 | X187: 0
A188: 14_19 | B188: 14 | C188: 13 | D188: 14_13 | E188: 79 | F188: 4 | G188: 8 | H188: 19 | I188: 2681 | J188: 0 | K188: 1936 | L188: 1936 | M188: 2 | N188: 39257 | O188: 2850 | P188: 0 | Q188: 14081 | R188: 3000 | S188: 18531 | T188: 991 | U188: 1939 | V188: 0.095 | W188: 0.32 | X188: 0
A189: 14_20 | B189: 14 | C189: 14 | D189: 14_14 | E189: 79 | F189: 4 | G189: 8 | H189: 20 | I189: 2681 | J189: 0 | K189: 1936 | L189: 1936 | M189: 2 | N189: 38230 | O189: 2850 | P189: 0 | Q189: 14081 | R189: 3000 | S189: 17132 | T189: 1363 | U189: 1939 | V189: 0.095 | W189: 0.44 | X189: 0
A190: 14_21 | B190: 14 | C190: 15 | D190: 14_15 | E190: 79 | F190: 4 | G190: 8 | H190: 21 | I190: 2681 | J190: 0 | K190: 1936 | L190: 1936 | M190: 2 | N190: 36877 | O190: 2850 | P190: 0 | Q190: 14081 | R190: 3000 | S190: 15656 | T190: 1487 | U190: 1939 | V190: 0.095 | W190: 0.48 | X190: 0
A191: 14_22 | B191: 14 | C191: 16 | D191: 14_16 | E191: 79 | F191: 4 | G191: 8 | H191: 22 | I191: 2681 | J191: 0 | K191: 1936 | L191: 1936 | M191: 2 | N191: 35006 | O191: 2850 | P191: 0 | Q191: 14081 | R191: 3000 | S191: 13121 | T191: 1611 | U191: 1939 | V191: 0.095 | W191: 0.52 | X191: 0
A192: 14_23 | B192: 14 | C192: 17 | D192: 14_17 | E192: 79 | F192: 4 | G192: 8 | H192: 23 | I192: 5613.9 | J192: 0 | K192: 1936 | L192: 1936 | M192: 2 | N192: 32262 | O192: 2850 | P192: 0 | Q192: 14081 | R192: 3000 | S192: 7062 | T192: 1549 | U192: 1939 | V192: 0.095 | W192: 0.5 | X192: 0
A193: 14_24 | B193: 14 | C193: 18 | D193: 14_18 | E193: 79 | F193: 4 | G193: 8 | H193: 24 | I193: 4082.8 | J193: 0 | K193: 1936 | L193: 1936 | M193: 2 | N193: 29705 | O193: 2850 | P193: 0 | Q193: 14081 | R193: 3000 | S193: 5912 | T193: 1673 | U193: 1939 | V193: 0.095 | W193: 0.54 | X193: 0
A194: 15_4 | B194: 15 | C194: 1 | D194: 15_1 | E194: 79 | F194: 4 | G194: 9 | H194: 4 | I194: 70 | J194: 0 | K194: 1936 | L194: 1936 | M194: 2 | N194: 24768 | O194: 2850 | P194: 0 | Q194: 13560 | R194: 3000 | S194: 5912 | T194: 1270 | U194: 2460 | V194: 0.12 | W194: 0.41 | X194: 0
A195: 15_5 | B195: 15 | C195: 2 | D195: 15_2 | E195: 79 | F195: 4 | G195: 9 | H195: 5 | I195: 1044.1 | J195: 0 | K195: 1936 | L195: 1936 | M195: 2 | N195: 25742 | O195: 2850 | P195: 0 | Q195: 13560 | R195: 3000 | S195: 5912 | T195: 1270 | U195: 2460 | V195: 0.12 | W195: 0.41 | X195: 0
A196: 15_6 | B196: 15 | C196: 3 | D196: 15_3 | E196: 79 | F196: 4 | G196: 9 | H196: 6 | I196: 2298.6 | J196: 0 | K196: 1936 | L196: 1936 | M196: 2 | N196: 28181 | O196: 2850 | P196: 0 | Q196: 13560 | R196: 3000 | S196: 7313 | T196: 1053 | U196: 2460 | V196: 0.12 | W196: 0.34 | X196: 0
A197: =CONCATENATE(B197,"_",H197) -> 16_1 | B197: 16 | C197: 1 | D197: 16_1 | E197: 84 | F197: 4 | G197: 5 | H197: 1 | I197: 1015.4 | J197: 0 | K197: 1941 | L197: 1941 | M197: 1 | N197: 24979 | O197: 1244 | P197: 0 | Q197: 13180 | R197: 3000 | S197: 6424 | T197: 403 | U197: 2839 | V197: 0.138 | W197: 0.13 | X197: 0
A198: 16_2 | B198: =IF(E198=E197, (IF(F198=F197, (IF(G198=G197, (IF(H198=H197+1,B197,B197+1)), (IF(AND(G198=G197+1,H198=1,H197=24),B197,B197+1)))), B197+1)), B197+1) -> 16 | C198: =IF(B198=B197,C197+1,1) -> 2 | D198: =CONCATENATE(B198,"_",C198) -> 16_2 | E198: 84 | F198: 4 | G198: 5 | H198: 2 | I198: 1166.6 | J198: 0 | K198: 1941 | L198: 1941 | M198: 1 | N198: 24432 | O198: 2850 | P198: 0 | Q198: 13180 | R198: 3000 | S198: 5912 | T198: 217 | U198: 2839 | V198: 0.138 | W198: 0.07 | X198: 0
A199: 16_3 | B199: 16 | C199: 3 | D199: 16_3 | E199: 84 | F199: 4 | G199: 5 | H199: 3 | I199: 1005 | J199: 0 | K199: 1941 | L199: 1941 | M199: 1 | N199: 24279 | O199: 2850 | P199: 0 | Q199: 13251 | R199: 3000 | S199: 5912 | T199: 155 | U199: 2769 | V199: 0.135 | W199: 0.05 | X199: 0
A200: 16_4 | B200: 16 | C200: 4 | D200: 16_4 | E200: 84 | F200: 4 | G200: 5 | H200: 4 | I200: 837.5 | J200: 0 | K200: 1941 | L200: 1941 | M200: 1 | N200: 24524 | O200: 2850 | P200: 0 | Q200: 13694 | R200: 3000 | S200: 5912 | T200: 124 | U200: 2325 | V200: 0.113 | W200: 0.04 | X200: 0
... 3803 more rows

Sheet Event Summary
A1: Curtailment Event Summary | P1: Prototype Spinner Chart - 2015 Assessment | Z1: Wind Capacity | AB1: 3096 | AC1: << Input
A2: Base Case, Historic (2008-10) wind, 210 games sequential hydro, lockstep temperature | U2: Percent of Range
A3: Includes purchase ahead option | P3: Event | Q3: Dur | R3: Mag | S3: Avg Mag | T3: Peak | U3: Hyd | V3: Temp | W3: Thr | X3: Wind | Y3: Load | Z3: Hydro | AA3: Therm | AB3: Month | AC3: Game
D4: Dur | E4: Mag | F4: Peak | G4: ROff | H4: Hyd | I4: Event | J4: Temp | K4: FOut | L4: Dem | M4: Hydro | N4: Therm | O4: Wind | P4: 1 | Q4: =LOOKUP(P4,A6:A400,D6:D400) -> 38 | R4: =LOOKUP(P4,A6:A400,E6:E400) -> 43548 | S4: =R4/Q4 -> 1146 | T4: =LOOKUP(P4,A6:A400,F6:F400) -> 4398 | U4: =100-LOOKUP(P4,A6:A400,H6:H400) -> 3 | V4: =LOOKUP(P4,A6:A400,J6:J400) -> 2 | W4: =100-LOOKUP(P4,A6:A400,K6:K400)*100 -> 93 | X4: =LOOKUP(P4,A6:A400,O6:O400)*100/$AB$1 -> 45.60723514 | Y4: =LOOKUP(P4,A6:A400,L6:L400) -> 33008 | Z4: =LOOKUP(P4,A6:A400,M6:M400) -> 12330 | AA4: =LOOKUP(P4,A6:A400,N6:N400) -> 14614 | AB4: =LOOKUP(P4,A6:A400,C6:C400) -> Dec | AC4: =LOOKUP(P4,A6:A400,B6:B400) -> 4
A5: No | B5: Game | C5: Mon | D5: hours | E5: mw-hrs | F5: mw-hrs | G5: maf | H5: (%) | I5: Temp | J5: (%) | K5: (%) | L5: (averaged over the event)
A6: 1 | B6: 4 | C6: Dec | D6: 38 | E6: 43548 | F6: 4398 | G6: 3.4 | H6: 97 | I6: 15.9 | J6: 2 | K6: 0.07 | L6: 33008 | M6: 12330 | N6: 14614 | O6: 1412
A7: 2 | B7: 12 | C7: Aug | D7: 18 | E7: 17359 | F7: 1222 | G7: 6.6 | H7: 88 | I7: 71.8 | J7: 57 | K7: 0.17 | L7: 24759 | M7: 13548 | N7: 10342 | O7: 95 | AC7: Cycle
A8: 3 | B8: 13 | C8: Jan | D8: 2 | E8: 1832 | F8: 950 | G8: 4.5 | H8: 81 | I8: 32.3 | J8: 51 | K8: 0.07 | L8: 26526 | M8: 6994 | N8: 14598 | O8: 62 | AC8: Thru
A9: 4 | B9: 49 | C9: Aug | D9: 17 | E9: 7227 | F9: 766 | G9: 6.5 | H9: 89 | I9: 71.9 | J9: 57 | K9: 0.06 | L9: 25923 | M9: 13392 | N9: 12449 | O9: 69 | AC9: Events
A10: 5 | B10: 52 | C10: Aug | D10: 8 | E10: 2591 | F10: 363 | G10: 6.3 | H10: 92 | I10: 66.5 | J10: 33 | K10: 0.13 | L10: 25889 | M10: 14147 | N10: 11108 | O10: 108
A11: 6 | B11: 64 | C11: Aug | D11: 12 | E11: 8703 | F11: 760 | G11: 5.6 | H11: 100 | I11: 66.3 | J11: 39 | K11: 0.07 | L11: 27712 | M11: 14236 | N11: 12174 | O11: 738
A12: 7 | B12: 64 | C12: Aug | D12: 17 | E12: 13298 | F12: 878 | G12: 5.6 | H12: 100 | I12: 67.7 | J12: 53 | K12: 0.08 | L12: 25702 | M12: 13092 | N12: 12005 | O12: 235
A13: 8 | B13: 64 | C13: Aug | D13: 17 | E13: 1669 | F13: 268 | G13: 5.6 | H13: 100 | I13: 64 | J13: 18 | K13: 0.08 | L13: 25217 | M13: 12965 | N13: 12094 | O13: 472
A14: 9 | B14: 75 | C14: Dec | D14: 30 | E14: 56416 | F14: 4695 | G14: 3.4 | H14: 97 | I14: 16.9 | J14: 6 | K14: 0.08 | L14: 33142 | M14: 12368 | N14: 14447 | O14: 941
A15: 10 | B15: 75 | C15: Dec | D15: 7 | E15: 4778 | F15: 3057 | G15: 3.4 | H15: 97 | I15: 16.4 | J15: 3 | K15: 0.07 | L15: 32944 | M15: 12427 | N15: 14496 | O15: 2014
A16: 11 | B16: 75 | C16: Dec | D16: 2 | E16: 913 | F16: 774 | G16: 3.4 | H16: 97 | I16: 15.8 | J16: 2 | K16: 0.01 | L16: 28230 | M16: 6940 | N16: 15847 | O16: 1162
A17: 12 | B17: 75 | C17: Dec | D17: 3 | E17: 4365 | F17: 2429 | G17: 3.4 | H17: 97 | I17: 15.1 | J17: 0 | K17: 0 | L17: 28438 | M17: 6794 | N17: 15981 | O17: 382
A18: 13 | B18: 75 | C18: Dec | D18: 1 | E18: 93 | F18: 93 | G18: 3.4 | H18: 97 | I18: 15.1 | J18: 0 | K18: 0 | L18: 28963 | M18: 7886 | N18: 15981 | O18: 1177
A19: 14 | B19: 79 | C19: Jan | D19: 18 | E19: 52014 | F19: 5614 | G19: 3.8 | H19: 87 | I19: 41.6 | J19: 79 | K19: 0.09 | L19: 36007 | M19: 14851 | N19: 14091 | O19: 780
A20: 15 | B20: 79 | C20: Jan | D20: 3 | E20: 3413 | F20: 2299 | G20: 3.8 | H20: 87 | I20: 42 | J20: 86 | K20: 0.12 | L20: 26230 | M20: 6379 | N20: 13560 | O20: 1198
A21: 16 | B21: 84 | C21: Jan | D21: 6 | E21: 7696 | F21: 1886 | G21: 4.5 | H21: 81 | I21: 32.3 | J21: 51 | K21: 0.12 | L21: 25211 | M21: 6353 | N21: 13449 | O21: 170
A22: 17 | B22: 107 | C22: Dec | D22: 2 | E22: 131 | F22: 65 | G22: 4.3 | H22: 90 | I22: 7.8 | J22: 0 | K22: 0.08 | L22: 26616 | M22: 8410 | N22: 14284 | O22: 31
A23: 18 | B23: 107 | C23: Dec | D23: 3 | E23: 196 | F23: 65 | G23: 4.3 | H23: 90 | I23: 7.8 | J23: 0 | K23: 0.08 | L23: 27894 | M23: 9689 | N23: 14284 | O23: 31
A24: 19 | B24: 120 | C24: Aug | D24: 9 | E24: 1725 | F24: 398 | G24: 6.5 | H24: 89 | I24: 73.7 | J24: 87 | K24: 0.08 | L24: 25935 | M24: 13626 | N24: 12016 | O24: 338
A25: 20 | B25: 120 | C25: Aug | D25: 7 | E25: 3014 | F25: 570 | G25: 6.5 | H25: 89 | I25: 72.7 | J25: 68 | K25: 0.07 | L25: 24960 | M25: 12686 | N25: 12279 | O25: 310
A26: 21 | B26: 120 | C26: Aug | D26: 7 | E26: 1384 | F26: 218 | G26: 6.5 | H26: 89 | I26: 72.7 | J26: 68 | K26: 0.05 | L26: 26390 | M26: 13409 | N26: 12512 | O26: 554
A27: 22 | B27: 120 | C27: Aug | D27: 18 | E27: 15535 | F27: 1388 | G27: 6.5 | H27: 89 | I27: 71.9 | J27: 57 | K27: 0.08 | L27: 25664 | M27: 12869 | N27: 12056 | O27: 67
A28: 23 | B28: 128 | C28: Aug | D28: 8 | E28: 2985 | F28: 566 | G28: 6 | H28: 96 | I28: 67 | J28: 42 | K28: 0.16 | L28: 25764 | M28: 14202 | N28: 10586 | O28: 910
A29: 24 | B29: 128 | C29: Aug | D29: 17 | E29: 14702 | F29: 1196 | G29: 6 | H29: 96 | I29: 66.5 | J29: 46 | K29: 0.16 | L29: 24636 | M29: 13410 | N29: 10539 | O29: 235
A30: 25 | B30: 128 | C30: Aug | D30: 16 | E30: 15168 | F30: 1422 | G30: 6 | H30: 96 | I30: 67.4 | J30: 37 | K30: 0.13 | L30: 25624 | M30: 13786 | N30: 11089 | O30: 463
A31: 26 | B31: 128 | C31: Aug | D31: 17 | E31: 9575 | F31: 564 | G31: 6 | H31: 96 | I31: 61.9 | J31: 12 | K31: 0.08 | L31: 25756 | M31: 13480 | N31: 12056 | O31: 69
A32: 27 | B32: 131 | C32: Aug | D32: 1 | E32: 31 | F32: 31 | G32: 5.9 | H32: 96 | I32: 62.2 | J32: 7 | K32: 0.15 | L32: 19774 | M32: 6888 | N32: 10727 | O32: 1549
A33: 28 | B33: 146 | C33: Dec | D33: 59 | E33: 137907 | F33: 5701 | G33: 3.4 | H33: 97 | I33: 16.6 | J33: 5 | K33: 0.09 | L33: 33463 | M33: 12808 | N33: 14075 | O33: 781
A34: 29 | B34: 146 | C34: Dec | D34: 2 | E34: 3757 | F34: 2860 | G34: 3.4 | H34: 97 | I34: 15.1 | J34: 0 | K34: 0.04 | L34: 29248 | M34: 6549 | N34: 15106 | O34: 1890
A35: 30 | B35: 146 | C35: Dec | D35: 7 | E35: 3027 | F35: 432 | G35: 3.4 | H35: 97 | I35: 15.1 | J35: 0 | K35: 0.07 | L35: 36038 | M35: 16271 | N35: 14576 | O35: 1350
A36: 31 | B36: 146 | C36: Dec | D36: 2 | E36: 5720 | F36: 2860 | G36: 3.4 | H36: 97 | I36: 15.1 | J36: 0 | K36: 0.04 | L36: 30246 | M36: 8114 | N36: 15106 | O36: 341
A37: 32 | B37: 206 | C37: Aug | D37: 8 | E37: 2170 | F37: 278 | G37: 5.6 | H37: 100 | I37: 67.7 | J37: 53 | K37: 0.06 | L37: 26234 | M37: 13442 | N37: 12473 | O37: 356
R55: Event
R56: ='Event Summary'!P4 -> 1
T57: Event | U57: Curt
R58: Mapping | S58: Index | T58: Hour | U58: Mag
R59: =CONCATENATE($R$56,"_",S59) -> 1_1 | S59: 1 | T59: =IF(ISERROR(VLOOKUP($R59,'Curtailment Record'!$D$4:$I$4003,5,FALSE)),"",VLOOKUP($R59,'Curtailment Record'!$D$4:$I$4003,5,FALSE)) -> 1 | U59: =IF(ISERROR(VLOOKUP($R59,'Curtailment Record'!$D$4:$I$4003,6,FALSE)),"",VLOOKUP($R59,'Curtailment Record'!$D$4:$I$4003,6,FALSE)) -> 1793.9
R60: =CONCATENATE($R$56,"_",S60) -> 1_2 | S60: 2 | T60: =IF(ISERROR(VLOOKUP($R60,'Curtailment Record'!$D$4:$I$4003,5,FALSE)),"",VLOOKUP($R60,'Curtailment Record'!$D$4:$I$4003,5,FALSE)) -> 2 | U60: =IF(ISERROR(VLOOKUP($R60,'Curtailment Record'!$D$4:$I$4003,6,FALSE)),"",VLOOKUP($R60,'Curtailment Record'!$D$4:$I$4003,6,FALSE)) -> 1035.1
R61: 1_3 | S61: 3 | T61: =IF(ISERROR(VLOOKUP($R61,'Curtailment Record'!$D$4:$I$4003,5,FALSE)),"",VLOOKUP($R61,'Curtailment Record'!$D$4:$I$4003,5,FALSE)) -> 3 | U61: =IF(ISERROR(VLOOKUP($R61,'Curtailment Record'!$D$4:$I$4003,6,FALSE)),"",VLOOKUP($R61,'Curtailment Record'!$D$4:$I$4003,6,FALSE)) -> 937.5
R62: 1_4 | S62: 4 | T62: =IF(ISERROR(VLOOKUP($R62,'Curtailment Record'!$D$4:$I$4003,5,FALSE)),"",VLOOKUP($R62,'Curtailment Record'!$D$4:$I$4003,5,FALSE)) -> 4 | U62: =IF(ISERROR(VLOOKUP($R62,'Curtailment Record'!$D$4:$I$4003,6,FALSE)),"",VLOOKUP($R62,'Curtailment Record'!$D$4:$I$4003,6,FALSE)) -> 1319.7
R63: 1_5 | S63: 5 | T63: =IF(ISERROR(VLOOKUP($R63,'Curtailment Record'!$D$4:$I$4003,5,FALSE)),"",VLOOKUP($R63,'Curtailment Record'!$D$4:$I$4003,5,FALSE)) -> 5 | U63: =IF(ISERROR(VLOOKUP($R63,'Curtailment Record'!$D$4:$I$4003,6,FALSE)),"",VLOOKUP($R63,'Curtailment Record'!$D$4:$I$4003,6,FALSE)) -> 2274.6
R64: 1_6 | S64: 6 | T64: =IF(ISERROR(VLOOKUP($R64,'Curtailment Record'!$D$4:$I$4003,5,FALSE)),"",VLOOKUP($R64,'Curtailment Record'!$D$4:$I$4003,5,FALSE)) -> 6 | U64: =IF(ISERROR(VLOOKUP($R64,'Curtailment Record'!$D$4:$I$4003,6,FALSE)),"",VLOOKUP($R64,'Curtailment Record'!$D$4:$I$4003,6,FALSE)) -> 3780.4
R65: 1_7 | S65: 7 | T65: =IF(ISERROR(VLOOKUP($R65,'Curtailment Record'!$D$4:$I$4003,5,FALSE)),"",VLOOKUP($R65,'Curtailment Record'!$D$4:$I$4003,5,FALSE)) -> 7 | U65: =IF(ISERROR(VLOOKUP($R65,'Curtailment Record'!$D$4:$I$4003,6,FALSE)),"",VLOOKUP($R65,'Curtailment Record'!$D$4:$I$4003,6,FALSE)) -> 822.7
R66: 1_8 | S66: 8 | T66: =IF(ISERROR(VLOOKUP($R66,'Curtailment Record'!$D$4:$I$4003,5,FALSE)),"",VLOOKUP($R66,'Curtailment Record'!$D$4:$I$4003,5,FALSE)) -> 8 | U66: =IF(ISERROR(VLOOKUP($R66,'Curtailment Record'!$D$4:$I$4003,6,FALSE)),"",VLOOKUP($R66,'Curtailment Record'!$D$4:$I$4003,6,FALSE)) -> 822.7
R67: 1_9 | S67: 9 | T67: =IF(ISERROR(VLOOKUP($R67,'Curtailment Record'!$D$4:$I$4003,5,FALSE)),"",VLOOKUP($R67,'Curtailment Record'!$D$4:$I$4003,5,FALSE)) -> 9 | U67: =IF(ISERROR(VLOOKUP($R67,'Curtailment Record'!$D$4:$I$4003,6,FALSE)),"",VLOOKUP($R67,'Curtailment Record'!$D$4:$I$4003,6,FALSE)) -> 822.7
R68: 1_10 | S68: 10 | T68: =IF(ISERROR(VLOOKUP($R68,'Curtailment Record'!$D$4:$I$4003,5,FALSE)),"",VLOOKUP($R68,'Curtailment Record'!$D$4:$I$4003,5,FALSE)) -> 10 | U68: =IF(ISERROR(VLOOKUP($R68,'Curtailment Record'!$D$4:$I$4003,6,FALSE)),"",VLOOKUP($R68,'Curtailment Record'!$D$4:$I$4003,6,FALSE)) -> 822.7
R69: 1_11 | S69: 11 | T69: =IF(ISERROR(VLOOKUP($R69,'Curtailment Record'!$D$4:$I$4003,5,FALSE)),"",VLOOKUP($R69,'Curtailment Record'!$D$4:$I$4003,5,FALSE)) -> 11 | U69: =IF(ISERROR(VLOOKUP($R69,'Curtailment Record'!$D$4:$I$4003,6,FALSE)),"",VLOOKUP($R69,'Curtailment Record'!$D$4:$I$4003,6,FALSE)) -> 822.7
R70: 1_12 | S70: 12 | T70: =IF(ISERROR(VLOOKUP($R70,'Curtailment Record'!$D$4:$I$4003,5,FALSE)),"",VLOOKUP($R70,'Curtailment Record'!$D$4:$I$4003,5,FALSE)) -> 12 | U70: =IF(ISERROR(VLOOKUP($R70,'Curtailment Record'!$D$4:$I$4003,6,FALSE)),"",VLOOKUP($R70,'Curtailment Record'!$D$4:$I$4003,6,FALSE)) -> 822.7
R71: 1_13 | S71: 13 | T71: =IF(ISERROR(VLOOKUP($R71,'Curtailment Record'!$D$4:$I$4003,5,FALSE)),"",VLOOKUP($R71,'Curtailment Record'!$D$4:$I$4003,5,FALSE)) -> 13 | U71: =IF(ISERROR(VLOOKUP($R71,'Curtailment Record'!$D$4:$I$4003,6,FALSE)),"",VLOOKUP($R71,'Curtailment Record'!$D$4:$I$4003,6,FALSE)) -> 822.7
R72: 1_14 | S72: 14 | T72: =IF(ISERROR(VLOOKUP($R72,'Curtailment Record'!$D$4:$I$4003,5,FALSE)),"",VLOOKUP($R72,'Curtailment Record'!$D$4:$I$4003,5,FALSE)) -> 14 | U72: =IF(ISERROR(VLOOKUP($R72,'Curtailment Record'!$D$4:$I$4003,6,FALSE)),"",VLOOKUP($R72,'Curtailment Record'!$D$4:$I$4003,6,FALSE)) -> 822.7
R73: 1_15 | S73: 15 | T73: =IF(ISERROR(VLOOKUP($R73,'Curtailment Record'!$D$4:$I$4003,5,FALSE)),"",VLOOKUP($R73,'Curtailment Record'!$D$4:$I$4003,5,FALSE)) -> 15 | U73: =IF(ISERROR(VLOOKUP($R73,'Curtailment Record'!$D$4:$I$4003,6,FALSE)),"",VLOOKUP($R73,'Curtailment Record'!$D$4:$I$4003,6,FALSE)) -> 822.7
R74: 1_16 | S74: 16 | T74: =IF(ISERROR(VLOOKUP($R74,'Curtailment Record'!$D$4:$I$4003,5,FALSE)),"",VLOOKUP($R74,'Curtailment Record'!$D$4:$I$4003,5,FALSE)) -> 16 | U74: =IF(ISERROR(VLOOKUP($R74,'Curtailment Record'!$D$4:$I$4003,6,FALSE)),"",VLOOKUP($R74,'Curtailment Record'!$D$4:$I$4003,6,FALSE)) -> 822.7
R75: 1_17 | S75: 17 | T75: =IF(ISERROR(VLOOKUP($R75,'Curtailment Record'!$D$4:$I$4003,5,FALSE)),"",VLOOKUP($R75,'Curtailment Record'!$D$4:$I$4003,5,FALSE)) -> 17 | U75: =IF(ISERROR(VLOOKUP($R75,'Curtailment Record'!$D$4:$I$4003,6,FALSE)),"",VLOOKUP($R75,'Curtailment Record'!$D$4:$I$4003,6,FALSE)) -> 822.7
R76: 1_18 | S76: 18 | T76: =IF(ISERROR(VLOOKUP($R76,'Curtailment Record'!$D$4:$I$4003,5,FALSE)),"",VLOOKUP($R76,'Curtailment Record'!$D$4:$I$4003,5,FALSE)) -> 18 | U76: =IF(ISERROR(VLOOKUP($R76,'Curtailment Record'!$D$4:$I$4003,6,FALSE)),"",VLOOKUP($R76,'Curtailment Record'!$D$4:$I$4003,6,FALSE)) -> 822.7
R77: 1_19 | S77: 19 | T77: =IF(ISERROR(VLOOKUP($R77,'Curtailment Record'!$D$4:$I$4003,5,FALSE)),"",VLOOKUP($R77,'Curtailment Record'!$D$4:$I$4003,5,FALSE)) -> 19 | U77: =IF(ISERROR(VLOOKUP($R77,'Curtailment Record'!$D$4:$I$4003,6,FALSE)),"",VLOOKUP($R77,'Curtailment Record'!$D$4:$I$4003,6,FALSE)) -> 822.7
R78: 1_20 | S78: 20 | T78: =IF(ISERROR(VLOOKUP($R78,'Curtailment Record'!$D$4:$I$4003,5,FALSE)),"",VLOOKUP($R78,'Curtailment Record'!$D$4:$I$4003,5,FALSE)) -> 20 | U78: =IF(ISERROR(VLOOKUP($R78,'Curtailment Record'!$D$4:$I$4003,6,FALSE)),"",VLOOKUP($R78,'Curtailment Record'!$D$4:$I$4003,6,FALSE)) -> 822.7
R79: 1_21 | S79: 21 | T79: =IF(ISERROR(VLOOKUP($R79,'Curtailment Record'!$D$4:$I$4003,5,FALSE)),"",VLOOKUP($R79,'Curtailment Record'!$D$4:$I$4003,5,FALSE)) -> 21 | U79: =IF(ISERROR(VLOOKUP($R79,'Curtailment Record'!$D$4:$I$4003,6,FALSE)),"",VLOOKUP($R79,'Curtailment Record'!$D$4:$I$4003,6,FALSE)) -> 822.7
R80: 1_22 | S80: 22 | T80: =IF(ISERROR(VLOOKUP($R80,'Curtailment Record'!$D$4:$I$4003,5,FALSE)),"",VLOOKUP($R80,'Curtailment Record'!$D$4:$I$4003,5,FALSE)) -> 22 | U80: =IF(ISERROR(VLOOKUP($R80,'Curtailment Record'!$D$4:$I$4003,6,FALSE)),"",VLOOKUP($R80,'Curtailment Record'!$D$4:$I$4003,6,FALSE)) -> 822.7
R81: 1_23 | S81: 23 | T81: =IF(ISERROR(VLOOKUP($R81,'Curtailment Record'!$D$4:$I$4003,5,FALSE)),"",VLOOKUP($R81,'Curtailment Record'!$D$4:$I$4003,5,FALSE)) -> 23 | U81: =IF(ISERROR(VLOOKUP($R81,'Curtailment Record'!$D$4:$I$4003,6,FALSE)),"",VLOOKUP($R81,'Curtailment Record'!$D$4:$I$4003,6,FALSE)) -> 4398.2
R82: 1_24 | S82: 24 | T82: =IF(ISERROR(VLOOKUP($R82,'Curtailment Record'!$D$4:$I$4003,5,FALSE)),"",VLOOKUP($R82,'Curtailment Record'!$D$4:$I$4003,5,FALSE)) -> 24 | U82: =IF(ISERROR(VLOOKUP($R82,'Curtailment Record'!$D$4:$I$4003,6,FALSE)),"",VLOOKUP($R82,'Curtailment Record'!$D$4:$I$4003,6,FALSE)) -> 3832.8
R83: 1_25 | S83: 25 | T83: =IF(ISERROR(VLOOKUP($R83,'Curtailment Record'!$D$4:$I$4003,5,FALSE)),"",VLOOKUP($R83,'Curtailment Record'!$D$4:$I$4003,5,FALSE)) -> 1 | U83: =IF(ISERROR(VLOOKUP($R83,'Curtailment Record'!$D$4:$I$4003,6,FALSE)),"",VLOOKUP($R83,'Curtailment Record'!$D$4:$I$4003,6,FALSE)) -> 2278.9
R84: 1_26 | S84: 26 | T84: =IF(ISERROR(VLOOKUP($R84,'Curtailment Record'!$D$4:$I$4003,5,FALSE)),"",VLOOKUP($R84,'Curtailment Record'!$D$4:$I$4003,5,FALSE)) -> 2 | U84: =IF(ISERROR(VLOOKUP($R84,'Curtailment Record'!$D$4:$I$4003,6,FALSE)),"",VLOOKUP($R84,'Curtailment Record'!$D$4:$I$4003,6,FALSE)) -> 1130.1
R85: 1_27 | S85: 27 | T85: =IF(ISERROR(VLOOKUP($R85,'Curtailment Record'!$D$4:$I$4003,5,FALSE)),"",VLOOKUP($R85,'Curtailment Record'!$D$4:$I$4003,5,FALSE)) -> 3 | U85: =IF(ISERROR(VLOOKUP($R85,'Curtailment Record'!$D$4:$I$4003,6,FALSE)),"",VLOOKUP($R85,'Curtailment Record'!$D$4:$I$4003,6,FALSE)) -> 189.6
R86: 1_28 | S86: 28 | T86: =IF(ISERROR(VLOOKUP($R86,'Curtailment Record'!$D$4:$I$4003,5,FALSE)),"",VLOOKUP($R86,'Curtailment Record'!$D$4:$I$4003,5,FALSE)) -> 4 | U86: =IF(ISERROR(VLOOKUP($R86,'Curtailment Record'!$D$4:$I$4003,6,FALSE)),"",VLOOKUP($R86,'Curtailment Record'!$D$4:$I$4003,6,FALSE)) -> 214.7
R87: 1_29 | S87: 29 | T87: =IF(ISERROR(VLOOKUP($R87,'Curtailment Record'!$D$4:$I$4003,5,FALSE)),"",VLOOKUP($R87,'Curtailment Record'!$D$4:$I$4003,5,FALSE)) -> 5 | U87: =IF(ISERROR(VLOOKUP($R87,'Curtailment Record'!$D$4:$I$4003,6,FALSE)),"",VLOOKUP($R87,'Curtailment Record'!$D$4:$I$4003,6,FALSE)) -> 1317.9
R88: 1_30 | S88: 30 | T88: =IF(ISERROR(VLOOKUP($R88,'Curtailment Record'!$D$4:$I$4003,5,FALSE)),"",VLOOKUP($R88,'Curtailment Record'!$D$4:$I$4003,5,FALSE)) -> 6 | U88: =IF(ISERROR(VLOOKUP($R88,'Curtailment Record'!$D$4:$I$4003,6,FALSE)),"",VLOOKUP($R88,'Curtailment Record'!$D$4:$I$4003,6,FALSE)) -> 3282.5
R89: 1_31 | S89: 31 | T89: =IF(ISERROR(VLOOKUP($R89,'Curtailment Record'!$D$4:$I$4003,5,FALSE)),"",VLOOKUP($R89,'Curtailment Record'!$D$4:$I$4003,5,FALSE)) -> 7 | U89: =IF(ISERROR(VLOOKUP($R89,'Curtailment Record'!$D$4:$I$4003,6,FALSE)),"",VLOOKUP($R89,'Curtailment Record'!$D$4:$I$4003,6,FALSE)) -> 324.8
R90: 1_32 | S90: 32 | T90: =IF(ISERROR(VLOOKUP($R90,'Curtailment Record'!$D$4:$I$4003,5,FALSE)),"",VLOOKUP($R90,'Curtailment Record'!$D$4:$I$4003,5,FALSE)) -> 8 | U90: =IF(ISERROR(VLOOKUP($R90,'Curtailment Record'!$D$4:$I$4003,6,FALSE)),"",VLOOKUP($R90,'Curtailment Record'!$D$4:$I$4003,6,FALSE)) -> 324.8
R91: =CONCATENATE($R$56,"_",S91) -> 1_33 | S91: 33 | T91: =IF(ISERROR(VLOOKUP($R91,'Curtailment Record'!$D$4:$I$4003,5,FALSE)),"",VLOOKUP($R91,'Curtailment Record'!$D$4:$I$4003,5,FALSE)) -> 9 | U91: =IF(ISERROR(VLOOKUP($R91,'Curtailment Record'!$D$4:$I$4003,6,FALSE)),"",VLOOKUP($R91,'Curtailment Record'!$D$4:$I$4003,6,FALSE)) -> 324.8
R92: 1_34 | S92: 34 | T92: =IF(ISERROR(VLOOKUP($R92,'Curtailment Record'!$D$4:$I$4003,5,FALSE)),"",VLOOKUP($R92,'Curtailment Record'!$D$4:$I$4003,5,FALSE)) -> 10 | U92: =IF(ISERROR(VLOOKUP($R92,'Curtailment Record'!$D$4:$I$4003,6,FALSE)),"",VLOOKUP($R92,'Curtailment Record'!$D$4:$I$4003,6,FALSE)) -> 324.8
R93: 1_35 | S93: 35 | T93: =IF(ISERROR(VLOOKUP($R93,'Curtailment Record'!$D$4:$I$4003,5,FALSE)),"",VLOOKUP($R93,'Curtailment Record'!$D$4:$I$4003,5,FALSE)) -> 11 | U93: =IF(ISERROR(VLOOKUP($R93,'Curtailment Record'!$D$4:$I$4003,6,FALSE)),"",VLOOKUP($R93,'Curtailment Record'!$D$4:$I$4003,6,FALSE)) -> 324.8
R94: 1_36 | S94: 36 | T94: =IF(ISERROR(VLOOKUP($R94,'Curtailment Record'!$D$4:$I$4003,5,FALSE)),"",VLOOKUP($R94,'Curtailment Record'!$D$4:$I$4003,5,FALSE)) -> 12 | U94: =IF(ISERROR(VLOOKUP($R94,'Curtailment Record'!$D$4:$I$4003,6,FALSE)),"",VLOOKUP($R94,'Curtailment Record'!$D$4:$I$4003,6,FALSE)) -> 324.8
R95: 1_37 | S95: 37 | T95: =IF(ISERROR(VLOOKUP($R95,'Curtailment Record'!$D$4:$I$4003,5,FALSE)),"",VLOOKUP($R95,'Curtailment Record'!$D$4:$I$4003,5,FALSE)) -> 13 | U95: =IF(ISERROR(VLOOKUP($R95,'Curtailment Record'!$D$4:$I$4003,6,FALSE)),"",VLOOKUP($R95,'Curtailment Record'!$D$4:$I$4003,6,FALSE)) -> 324.8
R96: 1_38 | S96: 38 | T96: =IF(ISERROR(VLOOKUP($R96,'Curtailment Record'!$D$4:$I$4003,5,FALSE)),"",VLOOKUP($R96,'Curtailment Record'!$D$4:$I$4003,5,FALSE)) -> 14 | U96: =IF(ISERROR(VLOOKUP($R96,'Curtailment Record'!$D$4:$I$4003,6,FALSE)),"",VLOOKUP($R96,'Curtailment Record'!$D$4:$I$4003,6,FALSE)) -> 324.8
R97: 1_39 | S97: 39 | T97: =IF(ISERROR(VLOOKUP($R97,'Curtailment Record'!$D$4:$I$4003,5,FALSE)),"",VLOOKUP($R97,'Curtailment Record'!$D$4:$I$4003,5,FALSE)) ->  | U97: =IF(ISERROR(VLOOKUP($R97,'Curtailment Record'!$D$4:$I$4003,6,FALSE)),"",VLOOKUP($R97,'Curtailment Record'!$D$4:$I$4003,6,FALSE)) -> 
R98: 1_40 | S98: 40 | T98: =IF(ISERROR(VLOOKUP($R98,'Curtailment Record'!$D$4:$I$4003,5,FALSE)),"",VLOOKUP($R98,'Curtailment Record'!$D$4:$I$4003,5,FALSE)) ->  | U98: =IF(ISERROR(VLOOKUP($R98,'Curtailment Record'!$D$4:$I$4003,6,FALSE)),"",VLOOKUP($R98,'Curtailment Record'!$D$4:$I$4003,6,FALSE)) -> 
R99: 1_41 | S99: 41 | T99: =IF(ISERROR(VLOOKUP($R99,'Curtailment Record'!$D$4:$I$4003,5,FALSE)),"",VLOOKUP($R99,'Curtailment Record'!$D$4:$I$4003,5,FALSE)) ->  | U99: =IF(ISERROR(VLOOKUP($R99,'Curtailment Record'!$D$4:$I$4003,6,FALSE)),"",VLOOKUP($R99,'Curtailment Record'!$D$4:$I$4003,6,FALSE)) -> 
R100: 1_42 | S100: 42 | T100: =IF(ISERROR(VLOOKUP($R100,'Curtailment Record'!$D$4:$I$4003,5,FALSE)),"",VLOOKUP($R100,'Curtailment Record'!$D$4:$I$4003,5,FALSE)) ->  | U100: =IF(ISERROR(VLOOKUP($R100,'Curtailment Record'!$D$4:$I$4003,6,FALSE)),"",VLOOKUP($R100,'Curtailment Record'!$D$4:$I$4003,6,FALSE)) -> 
R101: 1_43 | S101: 43 | T101: =IF(ISERROR(VLOOKUP($R101,'Curtailment Record'!$D$4:$I$4003,5,FALSE)),"",VLOOKUP($R101,'Curtailment Record'!$D$4:$I$4003,5,FALSE)) ->  | U101: =IF(ISERROR(VLOOKUP($R101,'Curtailment Record'!$D$4:$I$4003,6,FALSE)),"",VLOOKUP($R101,'Curtailment Record'!$D$4:$I$4003,6,FALSE)) -> 
R102: 1_44 | S102: 44 | T102: =IF(ISERROR(VLOOKUP($R102,'Curtailment Record'!$D$4:$I$4003,5,FALSE)),"",VLOOKUP($R102,'Curtailment Record'!$D$4:$I$4003,5,FALSE)) ->  | U102: =IF(ISERROR(VLOOKUP($R102,'Curtailment Record'!$D$4:$I$4003,6,FALSE)),"",VLOOKUP($R102,'Curtailment Record'!$D$4:$I$4003,6,FALSE)) -> 
R103: 1_45 | S103: 45 | T103: =IF(ISERROR(VLOOKUP($R103,'Curtailment Record'!$D$4:$I$4003,5,FALSE)),"",VLOOKUP($R103,'Curtailment Record'!$D$4:$I$4003,5,FALSE)) ->  | U103: =IF(ISERROR(VLOOKUP($R103,'Curtailment Record'!$D$4:$I$4003,6,FALSE)),"",VLOOKUP($R103,'Curtailment Record'!$D$4:$I$4003,6,FALSE)) -> 
R104: 1_46 | S104: 46 | T104: =IF(ISERROR(VLOOKUP($R104,'Curtailment Record'!$D$4:$I$4003,5,FALSE)),"",VLOOKUP($R104,'Curtailment Record'!$D$4:$I$4003,5,FALSE)) ->  | U104: =IF(ISERROR(VLOOKUP($R104,'Curtailment Record'!$D$4:$I$4003,6,FALSE)),"",VLOOKUP($R104,'Curtailment Record'!$D$4:$I$4003,6,FALSE)) -> 
R105: 1_47 | S105: 47 | T105: =IF(ISERROR(VLOOKUP($R105,'Curtailment Record'!$D$4:$I$4003,5,FALSE)),"",VLOOKUP($R105,'Curtailment Record'!$D$4:$I$4003,5,FALSE)) ->  | U105: =IF(ISERROR(VLOOKUP($R105,'Curtailment Record'!$D$4:$I$4003,6,FALSE)),"",VLOOKUP($R105,'Curtailment Record'!$D$4:$I$4003,6,FALSE)) -> 
R106: 1_48 | S106: 48 | T106: =IF(ISERROR(VLOOKUP($R106,'Curtailment Record'!$D$4:$I$4003,5,FALSE)),"",VLOOKUP($R106,'Curtailment Record'!$D$4:$I$4003,5,FALSE)) ->  | U106: =IF(ISERROR(VLOOKUP($R106,'Curtailment Record'!$D$4:$I$4003,6,FALSE)),"",VLOOKUP($R106,'Curtailment Record'!$D$4:$I$4003,6,FALSE)) -> 
R107: 1_49 | S107: 49 | T107: =IF(ISERROR(VLOOKUP($R107,'Curtailment Record'!$D$4:$I$4003,5,FALSE)),"",VLOOKUP($R107,'Curtailment Record'!$D$4:$I$4003,5,FALSE)) ->  | U107: =IF(ISERROR(VLOOKUP($R107,'Curtailment Record'!$D$4:$I$4003,6,FALSE)),"",VLOOKUP($R107,'Curtailment Record'!$D$4:$I$4003,6,FALSE)) -> 
R108: 1_50 | S108: 50 | T108: =IF(ISERROR(VLOOKUP($R108,'Curtailment Record'!$D$4:$I$4003,5,FALSE)),"",VLOOKUP($R108,'Curtailment Record'!$D$4:$I$4003,5,FALSE)) ->  | U108: =IF(ISERROR(VLOOKUP($R108,'Curtailment Record'!$D$4:$I$4003,6,FALSE)),"",VLOOKUP($R108,'Curtailment Record'!$D$4:$I$4003,6,FALSE)) -> 
R109: 1_51 | S109: 51 | T109: =IF(ISERROR(VLOOKUP($R109,'Curtailment Record'!$D$4:$I$4003,5,FALSE)),"",VLOOKUP($R109,'Curtailment Record'!$D$4:$I$4003,5,FALSE)) ->  | U109: =IF(ISERROR(VLOOKUP($R109,'Curtailment Record'!$D$4:$I$4003,6,FALSE)),"",VLOOKUP($R109,'Curtailment Record'!$D$4:$I$4003,6,FALSE)) -> 
R110: 1_52 | S110: 52 | T110: =IF(ISERROR(VLOOKUP($R110,'Curtailment Record'!$D$4:$I$4003,5,FALSE)),"",VLOOKUP($R110,'Curtailment Record'!$D$4:$I$4003,5,FALSE)) ->  | U110: =IF(ISERROR(VLOOKUP($R110,'Curtailment Record'!$D$4:$I$4003,6,FALSE)),"",VLOOKUP($R110,'Curtailment Record'!$D$4:$I$4003,6,FALSE)) -> 
R111: 1_53 | S111: 53 | T111: =IF(ISERROR(VLOOKUP($R111,'Curtailment Record'!$D$4:$I$4003,5,FALSE)),"",VLOOKUP($R111,'Curtailment Record'!$D$4:$I$4003,5,FALSE)) ->  | U111: =IF(ISERROR(VLOOKUP($R111,'Curtailment Record'!$D$4:$I$4003,6,FALSE)),"",VLOOKUP($R111,'Curtailment Record'!$D$4:$I$4003,6,FALSE)) -> 
R112: 1_54 | S112: 54 | T112: =IF(ISERROR(VLOOKUP($R112,'Curtailment Record'!$D$4:$I$4003,5,FALSE)),"",VLOOKUP($R112,'Curtailment Record'!$D$4:$I$4003,5,FALSE)) ->  | U112: =IF(ISERROR(VLOOKUP($R112,'Curtailment Record'!$D$4:$I$4003,6,FALSE)),"",VLOOKUP($R112,'Curtailment Record'!$D$4:$I$4003,6,FALSE)) -> 
R113: 1_55 | S113: 55 | T113: =IF(ISERROR(VLOOKUP($R113,'Curtailment Record'!$D$4:$I$4003,5,FALSE)),"",VLOOKUP($R113,'Curtailment Record'!$D$4:$I$4003,5,FALSE)) ->  | U113: =IF(ISERROR(VLOOKUP($R113,'Curtailment Record'!$D$4:$I$4003,6,FALSE)),"",VLOOKUP($R113,'Curtailment Record'!$D$4:$I$4003,6,FALSE)) -> 
R114: 1_56 | S114: 56 | T114: =IF(ISERROR(VLOOKUP($R114,'Curtailment Record'!$D$4:$I$4003,5,FALSE)),"",VLOOKUP($R114,'Curtailment Record'!$D$4:$I$4003,5,FALSE)) ->  | U114: =IF(ISERROR(VLOOKUP($R114,'Curtailment Record'!$D$4:$I$4003,6,FALSE)),"",VLOOKUP($R114,'Curtailment Record'!$D$4:$I$4003,6,FALSE)) -> 
R115: 1_57 | S115: 57 | T115: =IF(ISERROR(VLOOKUP($R115,'Curtailment Record'!$D$4:$I$4003,5,FALSE)),"",VLOOKUP($R115,'Curtailment Record'!$D$4:$I$4003,5,FALSE)) ->  | U115: =IF(ISERROR(VLOOKUP($R115,'Curtailment Record'!$D$4:$I$4003,6,FALSE)),"",VLOOKUP($R115,'Curtailment Record'!$D$4:$I$4003,6,FALSE)) -> 
R116: 1_58 | S116: 58 | T116: =IF(ISERROR(VLOOKUP($R116,'Curtailment Record'!$D$4:$I$4003,5,FALSE)),"",VLOOKUP($R116,'Curtailment Record'!$D$4:$I$4003,5,FALSE)) ->  | U116: =IF(ISERROR(VLOOKUP($R116,'Curtailment Record'!$D$4:$I$4003,6,FALSE)),"",VLOOKUP($R116,'Curtailment Record'!$D$4:$I$4003,6,FALSE)) -> 
R117: 1_59 | S117: 59 | T117: =IF(ISERROR(VLOOKUP($R117,'Curtailment Record'!$D$4:$I$4003,5,FALSE)),"",VLOOKUP($R117,'Curtailment Record'!$D$4:$I$4003,5,FALSE)) ->  | U117: =IF(ISERROR(VLOOKUP($R117,'Curtailment Record'!$D$4:$I$4003,6,FALSE)),"",VLOOKUP($R117,'Curtailment Record'!$D$4:$I$4003,6,FALSE)) -> 
R118: 1_60 | S118: 60 | T118: =IF(ISERROR(VLOOKUP($R118,'Curtailment Record'!$D$4:$I$4003,5,FALSE)),"",VLOOKUP($R118,'Curtailment Record'!$D$4:$I$4003,5,FALSE)) ->  | U118: =IF(ISERROR(VLOOKUP($R118,'Curtailment Record'!$D$4:$I$4003,6,FALSE)),"",VLOOKUP($R118,'Curtailment Record'!$D$4:$I$4003,6,FALSE)) -> 
R119: 1_61 | S119: 61 | T119: =IF(ISERROR(VLOOKUP($R119,'Curtailment Record'!$D$4:$I$4003,5,FALSE)),"",VLOOKUP($R119,'Curtailment Record'!$D$4:$I$4003,5,FALSE)) ->  | U119: =IF(ISERROR(VLOOKUP($R119,'Curtailment Record'!$D$4:$I$4003,6,FALSE)),"",VLOOKUP($R119,'Curtailment Record'!$D$4:$I$4003,6,FALSE)) -> 
R120: 1_62 | S120: 62 | T120: =IF(ISERROR(VLOOKUP($R120,'Curtailment Record'!$D$4:$I$4003,5,FALSE)),"",VLOOKUP($R120,'Curtailment Record'!$D$4:$I$4003,5,FALSE)) ->  | U120: =IF(ISERROR(VLOOKUP($R120,'Curtailment Record'!$D$4:$I$4003,6,FALSE)),"",VLOOKUP($R120,'Curtailment Record'!$D$4:$I$4003,6,FALSE)) -> 
R121: 1_63 | S121: 63 | T121: =IF(ISERROR(VLOOKUP($R121,'Curtailment Record'!$D$4:$I$4003,5,FALSE)),"",VLOOKUP($R121,'Curtailment Record'!$D$4:$I$4003,5,FALSE)) ->  | U121: =IF(ISERROR(VLOOKUP($R121,'Curtailment Record'!$D$4:$I$4003,6,FALSE)),"",VLOOKUP($R121,'Curtailment Record'!$D$4:$I$4003,6,FALSE)) -> 
R122: 1_64 | S122: 64 | T122: =IF(ISERROR(VLOOKUP($R122,'Curtailment Record'!$D$4:$I$4003,5,FALSE)),"",VLOOKUP($R122,'Curtailment Record'!$D$4:$I$4003,5,FALSE)) ->  | U122: =IF(ISERROR(VLOOKUP($R122,'Curtailment Record'!$D$4:$I$4003,6,FALSE)),"",VLOOKUP($R122,'Curtailment Record'!$D$4:$I$4003,6,FALSE)) -> 
R123: =CONCATENATE($R$56,"_",S123) -> 1_65 | S123: 65 | T123: =IF(ISERROR(VLOOKUP($R123,'Curtailment Record'!$D$4:$I$4003,5,FALSE)),"",VLOOKUP($R123,'Curtailment Record'!$D$4:$I$4003,5,FALSE)) ->  | U123: =IF(ISERROR(VLOOKUP($R123,'Curtailment Record'!$D$4:$I$4003,6,FALSE)),"",VLOOKUP($R123,'Curtailment Record'!$D$4:$I$4003,6,FALSE)) -> 
R124: 1_66 | S124: 66 | T124: =IF(ISERROR(VLOOKUP($R124,'Curtailment Record'!$D$4:$I$4003,5,FALSE)),"",VLOOKUP($R124,'Curtailment Record'!$D$4:$I$4003,5,FALSE)) ->  | U124: =IF(ISERROR(VLOOKUP($R124,'Curtailment Record'!$D$4:$I$4003,6,FALSE)),"",VLOOKUP($R124,'Curtailment Record'!$D$4:$I$4003,6,FALSE)) -> 
R125: 1_67 | S125: 67 | T125: =IF(ISERROR(VLOOKUP($R125,'Curtailment Record'!$D$4:$I$4003,5,FALSE)),"",VLOOKUP($R125,'Curtailment Record'!$D$4:$I$4003,5,FALSE)) ->  | U125: =IF(ISERROR(VLOOKUP($R125,'Curtailment Record'!$D$4:$I$4003,6,FALSE)),"",VLOOKUP($R125,'Curtailment Record'!$D$4:$I$4003,6,FALSE)) -> 
R126: 1_68 | S126: 68 | T126: =IF(ISERROR(VLOOKUP($R126,'Curtailment Record'!$D$4:$I$4003,5,FALSE)),"",VLOOKUP($R126,'Curtailment Record'!$D$4:$I$4003,5,FALSE)) ->  | U126: =IF(ISERROR(VLOOKUP($R126,'Curtailment Record'!$D$4:$I$4003,6,FALSE)),"",VLOOKUP($R126,'Curtailment Record'!$D$4:$I$4003,6,FALSE)) -> 
R127: 1_69 | S127: 69 | T127: =IF(ISERROR(VLOOKUP($R127,'Curtailment Record'!$D$4:$I$4003,5,FALSE)),"",VLOOKUP($R127,'Curtailment Record'!$D$4:$I$4003,5,FALSE)) ->  | U127: =IF(ISERROR(VLOOKUP($R127,'Curtailment Record'!$D$4:$I$4003,6,FALSE)),"",VLOOKUP($R127,'Curtailment Record'!$D$4:$I$4003,6,FALSE)) -> 
R128: 1_70 | S128: 70 | T128: =IF(ISERROR(VLOOKUP($R128,'Curtailment Record'!$D$4:$I$4003,5,FALSE)),"",VLOOKUP($R128,'Curtailment Record'!$D$4:$I$4003,5,FALSE)) ->  | U128: =IF(ISERROR(VLOOKUP($R128,'Curtailment Record'!$D$4:$I$4003,6,FALSE)),"",VLOOKUP($R128,'Curtailment Record'!$D$4:$I$4003,6,FALSE)) -> 
R129: 1_71 | S129: 71 | T129: =IF(ISERROR(VLOOKUP($R129,'Curtailment Record'!$D$4:$I$4003,5,FALSE)),"",VLOOKUP($R129,'Curtailment Record'!$D$4:$I$4003,5,FALSE)) ->  | U129: =IF(ISERROR(VLOOKUP($R129,'Curtailment Record'!$D$4:$I$4003,6,FALSE)),"",VLOOKUP($R129,'Curtailment Record'!$D$4:$I$4003,6,FALSE)) -> 
R130: 1_72 | S130: 72 | T130: =IF(ISERROR(VLOOKUP($R130,'Curtailment Record'!$D$4:$I$4003,5,FALSE)),"",VLOOKUP($R130,'Curtailment Record'!$D$4:$I$4003,5,FALSE)) ->  | U130: =IF(ISERROR(VLOOKUP($R130,'Curtailment Record'!$D$4:$I$4003,6,FALSE)),"",VLOOKUP($R130,'Curtailment Record'!$D$4:$I$4003,6,FALSE)) -> 
R131: 1_73 | S131: 73 | T131: =IF(ISERROR(VLOOKUP($R131,'Curtailment Record'!$D$4:$I$4003,5,FALSE)),"",VLOOKUP($R131,'Curtailment Record'!$D$4:$I$4003,5,FALSE)) ->  | U131: =IF(ISERROR(VLOOKUP($R131,'Curtailment Record'!$D$4:$I$4003,6,FALSE)),"",VLOOKUP($R131,'Curtailment Record'!$D$4:$I$4003,6,FALSE)) -> 
R132: 1_74 | S132: 74 | T132: =IF(ISERROR(VLOOKUP($R132,'Curtailment Record'!$D$4:$I$4003,5,FALSE)),"",VLOOKUP($R132,'Curtailment Record'!$D$4:$I$4003,5,FALSE)) ->  | U132: =IF(ISERROR(VLOOKUP($R132,'Curtailment Record'!$D$4:$I$4003,6,FALSE)),"",VLOOKUP($R132,'Curtailment Record'!$D$4:$I$4003,6,FALSE)) -> 
R133: 1_75 | S133: 75 | T133: =IF(ISERROR(VLOOKUP($R133,'Curtailment Record'!$D$4:$I$4003,5,FALSE)),"",VLOOKUP($R133,'Curtailment Record'!$D$4:$I$4003,5,FALSE)) ->  | U133: =IF(ISERROR(VLOOKUP($R133,'Curtailment Record'!$D$4:$I$4003,6,FALSE)),"",VLOOKUP($R133,'Curtailment Record'!$D$4:$I$4003,6,FALSE)) -> 
R134: 1_76 | S134: 76 | T134: =IF(ISERROR(VLOOKUP($R134,'Curtailment Record'!$D$4:$I$4003,5,FALSE)),"",VLOOKUP($R134,'Curtailment Record'!$D$4:$I$4003,5,FALSE)) ->  | U134: =IF(ISERROR(VLOOKUP($R134,'Curtailment Record'!$D$4:$I$4003,6,FALSE)),"",VLOOKUP($R134,'Curtailment Record'!$D$4:$I$4003,6,FALSE)) -> 
R135: 1_77 | S135: 77 | T135: =IF(ISERROR(VLOOKUP($R135,'Curtailment Record'!$D$4:$I$4003,5,FALSE)),"",VLOOKUP($R135,'Curtailment Record'!$D$4:$I$4003,5,FALSE)) ->  | U135: =IF(ISERROR(VLOOKUP($R135,'Curtailment Record'!$D$4:$I$4003,6,FALSE)),"",VLOOKUP($R135,'Curtailment Record'!$D$4:$I$4003,6,FALSE)) -> 
R136: 1_78 | S136: 78 | T136: =IF(ISERROR(VLOOKUP($R136,'Curtailment Record'!$D$4:$I$4003,5,FALSE)),"",VLOOKUP($R136,'Curtailment Record'!$D$4:$I$4003,5,FALSE)) ->  | U136: =IF(ISERROR(VLOOKUP($R136,'Curtailment Record'!$D$4:$I$4003,6,FALSE)),"",VLOOKUP($R136,'Curtailment Record'!$D$4:$I$4003,6,FALSE)) -> 
R137: 1_79 | S137: 79 | T137: =IF(ISERROR(VLOOKUP($R137,'Curtailment Record'!$D$4:$I$4003,5,FALSE)),"",VLOOKUP($R137,'Curtailment Record'!$D$4:$I$4003,5,FALSE)) ->  | U137: =IF(ISERROR(VLOOKUP($R137,'Curtailment Record'!$D$4:$I$4003,6,FALSE)),"",VLOOKUP($R137,'Curtailment Record'!$D$4:$I$4003,6,FALSE)) -> 
R138: 1_80 | S138: 80 | T138: =IF(ISERROR(VLOOKUP($R138,'Curtailment Record'!$D$4:$I$4003,5,FALSE)),"",VLOOKUP($R138,'Curtailment Record'!$D$4:$I$4003,5,FALSE)) ->  | U138: =IF(ISERROR(VLOOKUP($R138,'Curtailment Record'!$D$4:$I$4003,6,FALSE)),"",VLOOKUP($R138,'Curtailment Record'!$D$4:$I$4003,6,FALSE)) -> 
R139: 1_81 | S139: 81 | T139: =IF(ISERROR(VLOOKUP($R139,'Curtailment Record'!$D$4:$I$4003,5,FALSE)),"",VLOOKUP($R139,'Curtailment Record'!$D$4:$I$4003,5,FALSE)) ->  | U139: =IF(ISERROR(VLOOKUP($R139,'Curtailment Record'!$D$4:$I$4003,6,FALSE)),"",VLOOKUP($R139,'Curtailment Record'!$D$4:$I$4003,6,FALSE)) -> 
R140: 1_82 | S140: 82 | T140: =IF(ISERROR(VLOOKUP($R140,'Curtailment Record'!$D$4:$I$4003,5,FALSE)),"",VLOOKUP($R140,'Curtailment Record'!$D$4:$I$4003,5,FALSE)) ->  | U140: =IF(ISERROR(VLOOKUP($R140,'Curtailment Record'!$D$4:$I$4003,6,FALSE)),"",VLOOKUP($R140,'Curtailment Record'!$D$4:$I$4003,6,FALSE)) -> 
R141: 1_83 | S141: 83 | T141: =IF(ISERROR(VLOOKUP($R141,'Curtailment Record'!$D$4:$I$4003,5,FALSE)),"",VLOOKUP($R141,'Curtailment Record'!$D$4:$I$4003,5,FALSE)) ->  | U141: =IF(ISERROR(VLOOKUP($R141,'Curtailment Record'!$D$4:$I$4003,6,FALSE)),"",VLOOKUP($R141,'Curtailment Record'!$D$4:$I$4003,6,FALSE)) -> 
R142: 1_84 | S142: 84 | T142: =IF(ISERROR(VLOOKUP($R142,'Curtailment Record'!$D$4:$I$4003,5,FALSE)),"",VLOOKUP($R142,'Curtailment Record'!$D$4:$I$4003,5,FALSE)) ->  | U142: =IF(ISERROR(VLOOKUP($R142,'Curtailment Record'!$D$4:$I$4003,6,FALSE)),"",VLOOKUP($R142,'Curtailment Record'!$D$4:$I$4003,6,FALSE)) -> 
R143: 1_85 | S143: 85 | T143: =IF(ISERROR(VLOOKUP($R143,'Curtailment Record'!$D$4:$I$4003,5,FALSE)),"",VLOOKUP($R143,'Curtailment Record'!$D$4:$I$4003,5,FALSE)) ->  | U143: =IF(ISERROR(VLOOKUP($R143,'Curtailment Record'!$D$4:$I$4003,6,FALSE)),"",VLOOKUP($R143,'Curtailment Record'!$D$4:$I$4003,6,FALSE)) -> 
R144: 1_86 | S144: 86 | T144: =IF(ISERROR(VLOOKUP($R144,'Curtailment Record'!$D$4:$I$4003,5,FALSE)),"",VLOOKUP($R144,'Curtailment Record'!$D$4:$I$4003,5,FALSE)) ->  | U144: =IF(ISERROR(VLOOKUP($R144,'Curtailment Record'!$D$4:$I$4003,6,FALSE)),"",VLOOKUP($R144,'Curtailment Record'!$D$4:$I$4003,6,FALSE)) -> 
R145: 1_87 | S145: 87 | T145: =IF(ISERROR(VLOOKUP($R145,'Curtailment Record'!$D$4:$I$4003,5,FALSE)),"",VLOOKUP($R145,'Curtailment Record'!$D$4:$I$4003,5,FALSE)) ->  | U145: =IF(ISERROR(VLOOKUP($R145,'Curtailment Record'!$D$4:$I$4003,6,FALSE)),"",VLOOKUP($R145,'Curtailment Record'!$D$4:$I$4003,6,FALSE)) -> 
R146: 1_88 | S146: 88 | T146: =IF(ISERROR(VLOOKUP($R146,'Curtailment Record'!$D$4:$I$4003,5,FALSE)),"",VLOOKUP($R146,'Curtailment Record'!$D$4:$I$4003,5,FALSE)) ->  | U146: =IF(ISERROR(VLOOKUP($R146,'Curtailment Record'!$D$4:$I$4003,6,FALSE)),"",VLOOKUP($R146,'Curtailment Record'!$D$4:$I$4003,6,FALSE)) -> 
R147: 1_89 | S147: 89 | T147: =IF(ISERROR(VLOOKUP($R147,'Curtailment Record'!$D$4:$I$4003,5,FALSE)),"",VLOOKUP($R147,'Curtailment Record'!$D$4:$I$4003,5,FALSE)) ->  | U147: =IF(ISERROR(VLOOKUP($R147,'Curtailment Record'!$D$4:$I$4003,6,FALSE)),"",VLOOKUP($R147,'Curtailment Record'!$D$4:$I$4003,6,FALSE)) -> 
R148: 1_90 | S148: 90 | T148: =IF(ISERROR(VLOOKUP($R148,'Curtailment Record'!$D$4:$I$4003,5,FALSE)),"",VLOOKUP($R148,'Curtailment Record'!$D$4:$I$4003,5,FALSE)) ->  | U148: =IF(ISERROR(VLOOKUP($R148,'Curtailment Record'!$D$4:$I$4003,6,FALSE)),"",VLOOKUP($R148,'Curtailment Record'!$D$4:$I$4003,6,FALSE)) -> 
R149: 1_91 | S149: 91 | T149: =IF(ISERROR(VLOOKUP($R149,'Curtailment Record'!$D$4:$I$4003,5,FALSE)),"",VLOOKUP($R149,'Curtailment Record'!$D$4:$I$4003,5,FALSE)) ->  | U149: =IF(ISERROR(VLOOKUP($R149,'Curtailment Record'!$D$4:$I$4003,6,FALSE)),"",VLOOKUP($R149,'Curtailment Record'!$D$4:$I$4003,6,FALSE)) -> 
R150: 1_92 | S150: 92 | T150: =IF(ISERROR(VLOOKUP($R150,'Curtailment Record'!$D$4:$I$4003,5,FALSE)),"",VLOOKUP($R150,'Curtailment Record'!$D$4:$I$4003,5,FALSE)) ->  | U150: =IF(ISERROR(VLOOKUP($R150,'Curtailment Record'!$D$4:$I$4003,6,FALSE)),"",VLOOKUP($R150,'Curtailment Record'!$D$4:$I$4003,6,FALSE)) -> 
R151: 1_93 | S151: 93 | T151: =IF(ISERROR(VLOOKUP($R151,'Curtailment Record'!$D$4:$I$4003,5,FALSE)),"",VLOOKUP($R151,'Curtailment Record'!$D$4:$I$4003,5,FALSE)) ->  | U151: =IF(ISERROR(VLOOKUP($R151,'Curtailment Record'!$D$4:$I$4003,6,FALSE)),"",VLOOKUP($R151,'Curtailment Record'!$D$4:$I$4003,6,FALSE)) -> 
R152: 1_94 | S152: 94 | T152: =IF(ISERROR(VLOOKUP($R152,'Curtailment Record'!$D$4:$I$4003,5,FALSE)),"",VLOOKUP($R152,'Curtailment Record'!$D$4:$I$4003,5,FALSE)) ->  | U152: =IF(ISERROR(VLOOKUP($R152,'Curtailment Record'!$D$4:$I$4003,6,FALSE)),"",VLOOKUP($R152,'Curtailment Record'!$D$4:$I$4003,6,FALSE)) -> 
R153: 1_95 | S153: 95 | T153: =IF(ISERROR(VLOOKUP($R153,'Curtailment Record'!$D$4:$I$4003,5,FALSE)),"",VLOOKUP($R153,'Curtailment Record'!$D$4:$I$4003,5,FALSE)) ->  | U153: =IF(ISERROR(VLOOKUP($R153,'Curtailment Record'!$D$4:$I$4003,6,FALSE)),"",VLOOKUP($R153,'Curtailment Record'!$D$4:$I$4003,6,FALSE)) -> 
R154: 1_96 | S154: 96 | T154: =IF(ISERROR(VLOOKUP($R154,'Curtailment Record'!$D$4:$I$4003,5,FALSE)),"",VLOOKUP($R154,'Curtailment Record'!$D$4:$I$4003,5,FALSE)) ->  | U154: =IF(ISERROR(VLOOKUP($R154,'Curtailment Record'!$D$4:$I$4003,6,FALSE)),"",VLOOKUP($R154,'Curtailment Record'!$D$4:$I$4003,6,FALSE)) -> 
R155: =CONCATENATE($R$56,"_",S155) -> 1_97 | S155: 97 | T155: =IF(ISERROR(VLOOKUP($R155,'Curtailment Record'!$D$4:$I$4003,5,FALSE)),"",VLOOKUP($R155,'Curtailment Record'!$D$4:$I$4003,5,FALSE)) ->  | U155: =IF(ISERROR(VLOOKUP($R155,'Curtailment Record'!$D$4:$I$4003,6,FALSE)),"",VLOOKUP($R155,'Curtailment Record'!$D$4:$I$4003,6,FALSE)) -> 
R156: 1_98 | S156: 98 | T156: =IF(ISERROR(VLOOKUP($R156,'Curtailment Record'!$D$4:$I$4003,5,FALSE)),"",VLOOKUP($R156,'Curtailment Record'!$D$4:$I$4003,5,FALSE)) ->  | U156: =IF(ISERROR(VLOOKUP($R156,'Curtailment Record'!$D$4:$I$4003,6,FALSE)),"",VLOOKUP($R156,'Curtailment Record'!$D$4:$I$4003,6,FALSE)) -> 
R157: 1_99 | S157: 99 | T157: =IF(ISERROR(VLOOKUP($R157,'Curtailment Record'!$D$4:$I$4003,5,FALSE)),"",VLOOKUP($R157,'Curtailment Record'!$D$4:$I$4003,5,FALSE)) ->  | U157: =IF(ISERROR(VLOOKUP($R157,'Curtailment Record'!$D$4:$I$4003,6,FALSE)),"",VLOOKUP($R157,'Curtailment Record'!$D$4:$I$4003,6,FALSE)) -> 
R158: 1_100 | S158: 100 | T158: =IF(ISERROR(VLOOKUP($R158,'Curtailment Record'!$D$4:$I$4003,5,FALSE)),"",VLOOKUP($R158,'Curtailment Record'!$D$4:$I$4003,5,FALSE)) ->  | U158: =IF(ISERROR(VLOOKUP($R158,'Curtailment Record'!$D$4:$I$4003,6,FALSE)),"",VLOOKUP($R158,'Curtailment Record'!$D$4:$I$4003,6,FALSE)) -> 
R159: 1_101 | S159: 101 | T159: =IF(ISERROR(VLOOKUP($R159,'Curtailment Record'!$D$4:$I$4003,5,FALSE)),"",VLOOKUP($R159,'Curtailment Record'!$D$4:$I$4003,5,FALSE)) ->  | U159: =IF(ISERROR(VLOOKUP($R159,'Curtailment Record'!$D$4:$I$4003,6,FALSE)),"",VLOOKUP($R159,'Curtailment Record'!$D$4:$I$4003,6,FALSE)) -> 
R160: 1_102 | S160: 102 | T160: =IF(ISERROR(VLOOKUP($R160,'Curtailment Record'!$D$4:$I$4003,5,FALSE)),"",VLOOKUP($R160,'Curtailment Record'!$D$4:$I$4003,5,FALSE)) ->  | U160: =IF(ISERROR(VLOOKUP($R160,'Curtailment Record'!$D$4:$I$4003,6,FALSE)),"",VLOOKUP($R160,'Curtailment Record'!$D$4:$I$4003,6,FALSE)) -> 
R161: 1_103 | S161: 103 | T161: =IF(ISERROR(VLOOKUP($R161,'Curtailment Record'!$D$4:$I$4003,5,FALSE)),"",VLOOKUP($R161,'Curtailment Record'!$D$4:$I$4003,5,FALSE)) ->  | U161: =IF(ISERROR(VLOOKUP($R161,'Curtailment Record'!$D$4:$I$4003,6,FALSE)),"",VLOOKUP($R161,'Curtailment Record'!$D$4:$I$4003,6,FALSE)) -> 
R162: 1_104 | S162: 104 | T162: =IF(ISERROR(VLOOKUP($R162,'Curtailment Record'!$D$4:$I$4003,5,FALSE)),"",VLOOKUP($R162,'Curtailment Record'!$D$4:$I$4003,5,FALSE)) ->  | U162: =IF(ISERROR(VLOOKUP($R162,'Curtailment Record'!$D$4:$I$4003,6,FALSE)),"",VLOOKUP($R162,'Curtailment Record'!$D$4:$I$4003,6,FALSE)) -> 
R163: 1_105 | S163: 105 | T163: =IF(ISERROR(VLOOKUP($R163,'Curtailment Record'!$D$4:$I$4003,5,FALSE)),"",VLOOKUP($R163,'Curtailment Record'!$D$4:$I$4003,5,FALSE)) ->  | U163: =IF(ISERROR(VLOOKUP($R163,'Curtailment Record'!$D$4:$I$4003,6,FALSE)),"",VLOOKUP($R163,'Curtailment Record'!$D$4:$I$4003,6,FALSE)) -> 
R164: 1_106 | S164: 106 | T164: =IF(ISERROR(VLOOKUP($R164,'Curtailment Record'!$D$4:$I$4003,5,FALSE)),"",VLOOKUP($R164,'Curtailment Record'!$D$4:$I$4003,5,FALSE)) ->  | U164: =IF(ISERROR(VLOOKUP($R164,'Curtailment Record'!$D$4:$I$4003,6,FALSE)),"",VLOOKUP($R164,'Curtailment Record'!$D$4:$I$4003,6,FALSE)) -> 
R165: 1_107 | S165: 107 | T165: =IF(ISERROR(VLOOKUP($R165,'Curtailment Record'!$D$4:$I$4003,5,FALSE)),"",VLOOKUP($R165,'Curtailment Record'!$D$4:$I$4003,5,FALSE)) ->  | U165: =IF(ISERROR(VLOOKUP($R165,'Curtailment Record'!$D$4:$I$4003,6,FALSE)),"",VLOOKUP($R165,'Curtailment Record'!$D$4:$I$4003,6,FALSE)) -> 
R166: 1_108 | S166: 108 | T166: =IF(ISERROR(VLOOKUP($R166,'Curtailment Record'!$D$4:$I$4003,5,FALSE)),"",VLOOKUP($R166,'Curtailment Record'!$D$4:$I$4003,5,FALSE)) ->  | U166: =IF(ISERROR(VLOOKUP($R166,'Curtailment Record'!$D$4:$I$4003,6,FALSE)),"",VLOOKUP($R166,'Curtailment Record'!$D$4:$I$4003,6,FALSE)) -> 
R167: 1_109 | S167: 109 | T167: =IF(ISERROR(VLOOKUP($R167,'Curtailment Record'!$D$4:$I$4003,5,FALSE)),"",VLOOKUP($R167,'Curtailment Record'!$D$4:$I$4003,5,FALSE)) ->  | U167: =IF(ISERROR(VLOOKUP($R167,'Curtailment Record'!$D$4:$I$4003,6,FALSE)),"",VLOOKUP($R167,'Curtailment Record'!$D$4:$I$4003,6,FALSE)) -> 
R168: 1_110 | S168: 110 | T168: =IF(ISERROR(VLOOKUP($R168,'Curtailment Record'!$D$4:$I$4003,5,FALSE)),"",VLOOKUP($R168,'Curtailment Record'!$D$4:$I$4003,5,FALSE)) ->  | U168: =IF(ISERROR(VLOOKUP($R168,'Curtailment Record'!$D$4:$I$4003,6,FALSE)),"",VLOOKUP($R168,'Curtailment Record'!$D$4:$I$4003,6,FALSE)) -> 
R169: 1_111 | S169: 111 | T169: =IF(ISERROR(VLOOKUP($R169,'Curtailment Record'!$D$4:$I$4003,5,FALSE)),"",VLOOKUP($R169,'Curtailment Record'!$D$4:$I$4003,5,FALSE)) ->  | U169: =IF(ISERROR(VLOOKUP($R169,'Curtailment Record'!$D$4:$I$4003,6,FALSE)),"",VLOOKUP($R169,'Curtailment Record'!$D$4:$I$4003,6,FALSE)) -> 
R170: 1_112 | S170: 112 | T170: =IF(ISERROR(VLOOKUP($R170,'Curtailment Record'!$D$4:$I$4003,5,FALSE)),"",VLOOKUP($R170,'Curtailment Record'!$D$4:$I$4003,5,FALSE)) ->  | U170: =IF(ISERROR(VLOOKUP($R170,'Curtailment Record'!$D$4:$I$4003,6,FALSE)),"",VLOOKUP($R170,'Curtailment Record'!$D$4:$I$4003,6,FALSE)) -> 
R171: 1_113 | S171: 113 | T171: =IF(ISERROR(VLOOKUP($R171,'Curtailment Record'!$D$4:$I$4003,5,FALSE)),"",VLOOKUP($R171,'Curtailment Record'!$D$4:$I$4003,5,FALSE)) ->  | U171: =IF(ISERROR(VLOOKUP($R171,'Curtailment Record'!$D$4:$I$4003,6,FALSE)),"",VLOOKUP($R171,'Curtailment Record'!$D$4:$I$4003,6,FALSE)) -> 
R172: 1_114 | S172: 114 | T172: =IF(ISERROR(VLOOKUP($R172,'Curtailment Record'!$D$4:$I$4003,5,FALSE)),"",VLOOKUP($R172,'Curtailment Record'!$D$4:$I$4003,5,FALSE)) ->  | U172: =IF(ISERROR(VLOOKUP($R172,'Curtailment Record'!$D$4:$I$4003,6,FALSE)),"",VLOOKUP($R172,'Curtailment Record'!$D$4:$I$4003,6,FALSE)) -> 
R173: 1_115 | S173: 115 | T173: =IF(ISERROR(VLOOKUP($R173,'Curtailment Record'!$D$4:$I$4003,5,FALSE)),"",VLOOKUP($R173,'Curtailment Record'!$D$4:$I$4003,5,FALSE)) ->  | U173: =IF(ISERROR(VLOOKUP($R173,'Curtailment Record'!$D$4:$I$4003,6,FALSE)),"",VLOOKUP($R173,'Curtailment Record'!$D$4:$I$4003,6,FALSE)) -> 
R174: 1_116 | S174: 116 | T174: =IF(ISERROR(VLOOKUP($R174,'Curtailment Record'!$D$4:$I$4003,5,FALSE)),"",VLOOKUP($R174,'Curtailment Record'!$D$4:$I$4003,5,FALSE)) ->  | U174: =IF(ISERROR(VLOOKUP($R174,'Curtailment Record'!$D$4:$I$4003,6,FALSE)),"",VLOOKUP($R174,'Curtailment Record'!$D$4:$I$4003,6,FALSE)) -> 
R175: 1_117 | S175: 117 | T175: =IF(ISERROR(VLOOKUP($R175,'Curtailment Record'!$D$4:$I$4003,5,FALSE)),"",VLOOKUP($R175,'Curtailment Record'!$D$4:$I$4003,5,FALSE)) ->  | U175: =IF(ISERROR(VLOOKUP($R175,'Curtailment Record'!$D$4:$I$4003,6,FALSE)),"",VLOOKUP($R175,'Curtailment Record'!$D$4:$I$4003,6,FALSE)) -> 
R176: 1_118 | S176: 118 | T176: =IF(ISERROR(VLOOKUP($R176,'Curtailment Record'!$D$4:$I$4003,5,FALSE)),"",VLOOKUP($R176,'Curtailment Record'!$D$4:$I$4003,5,FALSE)) ->  | U176: =IF(ISERROR(VLOOKUP($R176,'Curtailment Record'!$D$4:$I$4003,6,FALSE)),"",VLOOKUP($R176,'Curtailment Record'!$D$4:$I$4003,6,FALSE)) -> 
R177: 1_119 | S177: 119 | T177: =IF(ISERROR(VLOOKUP($R177,'Curtailment Record'!$D$4:$I$4003,5,FALSE)),"",VLOOKUP($R177,'Curtailment Record'!$D$4:$I$4003,5,FALSE)) ->  | U177: =IF(ISERROR(VLOOKUP($R177,'Curtailment Record'!$D$4:$I$4003,6,FALSE)),"",VLOOKUP($R177,'Curtailment Record'!$D$4:$I$4003,6,FALSE)) -> 
R178: 1_120 | S178: 120 | T178: =IF(ISERROR(VLOOKUP($R178,'Curtailment Record'!$D$4:$I$4003,5,FALSE)),"",VLOOKUP($R178,'Curtailment Record'!$D$4:$I$4003,5,FALSE)) ->  | U178: =IF(ISERROR(VLOOKUP($R178,'Curtailment Record'!$D$4:$I$4003,6,FALSE)),"",VLOOKUP($R178,'Curtailment Record'!$D$4:$I$4003,6,FALSE)) -> 

Sheet Duration Curves
B1: Duration Curve Data | E1: Games | F1: 210
A4: (%) | B4: (mw-hours) | C4: (mw)
A5: Probability | B5: Total Annual | C5: Highest Hour
A6: =1/210 -> 0.004761904762 | B6: 150411 | C6: 5701
A7: =A6+1/210 -> 0.009523809524 | B7: 66565 | C7: 5614
A8: =A7+1/210 -> 0.01428571429 | B8: 55427 | C8: 4695
A9: 0.01904761905 | B9: 43548 | C9: 4398
A10: 0.02380952381 | B10: 42430 | C10: 1886
A11: 0.02857142857 | B11: 23670 | C11: 1422
A12: 0.03333333333 | B12: 21658 | C12: 1388
A13: 0.0380952381 | B13: 17359 | C13: 1222
A14: 0.04285714286 | B14: 7696 | C14: 950
A15: 0.04761904762 | B15: 7227 | C15: 878
A16: 0.05238095238 | B16: 2591 | C16: 766
A17: 0.05714285714 | B17: 2170 | C17: 363
A18: 0.0619047619 | B18: 1832 | C18: 278
A19: 0.06666666667 | B19: 327 | C19: 65
A20: 0.07142857143 | B20: 31 | C20: 31
A21: 0.07619047619 | B21: 0 | C21: 0
A22: 0.08095238095 | B22: 0 | C22: 0
A23: 0.08571428571 | B23: 0 | C23: 0
A24: 0.09047619048 | B24: 0 | C24: 0
A25: 0.09523809524 | B25: 0 | C25: 0
A26: 0.1 | B26: 0 | C26: 0
A27: 0.1047619048 | B27: 0 | C27: 0
A28: 0.1095238095 | B28: 0 | C28: 0
A29: 0.1142857143 | B29: 0 | C29: 0
A30: 0.119047619 | B30: 0 | C30: 0
A31: 0.1238095238 | B31: 0 | C31: 0
A32: 0.1285714286 | B32: 0 | C32: 0
A33: 0.1333333333 | B33: 0 | C33: 0
A34: 0.1380952381 | B34: 0 | C34: 0
A35: 0.1428571429 | B35: 0 | C35: 0
A36: 0.1476190476 | B36: 0 | C36: 0
A37: 0.1523809524 | B37: 0 | C37: 0
A38: 0.1571428571 | B38: 0 | C38: 0
A39: 0.1619047619 | B39: 0 | C39: 0
A40: 0.1666666667 | B40: 0 | C40: 0
A41: 0.1714285714 | B41: 0 | C41: 0
A42: 0.1761904762 | B42: 0 | C42: 0
A43: 0.180952381 | B43: 0 | C43: 0
A44: 0.1857142857 | B44: 0 | C44: 0
A45: 0.1904761905 | B45: 0 | C45: 0
A46: 0.1952380952 | B46: 0 | C46: 0
A47: 0.2 | B47: 0 | C47: 0
A48: 0.2047619048 | B48: 0 | C48: 0
A49: 0.2095238095 | B49: 0 | C49: 0
A50: 0.2142857143 | B50: 0 | C50: 0
A51: 0.219047619 | B51: 0 | C51: 0
A52: 0.2238095238 | B52: 0 | C52: 0
A53: 0.2285714286 | B53: 0 | C53: 0
A54: 0.2333333333 | B54: 0 | C54: 0
A55: 0.2380952381 | B55: 0 | C55: 0
A56: 0.2428571429 | B56: 0 | C56: 0
A57: 0.2476190476 | B57: 0 | C57: 0
A58: 0.2523809524 | B58: 0 | C58: 0
A59: 0.2571428571 | B59: 0 | C59: 0
A60: 0.2619047619 | B60: 0 | C60: 0
A61: 0.2666666667 | B61: 0 | C61: 0
A62: 0.2714285714 | B62: 0 | C62: 0
A63: 0.2761904762 | B63: 0 | C63: 0
A64: 0.280952381 | B64: 0 | C64: 0
A65: 0.2857142857 | B65: 0 | C65: 0
A66: 0.2904761905 | B66: 0 | C66: 0
A67: 0.2952380952 | B67: 0 | C67: 0
A68: 0.3 | B68: 0 | C68: 0
A69: 0.3047619048 | B69: 0 | C69: 0
A70: 0.3095238095 | B70: 0 | C70: 0
A71: 0.3142857143 | B71: 0 | C71: 0
A72: =A71+1/210 -> 0.319047619 | B72: 0 | C72: 0
A73: 0.3238095238 | B73: 0 | C73: 0
A74: 0.3285714286 | B74: 0 | C74: 0
A75: 0.3333333333 | B75: 0 | C75: 0
A76: 0.3380952381 | B76: 0 | C76: 0
A77: 0.3428571429 | B77: 0 | C77: 0
A78: 0.3476190476 | B78: 0 | C78: 0
A79: 0.3523809524 | B79: 0 | C79: 0
A80: 0.3571428571 | B80: 0 | C80: 0
A81: 0.3619047619 | B81: 0 | C81: 0
A82: 0.3666666667 | B82: 0 | C82: 0
A83: 0.3714285714 | B83: 0 | C83: 0
A84: 0.3761904762 | B84: 0 | C84: 0
A85: 0.380952381 | B85: 0 | C85: 0
A86: 0.3857142857 | B86: 0 | C86: 0
A87: 0.3904761905 | B87: 0 | C87: 0
A88: 0.3952380952 | B88: 0 | C88: 0
A89: 0.4 | B89: 0 | C89: 0
A90: 0.4047619048 | B90: 0 | C90: 0
A91: 0.4095238095 | B91: 0 | C91: 0
A92: 0.4142857143 | B92: 0 | C92: 0
A93: 0.419047619 | B93: 0 | C93: 0
A94: 0.4238095238 | B94: 0 | C94: 0
A95: 0.4285714286 | B95: 0 | C95: 0
A96: 0.4333333333 | B96: 0 | C96: 0
A97: 0.4380952381 | B97: 0 | C97: 0
A98: 0.4428571429 | B98: 0 | C98: 0
A99: 0.4476190476 | B99: 0 | C99: 0
A100: 0.4523809524 | B100: 0 | C100: 0
A101: 0.4571428571 | B101: 0 | C101: 0
A102: 0.4619047619 | B102: 0 | C102: 0
A103: 0.4666666667 | B103: 0 | C103: 0
A104: 0.4714285714 | B104: 0 | C104: 0
A105: 0.4761904762 | B105: 0 | C105: 0
A106: 0.480952381 | B106: 0 | C106: 0
A107: 0.4857142857 | B107: 0 | C107: 0
A108: 0.4904761905 | B108: 0 | C108: 0
A109: 0.4952380952 | B109: 0 | C109: 0
A110: 0.5 | B110: 0 | C110: 0
A111: 0.5047619048 | B111: 0 | C111: 0
A112: 0.5095238095 | B112: 0 | C112: 0
A113: 0.5142857143 | B113: 0 | C113: 0
A114: 0.519047619 | B114: 0 | C114: 0
A115: 0.5238095238 | B115: 0 | C115: 0
A116: 0.5285714286 | B116: 0 | C116: 0
A117: 0.5333333333 | B117: 0 | C117: 0
A118: 0.5380952381 | B118: 0 | C118: 0
A119: 0.5428571429 | B119: 0 | C119: 0
A120: 0.5476190476 | B120: 0 | C120: 0
A121: 0.5523809524 | B121: 0 | C121: 0
A122: 0.5571428571 | B122: 0 | C122: 0
A123: 0.5619047619 | B123: 0 | C123: 0
A124: 0.5666666667 | B124: 0 | C124: 0
A125: 0.5714285714 | B125: 0 | C125: 0
A126: 0.5761904762 | B126: 0 | C126: 0
A127: 0.580952381 | B127: 0 | C127: 0
A128: 0.5857142857 | B128: 0 | C128: 0
A129: 0.5904761905 | B129: 0 | C129: 0
A130: 0.5952380952 | B130: 0 | C130: 0
A131: 0.6 | B131: 0 | C131: 0
A132: 0.6047619048 | B132: 0 | C132: 0
A133: 0.6095238095 | B133: 0 | C133: 0
A134: 0.6142857143 | B134: 0 | C134: 0
A135: 0.619047619 | B135: 0 | C135: 0
A136: =A135+1/210 -> 0.6238095238 | B136: 0 | C136: 0
A137: 0.6285714286 | B137: 0 | C137: 0
A138: 0.6333333333 | B138: 0 | C138: 0
A139: 0.6380952381 | B139: 0 | C139: 0
A140: 0.6428571429 | B140: 0 | C140: 0
A141: 0.6476190476 | B141: 0 | C141: 0
A142: 0.6523809524 | B142: 0 | C142: 0
A143: 0.6571428571 | B143: 0 | C143: 0
A144: 0.6619047619 | B144: 0 | C144: 0
A145: 0.6666666667 | B145: 0 | C145: 0
A146: 0.6714285714 | B146: 0 | C146: 0
A147: 0.6761904762 | B147: 0 | C147: 0
A148: 0.680952381 | B148: 0 | C148: 0
A149: 0.6857142857 | B149: 0 | C149: 0
A150: 0.6904761905 | B150: 0 | C150: 0
A151: 0.6952380952 | B151: 0 | C151: 0
A152: 0.7 | B152: 0 | C152: 0
A153: 0.7047619048 | B153: 0 | C153: 0
A154: 0.7095238095 | B154: 0 | C154: 0
A155: 0.7142857143 | B155: 0 | C155: 0
A156: 0.719047619 | B156: 0 | C156: 0
A157: 0.7238095238 | B157: 0 | C157: 0
A158: 0.7285714286 | B158: 0 | C158: 0
A159: 0.7333333333 | B159: 0 | C159: 0
A160: 0.7380952381 | B160: 0 | C160: 0
A161: 0.7428571429 | B161: 0 | C161: 0
A162: 0.7476190476 | B162: 0 | C162: 0
A163: 0.7523809524 | B163: 0 | C163: 0
A164: 0.7571428571 | B164: 0 | C164: 0
A165: 0.7619047619 | B165: 0 | C165: 0
A166: 0.7666666667 | B166: 0 | C166: 0
A167: 0.7714285714 | B167: 0 | C167: 0
A168: 0.7761904762 | B168: 0 | C168: 0
A169: 0.780952381 | B169: 0 | C169: 0
A170: 0.7857142857 | B170: 0 | C170: 0
A171: 0.7904761905 | B171: 0 | C171: 0
A172: 0.7952380952 | B172: 0 | C172: 0
A173: 0.8 | B173: 0 | C173: 0
A174: 0.8047619048 | B174: 0 | C174: 0
A175: 0.8095238095 | B175: 0 | C175: 0
A176: 0.8142857143 | B176: 0 | C176: 0
A177: 0.819047619 | B177: 0 | C177: 0
A178: 0.8238095238 | B178: 0 | C178: 0
A179: 0.8285714286 | B179: 0 | C179: 0
A180: 0.8333333333 | B180: 0 | C180: 0
A181: 0.8380952381 | B181: 0 | C181: 0
A182: 0.8428571429 | B182: 0 | C182: 0
A183: 0.8476190476 | B183: 0 | C183: 0
A184: 0.8523809524 | B184: 0 | C184: 0
A185: 0.8571428571 | B185: 0 | C185: 0
A186: 0.8619047619 | B186: 0 | C186: 0
A187: 0.8666666667 | B187: 0 | C187: 0
A188: 0.8714285714 | B188: 0 | C188: 0
A189: 0.8761904762 | B189: 0 | C189: 0
A190: 0.880952381 | B190: 0 | C190: 0
A191: 0.8857142857 | B191: 0 | C191: 0
A192: 0.8904761905 | B192: 0 | C192: 0
A193: 0.8952380952 | B193: 0 | C193: 0
A194: 0.9 | B194: 0 | C194: 0
A195: 0.9047619048 | B195: 0 | C195: 0
A196: 0.9095238095 | B196: 0 | C196: 0
A197: 0.9142857143 | B197: 0 | C197: 0
A198: 0.919047619 | B198: 0 | C198: 0
A199: 0.9238095238 | B199: 0 | C199: 0
A200: =A199+1/210 -> 0.9285714286 | B200: 0 | C200: 0
A201: 0.9333333333 | B201: 0 | C201: 0
A202: 0.9380952381 | B202: 0 | C202: 0
... 13 more rows

Sheet Monthly
A1: Curtailment records | D1: Base case: 210 games, sequential hydro, lockstep temp, historical wind, purchase ahead is ON | X1: Sorted Monthly Data
A3: Game | B3: Month | C3: Day | D3: Hour | E3: Curt | F3: R Viol | G3: Wyr | H3: Tyr | I3: Wind Yr | J3: Load | K3: R Req | L3: AR srv | M3: Therm | N3: Purch | O3: Hydro | P3: Wind | Q3: FOMW | R3: PerFO | S3: WCF | T3: Slicacc | Y3: Prob | Z3: Energy | AA3: Peak
A4: 4 | B4: 3 | C4: 10 | D4: 1 | E4: 1793.9 | F4: 0 | G4: 1932 | H4: 1932 | I4: 1 | J4: 27520 | K4: 2850 | L4: 0 | M4: 15409 | N4: 3000 | O4: 6368 | P4: 124 | Q4: 601 | R4: 0.029 | S4: 0.04 | T4: 0 | X4: Aug | Y4: =1/210 -> 0.004761904762 | Z4: 42430.4 | AA4: 1422.4
A5: 4 | B5: 3 | C5: 10 | D5: 2 | E5: 1035.1 | F5: 0 | G5: 1932 | H5: 1932 | I5: 1 | J5: 26947 | K5: 2850 | L5: 0 | M5: 15409 | N5: 3000 | O5: 6368 | P5: 310 | Q5: 601 | R5: 0.029 | S5: 0.1 | T5: 0 | X5: Aug | Y5: =Y4+1/210 -> 0.009523809524 | Z5: 23669.9 | AA5: 1387.7
A6: 4 | B6: 3 | C6: 10 | D6: 3 | E6: 937.5 | F6: 0 | G6: 1932 | H6: 1932 | I6: 1 | J6: 26764 | K6: 2850 | L6: 0 | M6: 15075 | N6: 3000 | O6: 6368 | P6: 558 | Q6: 934 | R6: 0.046 | S6: 0.18 | T6: 0 | X6: Aug | Y6: =Y5+1/210 -> 0.01428571429 | Z6: 21658.5 | AA6: 1222.5
A7: 4 | B7: 3 | C7: 10 | D7: 4 | E7: 1319.7 | F7: 0 | G7: 1932 | H7: 1932 | I7: 1 | J7: 27050 | K7: 2850 | L7: 0 | M7: 14948 | N7: 3000 | O7: 6368 | P7: 589 | Q7: 1061 | R7: 0.052 | S7: 0.19 | T7: 0 | X7: Aug | Y7: 0.01904761905 | Z7: 17358.7 | AA7: 877.6
A8: 4 | B8: 3 | C8: 10 | D8: 5 | E8: 2274.6 | F8: 0 | G8: 1932 | H8: 1932 | I8: 1 | J8: 28097 | K8: 2850 | L8: 0 | M8: 14669 | N8: 3000 | O8: 6368 | P8: 960 | Q8: 1341 | R8: 0.065 | S8: 0.31 | T8: 0 | X8: Aug | Y8: 0.02380952381 | Z8: 7227.4 | AA8: 766.5
A9: 4 | B9: 3 | C9: 10 | D9: 6 | E9: 3780.4 | F9: 0 | G9: 1932 | H9: 1932 | I9: 1 | J9: 30616 | K9: 2850 | L9: 0 | M9: 14484 | N9: 3000 | O9: 7411 | P9: 1115 | Q9: 1526 | R9: 0.074 | S9: 0.36 | T9: 0 | X9: Aug | Y9: 0.02857142857 | Z9: 2591.4 | AA9: 363.1
A10: 4 | B10: 3 | C10: 10 | D10: 7 | E10: 822.7 | F10: 0 | G10: 1932 | H10: 1932 | I10: 1 | J10: 34269 | K10: 2850 | L10: 0 | M10: 14484 | N10: 3000 | O10: 14713 | P10: 1301 | Q10: 1526 | R10: 0.074 | S10: 0.42 | T10: 0 | X10: Aug | Y10: 0.03333333333 | Z10: 2170.1 | AA10: 278.3
A11: 4 | B11: 3 | C11: 10 | D11: 8 | E11: 822.7 | F11: 0 | G11: 1932 | H11: 1932 | I11: 1 | J11: 36631 | K11: 2850 | L11: 0 | M11: 14484 | N11: 3000 | O11: 16641 | P11: 1735 | Q11: 1526 | R11: 0.074 | S11: 0.56 | T11: 0 | X11: Aug | Y11: 0.0380952381 | Z11: 31.2 | AA11: 31.2
A12: 4 | B12: 3 | C12: 10 | D12: 9 | E12: 822.7 | F12: 0 | G12: 1932 | H12: 1932 | I12: 1 | J12: 37083 | K12: 2850 | L12: 0 | M12: 14484 | N12: 3000 | O12: 16597 | P12: 2231 | Q12: 1526 | R12: 0.074 | S12: 0.72 | T12: 0 | X12: Aug | Y12: 0.04285714286 | Z12: 0 | AA12: 0
A13: 4 | B13: 3 | C13: 10 | D13: 10 | E13: 822.7 | F13: 0 | G13: 1932 | H13: 1932 | I13: 1 | J13: 36862 | K13: 2850 | L13: 0 | M13: 14484 | N13: 3000 | O13: 15973 | P13: 2633 | Q13: 1526 | R13: 0.074 | S13: 0.85 | T13: 0 | X13: Dec | Y13: =1/210 -> 0.004761904762 | Z13: 150411.2 | AA13: 5700.7
A14: 4 | B14: 3 | C14: 10 | D14: 11 | E14: 822.7 | F14: 0 | G14: 1932 | H14: 1932 | I14: 1 | J14: 36303 | K14: 2850 | L14: 0 | M14: 14484 | N14: 3000 | O14: 15260 | P14: 2788 | Q14: 1526 | R14: 0.074 | S14: 0.9 | T14: 0 | X14: Dec | Y14: =Y13+1/210 -> 0.009523809524 | Z14: 66565.3 | AA14: 4695.4
A15: 4 | B15: 3 | C15: 10 | D15: 12 | E15: 822.7 | F15: 0 | G15: 1932 | H15: 1932 | I15: 1 | J15: 35484 | K15: 2850 | L15: 0 | M15: 14484 | N15: 3000 | O15: 13901 | P15: 2788 | Q15: 1526 | R15: 0.074 | S15: 0.9 | T15: 0 | X15: Dec | Y15: =Y14+1/210 -> 0.01428571429 | Z15: 43547.5 | AA15: 4398.2
A16: 4 | B16: 3 | C16: 10 | D16: 13 | E16: 822.7 | F16: 0 | G16: 1932 | H16: 1932 | I16: 1 | J16: 34755 | K16: 2850 | L16: 0 | M16: 14484 | N16: 3000 | O16: 12486 | P16: 2664 | Q16: 1526 | R16: 0.074 | S16: 0.86 | T16: 0 | X16: Dec | Y16: 0.01904761905 | Z16: 327 | AA16: 65.4
A17: 4 | B17: 3 | C17: 10 | D17: 14 | E17: 822.7 | F17: 0 | G17: 1932 | H17: 1932 | I17: 1 | J17: 34119 | K17: 2850 | L17: 0 | M17: 14484 | N17: 3000 | O17: 12097 | P17: 2416 | Q17: 1526 | R17: 0.074 | S17: 0.78 | T17: 0 | X17: Dec | Y17: 0.02380952381 | Z17: 0 | AA17: 0
A18: 4 | B18: 3 | C18: 10 | D18: 15 | E18: 822.7 | F18: 0 | G18: 1932 | H18: 1932 | I18: 1 | J18: 33784 | K18: 2850 | L18: 0 | M18: 14484 | N18: 3000 | O18: 12196 | P18: 1983 | Q18: 1526 | R18: 0.074 | S18: 0.64 | T18: 0 | X18: Jan | Y18: =1/210 -> 0.004761904762 | Z18: 55426.7 | AA18: 5613.9
A19: 4 | B19: 3 | C19: 10 | D19: 16 | E19: 822.7 | F19: 0 | G19: 1932 | H19: 1932 | I19: 1 | J19: 34272 | K19: 2850 | L19: 0 | M19: 14484 | N19: 3000 | O19: 13975 | P19: 1518 | Q19: 1526 | R19: 0.074 | S19: 0.49 | T19: 0 | X19: Jan | Y19: =Y18+1/210 -> 0.009523809524 | Z19: 7695.9 | AA19: 1885.8
A20: 4 | B20: 3 | C20: 10 | D20: 17 | E20: 822.7 | F20: 0 | G20: 1932 | H20: 1932 | I20: 1 | J20: 36590 | K20: 2850 | L20: 0 | M20: 14484 | N20: 3000 | O20: 17375 | P20: 960 | Q20: 1526 | R20: 0.074 | S20: 0.31 | T20: 0 | X20: Jan | Y20: =Y19+1/210 -> 0.01428571429 | Z20: 1831.9 | AA20: 949.6
A21: 4 | B21: 3 | C21: 10 | D21: 18 | E21: 822.7 | F21: 0 | G21: 1932 | H21: 1932 | I21: 1 | J21: 38729 | K21: 2850 | L21: 0 | M21: 14484 | N21: 3000 | O21: 19792 | P21: 682 | Q21: 1526 | R21: 0.074 | S21: 0.22 | T21: 0 | X21: Jan | Y21: =Y20+1/210 -> 0.01904761905 | Z21: 0 | AA21: 0
A22: 4 | B22: 3 | C22: 10 | D22: 19 | E22: 822.7 | F22: 0 | G22: 1932 | H22: 1932 | I22: 1 | J22: 38519 | K22: 2850 | L22: 0 | M22: 14484 | N22: 3000 | O22: 19830 | P22: 434 | Q22: 1526 | R22: 0.074 | S22: 0.14 | T22: 0
A23: 4 | B23: 3 | C23: 10 | D23: 20 | E23: 822.7 | F23: 0 | G23: 1932 | H23: 1932 | I23: 1 | J23: 37538 | K23: 2850 | L23: 0 | M23: 14484 | N23: 3000 | O23: 19066 | P23: 217 | Q23: 1526 | R23: 0.074 | S23: 0.07 | T23: 0
A24: 4 | B24: 3 | C24: 10 | D24: 21 | E24: 822.7 | F24: 0 | G24: 1932 | H24: 1932 | I24: 1 | J24: 36333 | K24: 2850 | L24: 0 | M24: 14484 | N24: 3000 | O24: 17954 | P24: 124 | Q24: 1526 | R24: 0.074 | S24: 0.04 | T24: 0 | X24: Energy | Y24: LOLP | Z24: EERD
A25: 4 | B25: 3 | C25: 10 | D25: 22 | E25: 822.7 | F25: 0 | G25: 1932 | H25: 1932 | I25: 1 | J25: 34504 | K25: 2850 | L25: 0 | M25: 14484 | N25: 3000 | O25: 15617 | P25: 93 | Q25: 1526 | R25: 0.074 | S25: 0.03 | T25: 0 | X25: Jan | Y25: 0.8 | Z25: 1.9
A26: 4 | B26: 3 | C26: 10 | D26: 23 | E26: 4398.2 | F26: 0 | G26: 1932 | H26: 1932 | I26: 1 | J26: 31758 | K26: 2850 | L26: 0 | M26: 13866 | N26: 3000 | O26: 9545 | P26: 124 | Q26: 2144 | R26: 0.105 | S26: 0.04 | T26: 0 | X26: Feb | Y26: 0 | Z26: 0
A27: 4 | B27: 3 | C27: 10 | D27: 24 | E27: 3832.8 | F27: 0 | G27: 1932 | H27: 1932 | I27: 1 | J27: 29187 | K27: 2850 | L27: 0 | M27: 14431 | N27: 3000 | O27: 6880 | P27: 217 | Q27: 1578 | R27: 0.077 | S27: 0.07 | T27: 0 | X27: Mar | Y27: 0 | Z27: 0
A28: 4 | B28: 3 | C28: 11 | D28: 1 | E28: 2278.9 | F28: 0 | G28: 1932 | H28: 1932 | I28: 1 | J28: 27274 | K28: 2850 | L28: 0 | M28: 14444 | N28: 3000 | O28: 6293 | P28: 434 | Q28: 1566 | R28: 0.076 | S28: 0.14 | T28: 0 | X28: Apr | Y28: 0 | Z28: 0
A29: 4 | B29: 3 | C29: 11 | D29: 2 | E29: 1130.1 | F29: 0 | G29: 1932 | H29: 1932 | I29: 1 | J29: 26686 | K29: 2850 | L29: 0 | M29: 14602 | N29: 3000 | O29: 6293 | P29: 836 | Q29: 1408 | R29: 0.069 | S29: 0.27 | T29: 0 | X29: May | Y29: 0 | Z29: 0
A30: 4 | B30: 3 | C30: 11 | D30: 3 | E30: 189.6 | F30: 0 | G30: 1932 | H30: 1932 | I30: 1 | J30: 26514 | K30: 2850 | L30: 0 | M30: 14689 | N30: 3000 | O30: 6293 | P30: 1518 | Q30: 1321 | R30: 0.064 | S30: 0.49 | T30: 0 | X30: Jun | Y30: 0 | Z30: 0
A31: 4 | B31: 3 | C31: 11 | D31: 4 | E31: 214.7 | F31: 0 | G31: 1932 | H31: 1932 | I31: 1 | J31: 26818 | K31: 2850 | L31: 0 | M31: 14689 | N31: 3000 | O31: 6293 | P31: 1797 | Q31: 1321 | R31: 0.064 | S31: 0.58 | T31: 0 | X31: Jul | Y31: 0 | Z31: 0
A32: 4 | B32: 3 | C32: 11 | D32: 5 | E32: 1317.9 | F32: 0 | G32: 1932 | H32: 1932 | I32: 1 | J32: 27921 | K32: 2850 | L32: 0 | M32: 14689 | N32: 3000 | O32: 6293 | P32: 1797 | Q32: 1321 | R32: 0.064 | S32: 0.58 | T32: 0 | X32: Aug | Y32: 0.7 | Z32: 4.3
A33: 4 | B33: 3 | C33: 11 | D33: 6 | E33: 3282.5 | F33: 0 | G33: 1932 | H33: 1932 | I33: 1 | J33: 30575 | K33: 2850 | L33: 0 | M33: 14689 | N33: 3000 | O33: 6796 | P33: 1983 | Q33: 1321 | R33: 0.064 | S33: 0.64 | T33: 0 | X33: Sep | Y33: 0 | Z33: 0
A34: 4 | B34: 3 | C34: 11 | D34: 7 | E34: 324.8 | F34: 0 | G34: 1932 | H34: 1932 | I34: 1 | J34: 34385 | K34: 2850 | L34: 0 | M34: 14689 | N34: 3000 | O34: 14285 | P34: 2138 | Q34: 1321 | R34: 0.064 | S34: 0.69 | T34: 0 | X34: Oct | Y34: 0 | Z34: 0
A35: 4 | B35: 3 | C35: 11 | D35: 8 | E35: 324.8 | F35: 0 | G35: 1932 | H35: 1932 | I35: 1 | J35: 36718 | K35: 2850 | L35: 0 | M35: 14689 | N35: 3000 | O35: 16680 | P35: 2076 | Q35: 1321 | R35: 0.064 | S35: 0.67 | T35: 0 | X35: Nov | Y35: 0 | Z35: 0
A36: 4 | B36: 3 | C36: 11 | D36: 9 | E36: 324.8 | F36: 0 | G36: 1932 | H36: 1932 | I36: 1 | J36: 37010 | K36: 2850 | L36: 0 | M36: 14689 | N36: 3000 | O36: 16817 | P36: 2231 | Q36: 1321 | R36: 0.064 | S36: 0.72 | T36: 0 | X36: Dec | Y36: 1.6 | Z36: 2.4
A37: 4 | B37: 3 | C37: 11 | D37: 10 | E37: 324.8 | F37: 0 | G37: 1932 | H37: 1932 | I37: 1 | J37: 36692 | K37: 2850 | L37: 0 | M37: 14689 | N37: 3000 | O37: 16654 | P37: 2076 | Q37: 1321 | R37: 0.064 | S37: 0.67 | T37: 0
A38: 4 | B38: 3 | C38: 11 | D38: 11 | E38: 324.8 | F38: 0 | G38: 1932 | H38: 1932 | I38: 1 | J38: 36111 | K38: 2850 | L38: 0 | M38: 14689 | N38: 3000 | O38: 16135 | P38: 2014 | Q38: 1321 | R38: 0.064 | S38: 0.65 | T38: 0 | X38: Peak | Y38: LOLP | Z38: EERD
A39: 4 | B39: 3 | C39: 11 | D39: 12 | E39: 324.8 | F39: 0 | G39: 1932 | H39: 1932 | I39: 1 | J39: 35297 | K39: 2850 | L39: 0 | M39: 14689 | N39: 3000 | O39: 14751 | P39: 2045 | Q39: 1321 | R39: 0.064 | S39: 0.66 | T39: 0 | X39: Jan | Y39: 1.7 | Z39: 1.9
A40: 4 | B40: 3 | C40: 11 | D40: 13 | E40: 324.8 | F40: 0 | G40: 1932 | H40: 1932 | I40: 1 | J40: 34591 | K40: 2850 | L40: 0 | M40: 14689 | N40: 3000 | O40: 13172 | P40: 2107 | Q40: 1321 | R40: 0.064 | S40: 0.68 | T40: 0 | X40: Feb | Y40: 0 | Z40: 0
A41: 4 | B41: 3 | C41: 11 | D41: 14 | E41: 324.8 | F41: 0 | G41: 1932 | H41: 1932 | I41: 1 | J41: 33982 | K41: 2850 | L41: 0 | M41: 14689 | N41: 3000 | O41: 12625 | P41: 2045 | Q41: 1321 | R41: 0.064 | S41: 0.66 | T41: 0 | U41: Dec | V41: =SUM(E4:E41) -> 43547.5 | W41: =MAX(E4:E41) -> 4398.2 | X41: Mar | Y41: 0 | Z41: 0
A42: 75 | B42: 3 | C42: 8 | D42: 21 | E42: 204.5 | F42: 0 | G42: 1932 | H42: 1932 | I42: 2 | J42: 36055 | K42: 2850 | L42: 0 | M42: 14575 | N42: 3000 | O42: 18203 | P42: 124 | Q42: 1435 | R42: 0.07 | S42: 0.04 | T42: 0 | X42: Apr | Y42: 0 | Z42: 0
A43: 75 | B43: 3 | C43: 8 | D43: 22 | E43: 1737.8 | F43: 0 | G43: 1932 | H43: 1932 | I43: 2 | J43: 34268 | K43: 2850 | L43: 0 | M43: 14575 | N43: 3000 | O43: 14312 | P43: 155 | Q43: 1435 | R43: 0.07 | S43: 0.05 | T43: 0 | X43: May | Y43: 0 | Z43: 0
A44: 75 | B44: 3 | C44: 8 | D44: 23 | E44: 4695.4 | F44: 0 | G44: 1932 | H44: 1932 | I44: 2 | J44: 31601 | K44: 2850 | L44: 0 | M44: 14575 | N44: 3000 | O44: 8444 | P44: 62 | Q44: 1435 | R44: 0.07 | S44: 0.02 | T44: 0 | X44: Jun | Y44: 0 | Z44: 0
A45: 75 | B45: 3 | C45: 8 | D45: 24 | E45: 4248.3 | F45: 0 | G45: 1932 | H45: 1932 | I45: 2 | J45: 29081 | K45: 2850 | L45: 0 | M45: 14575 | N45: 3000 | O45: 6339 | P45: 93 | Q45: 1435 | R45: 0.07 | S45: 0.03 | T45: 0 | X45: Jul | Y45: 0 | Z45: 0
A46: 75 | B46: 3 | C46: 9 | D46: 1 | E46: 2789.2 | F46: 0 | G46: 1932 | H46: 1932 | I46: 2 | J46: 27739 | K46: 2850 | L46: 0 | M46: 14523 | N46: 3000 | O46: 6323 | P46: 279 | Q46: 1487 | R46: 0.072 | S46: 0.09 | T46: 0 | X46: Aug | Y46: 0 | Z46: 4.3
A47: 75 | B47: 3 | C47: 9 | D47: 2 | E47: 2049.2 | F47: 0 | G47: 1932 | H47: 1932 | I47: 2 | J47: 27165 | K47: 2850 | L47: 0 | M47: 14441 | N47: 3000 | O47: 6323 | P47: 527 | Q47: 1569 | R47: 0.076 | S47: 0.17 | T47: 0 | X47: Sep | Y47: 0 | Z47: 0
A48: 75 | B48: 3 | C48: 9 | D48: 3 | E48: 1643.3 | F48: 0 | G48: 1932 | H48: 1932 | I48: 2 | J48: 26976 | K48: 2850 | L48: 0 | M48: 14441 | N48: 3000 | O48: 6323 | P48: 744 | Q48: 1569 | R48: 0.076 | S48: 0.24 | T48: 0 | X48: Oct | Y48: 0 | Z48: 0
A49: 75 | B49: 3 | C49: 9 | D49: 4 | E49: 1803.4 | F49: 0 | G49: 1932 | H49: 1932 | I49: 2 | J49: 27260 | K49: 2850 | L49: 0 | M49: 14441 | N49: 3000 | O49: 6323 | P49: 867 | Q49: 1569 | R49: 0.076 | S49: 0.28 | T49: 0 | X49: Nov | Y49: 0 | Z49: 0
A50: 75 | B50: 3 | C50: 9 | D50: 5 | E50: 2781.7 | F50: 0 | G50: 1932 | H50: 1932 | I50: 2 | J50: 28300 | K50: 2850 | L50: 0 | M50: 14441 | N50: 3000 | O50: 6323 | P50: 929 | Q50: 1569 | R50: 0.076 | S50: 0.3 | T50: 0 | X50: Dec | Y50: 1.8 | Z50: 2.4
A51: 75 | B51: 3 | C51: 9 | D51: 6 | E51: 4304.1 | F51: 0 | G51: 1932 | H51: 1932 | I51: 2 | J51: 30794 | K51: 2850 | L51: 0 | M51: 14441 | N51: 3000 | O51: 7666 | P51: 558 | Q51: 1569 | R51: 0.076 | S51: 0.18 | T51: 0
A52: 75 | B52: 3 | C52: 9 | D52: 7 | E52: 1346.4 | F52: 0 | G52: 1932 | H52: 1932 | I52: 2 | J52: 34422 | K52: 2850 | L52: 0 | M52: 14441 | N52: 3000 | O52: 15159 | P52: 527 | Q52: 1569 | R52: 0.076 | S52: 0.17 | T52: 0
A53: 75 | B53: 3 | C53: 9 | D53: 8 | E53: 1346.4 | F53: 0 | G53: 1932 | H53: 1932 | I53: 2 | J53: 36816 | K53: 2850 | L53: 0 | M53: 14441 | N53: 3000 | O53: 17429 | P53: 651 | Q53: 1569 | R53: 0.076 | S53: 0.21 | T53: 0
A54: 75 | B54: 3 | C54: 9 | D54: 9 | E54: 1346.4 | F54: 0 | G54: 1932 | H54: 1932 | I54: 2 | J54: 37335 | K54: 2850 | L54: 0 | M54: 14441 | N54: 3000 | O54: 17886 | P54: 713 | Q54: 1569 | R54: 0.076 | S54: 0.23 | T54: 0
A55: 75 | B55: 3 | C55: 9 | D55: 10 | E55: 1346.4 | F55: 0 | G55: 1932 | H55: 1932 | I55: 2 | J55: 37149 | K55: 2850 | L55: 0 | M55: 14441 | N55: 3000 | O55: 17731 | P55: 682 | Q55: 1569 | R55: 0.076 | S55: 0.22 | T55: 0
A56: 75 | B56: 3 | C56: 9 | D56: 11 | E56: 1346.4 | F56: 0 | G56: 1932 | H56: 1932 | I56: 2 | J56: 36589 | K56: 2850 | L56: 0 | M56: 14441 | N56: 3000 | O56: 17079 | P56: 774 | Q56: 1569 | R56: 0.076 | S56: 0.25 | T56: 0
A57: 75 | B57: 3 | C57: 9 | D57: 12 | E57: 1346.4 | F57: 0 | G57: 1932 | H57: 1932 | I57: 2 | J57: 35755 | K57: 2850 | L57: 0 | M57: 14441 | N57: 3000 | O57: 15612 | P57: 867 | Q57: 1569 | R57: 0.076 | S57: 0.28 | T57: 0
A58: 75 | B58: 3 | C58: 9 | D58: 13 | E58: 1346.4 | F58: 0 | G58: 1932 | H58: 1932 | I58: 2 | J58: 34998 | K58: 2850 | L58: 0 | M58: 14441 | N58: 3000 | O58: 13921 | P58: 991 | Q58: 1569 | R58: 0.076 | S58: 0.32 | T58: 0
A59: 75 | B59: 3 | C59: 9 | D59: 14 | E59: 1346.4 | F59: 0 | G59: 1932 | H59: 1932 | I59: 2 | J59: 34340 | K59: 2850 | L59: 0 | M59: 14441 | N59: 3000 | O59: 13108 | P59: 1146 | Q59: 1569 | R59: 0.076 | S59: 0.37 | T59: 0
A60: 75 | B60: 3 | C60: 9 | D60: 15 | E60: 1346.4 | F60: 0 | G60: 1932 | H60: 1932 | I60: 2 | J60: 33992 | K60: 2850 | L60: 0 | M60: 14441 | N60: 3000 | O60: 12791 | P60: 1115 | Q60: 1569 | R60: 0.076 | S60: 0.36 | T60: 0
A61: 75 | B61: 3 | C61: 9 | D61: 16 | E61: 1346.4 | F61: 0 | G61: 1932 | H61: 1932 | I61: 2 | J61: 34481 | K61: 2850 | L61: 0 | M61: 14441 | N61: 3000 | O61: 14260 | P61: 960 | Q61: 1569 | R61: 0.076 | S61: 0.31 | T61: 0
A62: 75 | B62: 3 | C62: 9 | D62: 17 | E62: 1346.4 | F62: 0 | G62: 1932 | H62: 1932 | I62: 2 | J62: 36809 | K62: 2850 | L62: 0 | M62: 14441 | N62: 3000 | O62: 16989 | P62: 1084 | Q62: 1569 | R62: 0.076 | S62: 0.35 | T62: 0
A63: 75 | B63: 3 | C63: 9 | D63: 18 | E63: 1381 | F63: 0 | G63: 1932 | H63: 1932 | I63: 2 | J63: 38936 | K63: 2850 | L63: 0 | M63: 14406 | N63: 3000 | O63: 19053 | P63: 1146 | Q63: 1603 | R63: 0.078 | S63: 0.37 | T63: 0
A64: 75 | B64: 3 | C64: 9 | D64: 19 | E64: 1396.4 | F64: 0 | G64: 1932 | H64: 1932 | I64: 2 | J64: 38698 | K64: 2850 | L64: 0 | M64: 14391 | N64: 3000 | O64: 18754 | P64: 1208 | Q64: 1619 | R64: 0.079 | S64: 0.39 | T64: 0
A65: 75 | B65: 3 | C65: 9 | D65: 20 | E65: 1396.4 | F65: 0 | G65: 1932 | H65: 1932 | I65: 2 | J65: 37702 | K65: 2850 | L65: 0 | M65: 14391 | N65: 3000 | O65: 17758 | P65: 1208 | Q65: 1619 | R65: 0.079 | S65: 0.39 | T65: 0
A66: 75 | B66: 3 | C66: 9 | D66: 21 | E66: 1396.4 | F66: 0 | G66: 1932 | H66: 1932 | I66: 2 | J66: 36491 | K66: 2850 | L66: 0 | M66: 14391 | N66: 3000 | O66: 16454 | P66: 1301 | Q66: 1619 | R66: 0.079 | S66: 0.42 | T66: 0
A67: 75 | B67: 3 | C67: 9 | D67: 22 | E67: 1396.4 | F67: 0 | G67: 1932 | H67: 1932 | I67: 2 | J67: 34676 | K67: 2850 | L67: 0 | M67: 14391 | N67: 3000 | O67: 13975 | P67: 1425 | Q67: 1619 | R67: 0.079 | S67: 0.46 | T67: 0
A68: 75 | B68: 3 | C68: 9 | D68: 23 | E68: 4354.1 | F68: 0 | G68: 1932 | H68: 1932 | I68: 2 | J68: 31964 | K68: 2850 | L68: 0 | M68: 14391 | N68: 3000 | O68: 7535 | P68: 1859 | Q68: 1619 | R68: 0.079 | S68: 0.6 | T68: 0
A69: 75 | B69: 3 | C69: 9 | D69: 24 | E69: 2883.7 | F69: 0 | G69: 1932 | H69: 1932 | I69: 2 | J69: 29406 | K69: 2850 | L69: 0 | M69: 14391 | N69: 3000 | O69: 6323 | P69: 1983 | Q69: 1619 | R69: 0.079 | S69: 0.64 | T69: 0
A70: 75 | B70: 3 | C70: 10 | D70: 1 | E70: 905.2 | F70: 0 | G70: 1932 | H70: 1932 | I70: 2 | J70: 27520 | K70: 2850 | L70: 0 | M70: 14391 | N70: 3000 | O70: 6323 | P70: 2076 | Q70: 1619 | R70: 0.079 | S70: 0.67 | T70: 0
A71: 75 | B71: 3 | C71: 10 | D71: 2 | E71: 239.3 | F71: 0 | G71: 1932 | H71: 1932 | I71: 2 | J71: 26947 | K71: 2850 | L71: 0 | M71: 14391 | N71: 3000 | O71: 6323 | P71: 2169 | Q71: 1619 | R71: 0.079 | S71: 0.7 | T71: 0
A72: 75 | B72: 3 | C72: 10 | D72: 4 | E72: 260.2 | F72: 0 | G72: 1932 | H72: 1932 | I72: 2 | J72: 27050 | K72: 2850 | L72: 0 | M72: 14473 | N72: 3000 | O72: 6323 | P72: 2169 | Q72: 1537 | R72: 0.075 | S72: 0.7 | T72: 0
A73: 75 | B73: 3 | C73: 10 | D73: 5 | E73: 1063.1 | F73: 0 | G73: 1932 | H73: 1932 | I73: 2 | J73: 28097 | K73: 2850 | L73: 0 | M73: 14500 | N73: 3000 | O73: 6323 | P73: 2385 | Q73: 1509 | R73: 0.074 | S73: 0.77 | T73: 0
A74: 75 | B74: 3 | C74: 10 | D74: 6 | E74: 3057.1 | F74: 0 | G74: 1932 | H74: 1932 | I74: 2 | J74: 30616 | K74: 2850 | L74: 0 | M74: 14500 | N74: 3000 | O74: 7003 | P74: 2231 | Q74: 1509 | R74: 0.074 | S74: 0.72 | T74: 0
A75: 75 | B75: 3 | C75: 10 | D75: 7 | E75: 99.4 | F75: 0 | G75: 1932 | H75: 1932 | I75: 2 | J75: 34269 | K75: 2850 | L75: 0 | M75: 14500 | N75: 3000 | O75: 14985 | P75: 1735 | Q75: 1509 | R75: 0.074 | S75: 0.56 | T75: 0
A76: 75 | B76: 3 | C76: 10 | D76: 8 | E76: 99.4 | F76: 0 | G76: 1932 | H76: 1932 | I76: 2 | J76: 36631 | K76: 2850 | L76: 0 | M76: 14500 | N76: 3000 | O76: 17254 | P76: 1828 | Q76: 1509 | R76: 0.074 | S76: 0.59 | T76: 0
A77: 75 | B77: 3 | C77: 10 | D77: 9 | E77: 99.4 | F77: 0 | G77: 1932 | H77: 1932 | I77: 2 | J77: 37083 | K77: 2850 | L77: 0 | M77: 14500 | N77: 3000 | O77: 17644 | P77: 1890 | Q77: 1509 | R77: 0.074 | S77: 0.61 | T77: 0
A78: 75 | B78: 3 | C78: 10 | D78: 10 | E78: 99.4 | F78: 0 | G78: 1932 | H78: 1932 | I78: 2 | J78: 36862 | K78: 2850 | L78: 0 | M78: 14500 | N78: 3000 | O78: 17454 | P78: 1859 | Q78: 1509 | R78: 0.074 | S78: 0.6 | T78: 0
A79: 75 | B79: 3 | C79: 10 | D79: 24 | E79: 774 | F79: 0 | G79: 1932 | H79: 1932 | I79: 2 | J79: 29187 | K79: 2850 | L79: 0 | M79: 15847 | N79: 3000 | O79: 7594 | P79: 1146 | Q79: 162 | R79: 0.008 | S79: 0.37 | T79: 0
A80: 75 | B80: 3 | C80: 11 | D80: 1 | E80: 138.9 | F80: 0 | G80: 1932 | H80: 1932 | I80: 2 | J80: 27274 | K80: 2850 | L80: 0 | M80: 15847 | N80: 3000 | O80: 6285 | P80: 1177 | Q80: 162 | R80: 0.008 | S80: 0.38 | T80: 0
A81: 75 | B81: 3 | C81: 11 | D81: 4 | E81: 385.3 | F81: 0 | G81: 1932 | H81: 1932 | I81: 2 | J81: 26818 | K81: 2850 | L81: 0 | M81: 15981 | N81: 3000 | O81: 6285 | P81: 341 | Q81: 28 | R81: 0.001 | S81: 0.11 | T81: 0
A82: 75 | B82: 3 | C82: 11 | D82: 5 | E82: 1550.5 | F82: 0 | G82: 1932 | H82: 1932 | I82: 2 | J82: 27921 | K82: 2850 | L82: 0 | M82: 15981 | N82: 3000 | O82: 6285 | P82: 279 | Q82: 28 | R82: 0.001 | S82: 0.09 | T82: 0
A83: 75 | B83: 3 | C83: 11 | D83: 6 | E83: 2429.2 | F83: 0 | G83: 1932 | H83: 1932 | I83: 2 | J83: 30575 | K83: 2850 | L83: 0 | M83: 15981 | N83: 3000 | O83: 7813 | P83: 527 | Q83: 28 | R83: 0.001 | S83: 0.17 | T83: 0
A84: 75 | B84: 3 | C84: 11 | D84: 24 | E84: 93.2 | F84: 0 | G84: 1932 | H84: 1932 | I84: 2 | J84: 28963 | K84: 2850 | L84: 0 | M84: 15981 | N84: 3000 | O84: 7886 | P84: 1177 | Q84: 28 | R84: 0.001 | S84: 0.38 | T84: 0 | U84: Dec | V84: =SUM(E42:E84) -> 66565.3 | W84: =MAX(E42:E84) -> 4695.4
A85: 107 | B85: 3 | C85: 17 | D85: 1 | E85: 65.4 | F85: 0 | G85: 1964 | H85: 1964 | I85: 2 | J85: 26899 | K85: 1435 | L85: 0 | M85: 14284 | N85: 3000 | O85: 8694 | P85: 31 | Q85: 1726 | R85: 0.084 | S85: 0.01 | T85: 0
A86: 107 | B86: 3 | C86: 17 | D86: 2 | E86: 65.4 | F86: 0 | G86: 1964 | H86: 1964 | I86: 2 | J86: 26332 | K86: 2850 | L86: 0 | M86: 14284 | N86: 3000 | O86: 8127 | P86: 31 | Q86: 1726 | R86: 0.084 | S86: 0.01 | T86: 0
A87: 107 | B87: 3 | C87: 17 | D87: 4 | E87: 65.4 | F87: 0 | G87: 1964 | H87: 1964 | I87: 2 | J87: 26428 | K87: 2850 | L87: 0 | M87: 14284 | N87: 3000 | O87: 8223 | P87: 31 | Q87: 1726 | R87: 0.084 | S87: 0.01 | T87: 0
A88: 107 | B88: 3 | C88: 17 | D88: 5 | E88: 65.4 | F88: 0 | G88: 1964 | H88: 1964 | I88: 2 | J88: 27421 | K88: 2850 | L88: 0 | M88: 14284 | N88: 3000 | O88: 9216 | P88: 31 | Q88: 1726 | R88: 0.084 | S88: 0.01 | T88: 0
A89: 107 | B89: 3 | C89: 17 | D89: 6 | E89: 65.4 | F89: 0 | G89: 1964 | H89: 1964 | I89: 2 | J89: 29834 | K89: 2850 | L89: 0 | M89: 14284 | N89: 3000 | O89: 11628 | P89: 31 | Q89: 1726 | R89: 0.084 | S89: 0.01 | T89: 0 | U89: Dec | V89: =SUM(E85:E89) -> 327 | W89: =MAX(E85:E89) -> 65.4
A90: 146 | B90: 3 | C90: 8 | D90: 17 | E90: 929.1 | F90: 0 | G90: 1932 | H90: 1932 | I90: 1 | J90: 36400 | K90: 2850 | L90: 0 | M90: 14364 | N90: 3000 | O90: 18128 | P90: 31 | Q90: 1646 | R90: 0.08 | S90: 0.01 | T90: 0
A91: 146 | B91: 3 | C91: 8 | D91: 18 | E91: 1927.8 | F91: 0 | G91: 1932 | H91: 1932 | I91: 1 | J91: 38476 | K91: 2850 | L91: 0 | M91: 14434 | N91: 3000 | O91: 19103 | P91: 62 | Q91: 1576 | R91: 0.077 | S91: 0.02 | T91: 0
A92: 146 | B92: 3 | C92: 8 | D92: 19 | E92: 1915.2 | F92: 0 | G92: 1932 | H92: 1932 | I92: 1 | J92: 38226 | K92: 2850 | L92: 0 | M92: 14447 | N92: 3000 | O92: 18853 | P92: 62 | Q92: 1563 | R92: 0.076 | S92: 0.02 | T92: 0
A93: 146 | B93: 3 | C93: 8 | D93: 20 | E93: 1628.4 | F93: 0 | G93: 1932 | H93: 1932 | I93: 1 | J93: 37246 | K93: 2850 | L93: 0 | M93: 14733 | N93: 3000 | O93: 17904 | P93: 31 | Q93: 1276 | R93: 0.062 | S93: 0.01 | T93: 0
A94: 146 | B94: 3 | C94: 8 | D94: 21 | E94: 1692.6 | F94: 0 | G94: 1932 | H94: 1932 | I94: 1 | J94: 36055 | K94: 2850 | L94: 0 | M94: 14669 | N94: 3000 | O94: 16745 | P94: 0 | Q94: 1340 | R94: 0.065 | S94: 0 | T94: 0
A95: 146 | B95: 3 | C95: 8 | D95: 22 | E95: 1604.3 | F95: 0 | G95: 1932 | H95: 1932 | I95: 1 | J95: 34268 | K95: 2850 | L95: 0 | M95: 14758 | N95: 3000 | O95: 14418 | P95: 0 | Q95: 1252 | R95: 0.061 | S95: 0 | T95: 0
A96: 146 | B96: 3 | C96: 8 | D96: 23 | E96: 4388.9 | F96: 0 | G96: 1932 | H96: 1932 | I96: 1 | J96: 31601 | K96: 2850 | L96: 0 | M96: 14931 | N96: 3000 | O96: 8456 | P96: 0 | Q96: 1079 | R96: 0.053 | S96: 0 | T96: 0
A97: 146 | B97: 3 | C97: 8 | D97: 24 | E97: 4420.1 | F97: 0 | G97: 1932 | H97: 1932 | I97: 1 | J97: 29081 | K97: 2850 | L97: 0 | M97: 14495 | N97: 3000 | O97: 6340 | P97: 0 | Q97: 1514 | R97: 0.074 | S97: 0 | T97: 0
A98: 146 | B98: 3 | C98: 9 | D98: 1 | E98: 3769.8 | F98: 0 | G98: 1932 | H98: 1932 | I98: 1 | J98: 27739 | K98: 2850 | L98: 0 | M98: 13820 | N98: 3000 | O98: 6324 | P98: 0 | Q98: 2190 | R98: 0.107 | S98: 0 | T98: 0
A99: 146 | B99: 3 | C99: 9 | D99: 2 | E99: 2812.7 | F99: 0 | G99: 1932 | H99: 1932 | I99: 1 | J99: 27165 | K99: 2850 | L99: 0 | M99: 14079 | N99: 3000 | O99: 6324 | P99: 124 | Q99: 1930 | R99: 0.094 | S99: 0.04 | T99: 0
A100: 146 | B100: 3 | C100: 9 | D100: 3 | E100: 2384.9 | F100: 0 | G100: 1932 | H100: 1932 | I100: 1 | J100: 26976 | K100: 2850 | L100: 0 | M100: 14163 | N100: 3000 | O100: 6324 | P100: 279 | Q100: 1846 | R100: 0.09 | S100: 0.09 | T100: 0
A101: 146 | B101: 3 | C101: 9 | D101: 4 | E101: 2730.8 | F101: 0 | G101: 1932 | H101: 1932 | I101: 1 | J101: 27260 | K101: 2850 | L101: 0 | M101: 14163 | N101: 3000 | O101: 6324 | P101: 217 | Q101: 1846 | R101: 0.09 | S101: 0.07 | T101: 0
A102: 146 | B102: 3 | C102: 9 | D102: 5 | E102: 3740 | F102: 0 | G102: 1932 | H102: 1932 | I102: 1 | J102: 28300 | K102: 2850 | L102: 0 | M102: 14163 | N102: 3000 | O102: 6324 | P102: 248 | Q102: 1846 | R102: 0.09 | S102: 0.08 | T102: 0
A103: 146 | B103: 3 | C103: 9 | D103: 6 | E103: 4956.2 | F103: 0 | G103: 1932 | H103: 1932 | I103: 1 | J103: 30794 | K103: 2850 | L103: 0 | M103: 14163 | N103: 3000 | O103: 7477 | P103: 372 | Q103: 1846 | R103: 0.09 | S103: 0.12 | T103: 0
A104: 146 | B104: 3 | C104: 9 | D104: 7 | E104: 1998.6 | F104: 0 | G104: 1932 | H104: 1932 | I104: 1 | J104: 34422 | K104: 2850 | L104: 0 | M104: 14163 | N104: 3000 | O104: 14537 | P104: 774 | Q104: 1846 | R104: 0.09 | S104: 0.25 | T104: 0
A105: 146 | B105: 3 | C105: 9 | D105: 8 | E105: 1998.6 | F105: 0 | G105: 1932 | H105: 1932 | I105: 1 | J105: 36816 | K105: 2850 | L105: 0 | M105: 14163 | N105: 3000 | O105: 16838 | P105: 867 | Q105: 1846 | R105: 0.09 | S105: 0.28 | T105: 0
A106: 146 | B106: 3 | C106: 9 | D106: 9 | E106: 1998.6 | F106: 0 | G106: 1932 | H106: 1932 | I106: 1 | J106: 37335 | K106: 2850 | L106: 0 | M106: 14163 | N106: 3000 | O106: 16830 | P106: 1394 | Q106: 1846 | R106: 0.09 | S106: 0.45 | T106: 0
A107: 146 | B107: 3 | C107: 9 | D107: 10 | E107: 1998.6 | F107: 0 | G107: 1932 | H107: 1932 | I107: 1 | J107: 37149 | K107: 2850 | L107: 0 | M107: 14163 | N107: 3000 | O107: 16613 | P107: 1425 | Q107: 1846 | R107: 0.09 | S107: 0.46 | T107: 0
A108: 146 | B108: 3 | C108: 9 | D108: 11 | E108: 1998.6 | F108: 0 | G108: 1932 | H108: 1932 | I108: 1 | J108: 36589 | K108: 2850 | L108: 0 | M108: 14163 | N108: 3000 | O108: 16301 | P108: 1177 | Q108: 1846 | R108: 0.09 | S108: 0.38 | T108: 0
A109: 146 | B109: 3 | C109: 9 | D109: 12 | E109: 1998.6 | F109: 0 | G109: 1932 | H109: 1932 | I109: 1 | J109: 35755 | K109: 2850 | L109: 0 | M109: 14163 | N109: 3000 | O109: 15021 | P109: 1084 | Q109: 1846 | R109: 0.09 | S109: 0.35 | T109: 0
A110: 146 | B110: 3 | C110: 9 | D110: 13 | E110: 1998.6 | F110: 0 | G110: 1932 | H110: 1932 | I110: 1 | J110: 34998 | K110: 2850 | L110: 0 | M110: 14163 | N110: 3000 | O110: 13484 | P110: 1053 | Q110: 1846 | R110: 0.09 | S110: 0.34 | T110: 0
A111: 146 | B111: 3 | C111: 9 | D111: 14 | E111: 2081.2 | F111: 0 | G111: 1932 | H111: 1932 | I111: 1 | J111: 34340 | K111: 2850 | L111: 0 | M111: 14081 | N111: 3000 | O111: 13043 | P111: 836 | Q111: 1929 | R111: 0.094 | S111: 0.27 | T111: 0
A112: 146 | B112: 3 | C112: 9 | D112: 15 | E112: 2289.6 | F112: 0 | G112: 1932 | H112: 1932 | I112: 1 | J112: 33992 | K112: 2850 | L112: 0 | M112: 13872 | N112: 3000 | O112: 12664 | P112: 867 | Q112: 2137 | R112: 0.104 | S112: 0.28 | T112: 0
A113: 146 | B113: 3 | C113: 9 | D113: 16 | E113: 2280.9 | F113: 0 | G113: 1932 | H113: 1932 | I113: 1 | J113: 34481 | K113: 2850 | L113: 0 | M113: 13881 | N113: 3000 | O113: 14072 | P113: 774 | Q113: 2129 | R113: 0.104 | S113: 0.25 | T113: 0
A114: 146 | B114: 3 | C114: 9 | D114: 17 | E114: 2324.1 | F114: 0 | G114: 1932 | H114: 1932 | I114: 1 | J114: 36809 | K114: 2850 | L114: 0 | M114: 13838 | N114: 3000 | O114: 17110 | P114: 589 | Q114: 2172 | R114: 0.106 | S114: 0.19 | T114: 0
A115: 146 | B115: 3 | C115: 9 | D115: 18 | E115: 2341.1 | F115: 0 | G115: 1932 | H115: 1932 | I115: 1 | J115: 38936 | K115: 2850 | L115: 0 | M115: 13821 | N115: 3000 | O115: 19144 | P115: 682 | Q115: 2189 | R115: 0.107 | S115: 0.22 | T115: 0
A116: 146 | B116: 3 | C116: 9 | D116: 19 | E116: 2341.1 | F116: 0 | G116: 1932 | H116: 1932 | I116: 1 | J116: 38698 | K116: 2850 | L116: 0 | M116: 13821 | N116: 3000 | O116: 18906 | P116: 682 | Q116: 2189 | R116: 0.107 | S116: 0.22 | T116: 0
A117: 146 | B117: 3 | C117: 9 | D117: 20 | E117: 2341.1 | F117: 0 | G117: 1932 | H117: 1932 | I117: 1 | J117: 37702 | K117: 2850 | L117: 0 | M117: 13821 | N117: 3000 | O117: 18281 | P117: 310 | Q117: 2189 | R117: 0.107 | S117: 0.1 | T117: 0
A118: 146 | B118: 3 | C118: 9 | D118: 21 | E118: 2451.7 | F118: 0 | G118: 1932 | H118: 1932 | I118: 1 | J118: 36491 | K118: 2850 | L118: 0 | M118: 13710 | N118: 3000 | O118: 17040 | P118: 341 | Q118: 2300 | R118: 0.112 | S118: 0.11 | T118: 0
A119: 146 | B119: 3 | C119: 9 | D119: 22 | E119: 2743.1 | F119: 0 | G119: 1932 | H119: 1932 | I119: 1 | J119: 34676 | K119: 2850 | L119: 0 | M119: 13419 | N119: 3000 | O119: 14809 | P119: 217 | Q119: 2591 | R119: 0.126 | S119: 0.07 | T119: 0
A120: 146 | B120: 3 | C120: 9 | D120: 23 | E120: 5700.7 | F120: 0 | G120: 1932 | H120: 1932 | I120: 1 | J120: 31964 | K120: 2850 | L120: 0 | M120: 13419 | N120: 3000 | O120: 8896 | P120: 124 | Q120: 2591 | R120: 0.126 | S120: 0.04 | T120: 0
A121: 146 | B121: 3 | C121: 9 | D121: 24 | E121: 5700.7 | F121: 0 | G121: 1932 | H121: 1932 | I121: 1 | J121: 29406 | K121: 2850 | L121: 0 | M121: 13419 | N121: 3000 | O121: 6368 | P121: 93 | Q121: 2591 | R121: 0.126 | S121: 0.03 | T121: 0
A122: 146 | B122: 3 | C122: 10 | D122: 1 | E122: 3731.4 | F122: 0 | G122: 1932 | H122: 1932 | I122: 1 | J122: 27520 | K122: 2850 | L122: 0 | M122: 13516 | N122: 3000 | O122: 6324 | P122: 124 | Q122: 2494 | R122: 0.122 | S122: 0.04 | T122: 0
A123: 146 | B123: 3 | C123: 10 | D123: 2 | E123: 2890.4 | F123: 0 | G123: 1932 | H123: 1932 | I123: 1 | J123: 26947 | K123: 2850 | L123: 0 | M123: 13598 | N123: 3000 | O123: 6324 | P123: 310 | Q123: 2412 | R123: 0.118 | S123: 0.1 | T123: 0
A124: 146 | B124: 3 | C124: 10 | D124: 3 | E124: 2459.5 | F124: 0 | G124: 1932 | H124: 1932 | I124: 1 | J124: 26764 | K124: 2850 | L124: 0 | M124: 13598 | N124: 3000 | O124: 6324 | P124: 558 | Q124: 2412 | R124: 0.118 | S124: 0.18 | T124: 0
A125: 146 | B125: 3 | C125: 10 | D125: 4 | E125: 2714.6 | F125: 0 | G125: 1932 | H125: 1932 | I125: 1 | J125: 27050 | K125: 2850 | L125: 0 | M125: 13598 | N125: 3000 | O125: 6324 | P125: 589 | Q125: 2412 | R125: 0.118 | S125: 0.19 | T125: 0
A126: 146 | B126: 3 | C126: 10 | D126: 5 | E126: 3390 | F126: 0 | G126: 1932 | H126: 1932 | I126: 1 | J126: 28097 | K126: 2850 | L126: 0 | M126: 13598 | N126: 3000 | O126: 6324 | P126: 960 | Q126: 2412 | R126: 0.118 | S126: 0.31 | T126: 0
A127: 146 | B127: 3 | C127: 10 | D127: 6 | E127: 4725.4 | F127: 0 | G127: 1932 | H127: 1932 | I127: 1 | J127: 30616 | K127: 2850 | L127: 0 | M127: 13598 | N127: 3000 | O127: 7352 | P127: 1115 | Q127: 2412 | R127: 0.118 | S127: 0.36 | T127: 0
A128: 146 | B128: 3 | C128: 10 | D128: 7 | E128: 1767.7 | F128: 0 | G128: 1932 | H128: 1932 | I128: 1 | J128: 34269 | K128: 2850 | L128: 0 | M128: 13598 | N128: 3000 | O128: 14653 | P128: 1301 | Q128: 2412 | R128: 0.118 | S128: 0.42 | T128: 0
A129: 146 | B129: 3 | C129: 10 | D129: 8 | E129: 1767.7 | F129: 0 | G129: 1932 | H129: 1932 | I129: 1 | J129: 36631 | K129: 2850 | L129: 0 | M129: 13598 | N129: 3000 | O129: 16582 | P129: 1735 | Q129: 2412 | R129: 0.118 | S129: 0.56 | T129: 0
A130: 146 | B130: 3 | C130: 10 | D130: 9 | E130: 1144.2 | F130: 0 | G130: 1932 | H130: 1932 | I130: 1 | J130: 37083 | K130: 2850 | L130: 0 | M130: 14221 | N130: 3000 | O130: 16538 | P130: 2231 | Q130: 1788 | R130: 0.087 | S130: 0.72 | T130: 0
A131: 146 | B131: 3 | C131: 10 | D131: 10 | E131: 1137.7 | F131: 0 | G131: 1932 | H131: 1932 | I131: 1 | J131: 36862 | K131: 2850 | L131: 0 | M131: 14228 | N131: 3000 | O131: 15914 | P131: 2633 | Q131: 1782 | R131: 0.087 | S131: 0.85 | T131: 0
A132: 146 | B132: 3 | C132: 10 | D132: 11 | E132: 1137.7 | F132: 0 | G132: 1932 | H132: 1932 | I132: 1 | J132: 36303 | K132: 2850 | L132: 0 | M132: 14228 | N132: 3000 | O132: 15201 | P132: 2788 | Q132: 1782 | R132: 0.087 | S132: 0.9 | T132: 0
A133: 146 | B133: 3 | C133: 10 | D133: 12 | E133: 1137.7 | F133: 0 | G133: 1932 | H133: 1932 | I133: 1 | J133: 35484 | K133: 2850 | L133: 0 | M133: 14228 | N133: 3000 | O133: 13842 | P133: 2788 | Q133: 1782 | R133: 0.087 | S133: 0.9 | T133: 0
A134: 146 | B134: 3 | C134: 10 | D134: 13 | E134: 1137.7 | F134: 0 | G134: 1932 | H134: 1932 | I134: 1 | J134: 34755 | K134: 2850 | L134: 0 | M134: 14228 | N134: 3000 | O134: 12427 | P134: 2664 | Q134: 1782 | R134: 0.087 | S134: 0.86 | T134: 0
A135: 146 | B135: 3 | C135: 10 | D135: 14 | E135: 1137.7 | F135: 0 | G135: 1932 | H135: 1932 | I135: 1 | J135: 34119 | K135: 2850 | L135: 0 | M135: 14228 | N135: 3000 | O135: 12038 | P135: 2416 | Q135: 1782 | R135: 0.087 | S135: 0.78 | T135: 0
A136: 146 | B136: 3 | C136: 10 | D136: 15 | E136: 1144.1 | F136: 0 | G136: 1932 | H136: 1932 | I136: 1 | J136: 33784 | K136: 2850 | L136: 0 | M136: 14221 | N136: 3000 | O136: 12137 | P136: 1983 | Q136: 1788 | R136: 0.087 | S136: 0.64 | T136: 0
A137: 146 | B137: 3 | C137: 10 | D137: 16 | E137: 1191.7 | F137: 0 | G137: 1932 | H137: 1932 | I137: 1 | J137: 34272 | K137: 2850 | L137: 0 | M137: 14174 | N137: 3000 | O137: 13916 | P137: 1518 | Q137: 1836 | R137: 0.09 | S137: 0.49 | T137: 0
A138: 146 | B138: 3 | C138: 10 | D138: 17 | E138: 1191.7 | F138: 0 | G138: 1932 | H138: 1932 | I138: 1 | J138: 36590 | K138: 2850 | L138: 0 | M138: 14174 | N138: 3000 | O138: 17316 | P138: 960 | Q138: 1836 | R138: 0.09 | S138: 0.31 | T138: 0
A139: 146 | B139: 3 | C139: 10 | D139: 18 | E139: 1191.7 | F139: 0 | G139: 1932 | H139: 1932 | I139: 1 | J139: 38729 | K139: 2850 | L139: 0 | M139: 14174 | N139: 3000 | O139: 19733 | P139: 682 | Q139: 1836 | R139: 0.09 | S139: 0.22 | T139: 0
A140: 146 | B140: 3 | C140: 10 | D140: 19 | E140: 1191.7 | F140: 0 | G140: 1932 | H140: 1932 | I140: 1 | J140: 38519 | K140: 2850 | L140: 0 | M140: 14174 | N140: 3000 | O140: 19771 | P140: 434 | Q140: 1836 | R140: 0.09 | S140: 0.14 | T140: 0
A141: 146 | B141: 3 | C141: 10 | D141: 20 | E141: 1191.7 | F141: 0 | G141: 1932 | H141: 1932 | I141: 1 | J141: 37538 | K141: 2850 | L141: 0 | M141: 14174 | N141: 3000 | O141: 19007 | P141: 217 | Q141: 1836 | R141: 0.09 | S141: 0.07 | T141: 0
A142: 146 | B142: 3 | C142: 10 | D142: 21 | E142: 1191.7 | F142: 0 | G142: 1932 | H142: 1932 | I142: 1 | J142: 36333 | K142: 2850 | L142: 0 | M142: 14174 | N142: 3000 | O142: 17895 | P142: 124 | Q142: 1836 | R142: 0.09 | S142: 0.04 | T142: 0
A143: 146 | B143: 3 | C143: 10 | D143: 22 | E143: 1191.7 | F143: 0 | G143: 1932 | H143: 1932 | I143: 1 | J143: 34504 | K143: 2850 | L143: 0 | M143: 14174 | N143: 3000 | O143: 15558 | P143: 93 | Q143: 1836 | R143: 0.09 | S143: 0.03 | T143: 0
A144: 146 | B144: 3 | C144: 10 | D144: 23 | E144: 4149.4 | F144: 0 | G144: 1932 | H144: 1932 | I144: 1 | J144: 31758 | K144: 2850 | L144: 0 | M144: 14174 | N144: 3000 | O144: 9486 | P144: 124 | Q144: 1836 | R144: 0.09 | S144: 0.04 | T144: 0
A145: 146 | B145: 3 | C145: 10 | D145: 24 | E145: 4149.4 | F145: 0 | G145: 1932 | H145: 1932 | I145: 1 | J145: 29187 | K145: 2850 | L145: 0 | M145: 14174 | N145: 3000 | O145: 6821 | P145: 217 | Q145: 1836 | R145: 0.09 | S145: 0.07 | T145: 0
A146: 146 | B146: 3 | C146: 11 | D146: 1 | E146: 2544.8 | F146: 0 | G146: 1932 | H146: 1932 | I146: 1 | J146: 27274 | K146: 2850 | L146: 0 | M146: 14174 | N146: 3000 | O146: 6297 | P146: 434 | Q146: 1836 | R146: 0.09 | S146: 0.14 | T146: 0
A147: 146 | B147: 3 | C147: 11 | D147: 2 | E147: 1554.1 | F147: 0 | G147: 1932 | H147: 1932 | I147: 1 | J147: 26686 | K147: 2850 | L147: 0 | M147: 14174 | N147: 3000 | O147: 6297 | P147: 836 | Q147: 1836 | R147: 0.09 | S147: 0.27 | T147: 0
A148: 146 | B148: 3 | C148: 11 | D148: 3 | E148: 257.8 | F148: 0 | G148: 1932 | H148: 1932 | I148: 1 | J148: 26514 | K148: 2850 | L148: 0 | M148: 14616 | N148: 3000 | O148: 6297 | P148: 1518 | Q148: 1393 | R148: 0.068 | S148: 0.49 | T148: 0
A149: 146 | B149: 3 | C149: 11 | D149: 5 | E149: 896.9 | F149: 0 | G149: 1932 | H149: 1932 | I149: 1 | J149: 27921 | K149: 2850 | L149: 0 | M149: 15106 | N149: 3000 | O149: 6297 | P149: 1797 | Q149: 904 | R149: 0.044 | S149: 0.58 | T149: 0
A150: 146 | B150: 3 | C150: 11 | D150: 6 | E150: 2860.1 | F150: 0 | G150: 1932 | H150: 1932 | I150: 1 | J150: 30575 | K150: 2850 | L150: 0 | M150: 15106 | N150: 3000 | O150: 6801 | P150: 1983 | Q150: 904 | R150: 0.044 | S150: 0.64 | T150: 0
A151: 146 | B151: 3 | C151: 11 | D151: 14 | E151: 432.4 | F151: 0 | G151: 1932 | H151: 1932 | I151: 1 | J151: 33982 | K151: 2850 | L151: 0 | M151: 14576 | N151: 3000 | O151: 12630 | P151: 2045 | Q151: 1434 | R151: 0.07 | S151: 0.66 | T151: 0
A152: 146 | B152: 3 | C152: 11 | D152: 15 | E152: 432.4 | F152: 0 | G152: 1932 | H152: 1932 | I152: 1 | J152: 33652 | K152: 2850 | L152: 0 | M152: 14576 | N152: 3000 | O152: 12300 | P152: 2045 | Q152: 1434 | R152: 0.07 | S152: 0.66 | T152: 0
A153: 146 | B153: 3 | C153: 11 | D153: 16 | E153: 432.4 | F153: 0 | G153: 1932 | H153: 1932 | I153: 1 | J153: 34129 | K153: 2850 | L153: 0 | M153: 14576 | N153: 3000 | O153: 13727 | P153: 1921 | Q153: 1434 | R153: 0.07 | S153: 0.62 | T153: 0
A154: 146 | B154: 3 | C154: 11 | D154: 17 | E154: 432.4 | F154: 0 | G154: 1932 | H154: 1932 | I154: 1 | J154: 36402 | K154: 2850 | L154: 0 | M154: 14576 | N154: 3000 | O154: 17051 | P154: 1394 | Q154: 1434 | R154: 0.07 | S154: 0.45 | T154: 0
A155: 146 | B155: 3 | C155: 11 | D155: 18 | E155: 432.4 | F155: 0 | G155: 1932 | H155: 1932 | I155: 1 | J155: 38514 | K155: 2850 | L155: 0 | M155: 14576 | N155: 3000 | O155: 19566 | P155: 991 | Q155: 1434 | R155: 0.07 | S155: 0.32 | T155: 0
A156: 146 | B156: 3 | C156: 11 | D156: 19 | E156: 432.4 | F156: 0 | G156: 1932 | H156: 1932 | I156: 1 | J156: 38295 | K156: 2850 | L156: 0 | M156: 14576 | N156: 3000 | O156: 19780 | P156: 558 | Q156: 1434 | R156: 0.07 | S156: 0.18 | T156: 0
A157: 146 | B157: 3 | C157: 11 | D157: 20 | E157: 432.4 | F157: 0 | G157: 1932 | H157: 1932 | I157: 1 | J157: 37293 | K157: 2850 | L157: 0 | M157: 14576 | N157: 3000 | O157: 18840 | P157: 496 | Q157: 1434 | R157: 0.07 | S157: 0.16 | T157: 0
A158: 146 | B158: 3 | C158: 11 | D158: 23 | E158: 2860.1 | F158: 0 | G158: 1932 | H158: 1932 | I158: 1 | J158: 31528 | K158: 2850 | L158: 0 | M158: 15106 | N158: 3000 | O158: 9427 | P158: 310 | Q158: 904 | R158: 0.044 | S158: 0.1 | T158: 0
A159: 146 | B159: 3 | C159: 11 | D159: 24 | E159: 2860.1 | F159: 0 | G159: 1932 | H159: 1932 | I159: 1 | J159: 28963 | K159: 2850 | L159: 0 | M159: 15106 | N159: 3000 | O159: 6800 | P159: 372 | Q159: 904 | R159: 0.044 | S159: 0.12 | T159: 0 | U159: Dec | V159: =SUM(E90:E159) -> 150411.2 | W159: =MAX(E90:E159) -> 5700.7
A160: 13 | B160: 4 | C160: 5 | D160: 5 | E160: 882.3 | F160: 0 | G160: 1941 | H160: 1941 | I160: 1 | J160: 25410 | K160: 2850 | L160: 0 | M160: 14598 | N160: 3000 | O160: 5912 | P160: 62 | Q160: 1422 | R160: 0.069 | S160: 0.02 | T160: 0
A161: 13 | B161: 4 | C161: 5 | D161: 6 | E161: 949.6 | F161: 0 | G161: 1941 | H161: 1941 | I161: 1 | J161: 27643 | K161: 2850 | L161: 0 | M161: 14598 | N161: 3000 | O161: 8077 | P161: 62 | Q161: 1422 | R161: 0.069 | S161: 0.02 | T161: 0
A162: 79 | B162: 4 | C162: 8 | D162: 7 | E162: 2223.8 | F162: 0 | G162: 1936 | H162: 1936 | I162: 2 | J162: 35228 | K162: 2850 | L162: 0 | M162: 14139 | N162: 3000 | O162: 15489 | P162: 403 | Q162: 1880 | R162: 0.092 | S162: 0.13 | T162: 0 | U162: Jan | V162: =SUM(E160:E161) -> 1831.9 | W162: =MAX(E160:E161) -> 949.6
A163: 79 | B163: 4 | C163: 8 | D163: 8 | E163: 2622.3 | F163: 0 | G163: 1936 | H163: 1936 | I163: 2 | J163: 37735 | K163: 2850 | L163: 0 | M163: 14139 | N163: 3000 | O163: 17598 | P163: 403 | Q163: 1880 | R163: 0.092 | S163: 0.13 | T163: 0
A164: 79 | B164: 4 | C164: 8 | D164: 9 | E164: 2622.4 | F164: 0 | G164: 1936 | H164: 1936 | I164: 2 | J164: 38109 | K164: 2850 | L164: 0 | M164: 14139 | N164: 3000 | O164: 17941 | P164: 434 | Q164: 1881 | R164: 0.092 | S164: 0.14 | T164: 0
A165: 79 | B165: 4 | C165: 8 | D165: 10 | E165: 2676.8 | F165: 0 | G165: 1936 | H165: 1936 | I165: 2 | J165: 37787 | K165: 2850 | L165: 0 | M165: 14085 | N165: 3000 | O165: 17650 | P165: 403 | Q165: 1935 | R165: 0.094 | S165: 0.13 | T165: 0
A166: 79 | B166: 4 | C166: 8 | D166: 11 | E166: 2681 | F166: 0 | G166: 1936 | H166: 1936 | I166: 2 | J166: 37151 | K166: 2850 | L166: 0 | M166: 14081 | N166: 3000 | O166: 16952 | P166: 465 | Q166: 1939 | R166: 0.095 | S166: 0.15 | T166: 0
A167: 79 | B167: 4 | C167: 8 | D167: 12 | E167: 2681 | F167: 0 | G167: 1936 | H167: 1936 | I167: 2 | J167: 36245 | K167: 2850 | L167: 0 | M167: 14081 | N167: 3000 | O167: 15538 | P167: 434 | Q167: 1939 | R167: 0.095 | S167: 0.14 | T167: 0
A168: 79 | B168: 4 | C168: 8 | D168: 13 | E168: 2681 | F168: 0 | G168: 1936 | H168: 1936 | I168: 2 | J168: 35434 | K168: 2850 | L168: 0 | M168: 14081 | N168: 3000 | O168: 13854 | P168: 496 | Q168: 1939 | R168: 0.095 | S168: 0.16 | T168: 0
A169: 79 | B169: 4 | C169: 8 | D169: 14 | E169: 2681 | F169: 0 | G169: 1936 | H169: 1936 | I169: 2 | J169: 34723 | K169: 2850 | L169: 0 | M169: 14081 | N169: 3000 | O169: 13143 | P169: 496 | Q169: 1939 | R169: 0.095 | S169: 0.16 | T169: 0
A170: 79 | B170: 4 | C170: 8 | D170: 15 | E170: 2681 | F170: 0 | G170: 1936 | H170: 1936 | I170: 2 | J170: 34277 | K170: 2850 | L170: 0 | M170: 14081 | N170: 3000 | O170: 12914 | P170: 279 | Q170: 1939 | R170: 0.095 | S170: 0.09 | T170: 0
A171: 79 | B171: 4 | C171: 8 | D171: 16 | E171: 2681 | F171: 0 | G171: 1936 | H171: 1936 | I171: 2 | J171: 34605 | K171: 2850 | L171: 0 | M171: 14081 | N171: 3000 | O171: 14099 | P171: 248 | Q171: 1939 | R171: 0.095 | S171: 0.08 | T171: 0
A172: 79 | B172: 4 | C172: 8 | D172: 17 | E172: 2681 | F172: 0 | G172: 1936 | H172: 1936 | I172: 2 | J172: 36525 | K172: 2850 | L172: 0 | M172: 14081 | N172: 3000 | O172: 16233 | P172: 558 | Q172: 1939 | R172: 0.095 | S172: 0.18 | T172: 0
A173: 79 | B173: 4 | C173: 8 | D173: 18 | E173: 2681 | F173: 0 | G173: 1936 | H173: 1936 | I173: 2 | J173: 38965 | K173: 2850 | L173: 0 | M173: 14081 | N173: 3000 | O173: 18487 | P173: 744 | Q173: 1939 | R173: 0.095 | S173: 0.24 | T173: 0
A174: 79 | B174: 4 | C174: 8 | D174: 19 | E174: 2681 | F174: 0 | G174: 1936 | H174: 1936 | I174: 2 | J174: 39257 | K174: 2850 | L174: 0 | M174: 14081 | N174: 3000 | O174: 18531 | P174: 991 | Q174: 1939 | R174: 0.095 | S174: 0.32 | T174: 0
A175: 79 | B175: 4 | C175: 8 | D175: 20 | E175: 2681 | F175: 0 | G175: 1936 | H175: 1936 | I175: 2 | J175: 38230 | K175: 2850 | L175: 0 | M175: 14081 | N175: 3000 | O175: 17132 | P175: 1363 | Q175: 1939 | R175: 0.095 | S175: 0.44 | T175: 0
A176: 79 | B176: 4 | C176: 8 | D176: 21 | E176: 2681 | F176: 0 | G176: 1936 | H176: 1936 | I176: 2 | J176: 36877 | K176: 2850 | L176: 0 | M176: 14081 | N176: 3000 | O176: 15656 | P176: 1487 | Q176: 1939 | R176: 0.095 | S176: 0.48 | T176: 0
A177: 79 | B177: 4 | C177: 8 | D177: 22 | E177: 2681 | F177: 0 | G177: 1936 | H177: 1936 | I177: 2 | J177: 35006 | K177: 2850 | L177: 0 | M177: 14081 | N177: 3000 | O177: 13121 | P177: 1611 | Q177: 1939 | R177: 0.095 | S177: 0.52 | T177: 0
A178: 79 | B178: 4 | C178: 8 | D178: 23 | E178: 5613.9 | F178: 0 | G178: 1936 | H178: 1936 | I178: 2 | J178: 32262 | K178: 2850 | L178: 0 | M178: 14081 | N178: 3000 | O178: 7062 | P178: 1549 | Q178: 1939 | R178: 0.095 | S178: 0.5 | T178: 0
A179: 79 | B179: 4 | C179: 8 | D179: 24 | E179: 4082.8 | F179: 0 | G179: 1936 | H179: 1936 | I179: 2 | J179: 29705 | K179: 2850 | L179: 0 | M179: 14081 | N179: 3000 | O179: 5912 | P179: 1673 | Q179: 1939 | R179: 0.095 | S179: 0.54 | T179: 0
A180: 79 | B180: 4 | C180: 9 | D180: 4 | E180: 70 | F180: 0 | G180: 1936 | H180: 1936 | I180: 2 | J180: 24768 | K180: 2850 | L180: 0 | M180: 13560 | N180: 3000 | O180: 5912 | P180: 1270 | Q180: 2460 | R180: 0.12 | S180: 0.41 | T180: 0
A181: 79 | B181: 4 | C181: 9 | D181: 5 | E181: 1044.1 | F181: 0 | G181: 1936 | H181: 1936 | I181: 2 | J181: 25742 | K181: 2850 | L181: 0 | M181: 13560 | N181: 3000 | O181: 5912 | P181: 1270 | Q181: 2460 | R181: 0.12 | S181: 0.41 | T181: 0
A182: 79 | B182: 4 | C182: 9 | D182: 6 | E182: 2298.6 | F182: 0 | G182: 1936 | H182: 1936 | I182: 2 | J182: 28181 | K182: 2850 | L182: 0 | M182: 13560 | N182: 3000 | O182: 7313 | P182: 1053 | Q182: 2460 | R182: 0.12 | S182: 0.34 | T182: 0 | U182: Jan | V182: =SUM(E162:E182) -> 55426.7 | W182: =MAX(E162:E182) -> 5613.9
A183: 84 | B183: 4 | C183: 5 | D183: 1 | E183: 1015.4 | F183: 0 | G183: 1941 | H183: 1941 | I183: 1 | J183: 24979 | K183: 1244 | L183: 0 | M183: 13180 | N183: 3000 | O183: 6424 | P183: 403 | Q183: 2839 | R183: 0.138 | S183: 0.13 | T183: 0
A184: 84 | B184: 4 | C184: 5 | D184: 2 | E184: 1166.6 | F184: 0 | G184: 1941 | H184: 1941 | I184: 1 | J184: 24432 | K184: 2850 | L184: 0 | M184: 13180 | N184: 3000 | O184: 5912 | P184: 217 | Q184: 2839 | R184: 0.138 | S184: 0.07 | T184: 0
A185: 84 | B185: 4 | C185: 5 | D185: 3 | E185: 1005 | F185: 0 | G185: 1941 | H185: 1941 | I185: 1 | J185: 24279 | K185: 2850 | L185: 0 | M185: 13251 | N185: 3000 | O185: 5912 | P185: 155 | Q185: 2769 | R185: 0.135 | S185: 0.05 | T185: 0
A186: 84 | B186: 4 | C186: 5 | D186: 4 | E186: 837.5 | F186: 0 | G186: 1941 | H186: 1941 | I186: 1 | J186: 24524 | K186: 2850 | L186: 0 | M186: 13694 | N186: 3000 | O186: 5912 | P186: 124 | Q186: 2325 | R186: 0.113 | S186: 0.04 | T186: 0
A187: 84 | B187: 4 | C187: 5 | D187: 5 | E187: 1785.6 | F187: 0 | G187: 1941 | H187: 1941 | I187: 1 | J187: 25410 | K187: 2850 | L187: 0 | M187: 13694 | N187: 3000 | O187: 5912 | P187: 62 | Q187: 2325 | R187: 0.113 | S187: 0.02 | T187: 0
A188: 84 | B188: 4 | C188: 5 | D188: 6 | E188: 1885.8 | F188: 0 | G188: 1941 | H188: 1941 | I188: 1 | J188: 27643 | K188: 2850 | L188: 0 | M188: 13694 | N188: 3000 | O188: 8044 | P188: 62 | Q188: 2325 | R188: 0.113 | S188: 0.02 | T188: 0 | U188: Jan | V188: =SUM(E183:E188) -> 7695.9 | W188: =MAX(E183:E188) -> 1885.8
A189: 12 | B189: 11 | C189: 7 | D189: 7 | E189: 847.1 | F189: 0 | G189: 1940 | H189: 1940 | I189: 1 | J189: 20920 | K189: 2850 | L189: 0 | M189: 10506 | N189: 0 | O189: 10335 | P189: 248 | Q189: 2977 | R189: 0.166 | S189: 0.08 | T189: 0
A190: 12 | B190: 11 | C190: 7 | D190: 8 | E190: 847.1 | F190: 0 | G190: 1940 | H190: 1940 | I190: 1 | J190: 22492 | K190: 1329 | L190: 0 | M190: 10506 | N190: 0 | O190: 11876 | P190: 279 | Q190: 2977 | R190: 0.166 | S190: 0.09 | T190: 0
A191: 12 | B191: 11 | C191: 7 | D191: 9 | E191: 971.9 | F191: 0 | G191: 1940 | H191: 1940 | I191: 1 | J191: 23710 | K191: 1389 | L191: 0 | M191: 10381 | N191: 0 | O191: 13249 | P191: 124 | Q191: 3102 | R191: 0.173 | S191: 0.04 | T191: 0
A192: 12 | B192: 11 | C192: 7 | D192: 10 | E192: 910.2 | F192: 0 | G192: 1940 | H192: 1940 | I192: 1 | J192: 24632 | K192: 1443 | L192: 0 | M192: 10443 | N192: 0 | O192: 14233 | P192: 62 | Q192: 3041 | R192: 0.169 | S192: 0.02 | T192: 0
A193: 12 | B193: 11 | C193: 7 | D193: 11 | E193: 906.6 | F193: 0 | G193: 1940 | H193: 1940 | I193: 1 | J193: 25285 | K193: 1477 | L193: 0 | M193: 10446 | N193: 0 | O193: 14917 | P193: 31 | Q193: 3037 | R193: 0.169 | S193: 0.01 | T193: 0
A194: 12 | B194: 11 | C194: 7 | D194: 12 | E194: 906.6 | F194: 0 | G194: 1940 | H194: 1940 | I194: 1 | J194: 25691 | K194: 1470 | L194: 0 | M194: 10446 | N194: 0 | O194: 14783 | P194: 31 | Q194: 3037 | R194: 0.169 | S194: 0.01 | T194: 0
A195: 12 | B195: 11 | C195: 7 | D195: 13 | E195: 906.6 | F195: 0 | G195: 1940 | H195: 1940 | I195: 1 | J195: 26004 | K195: 1447 | L195: 0 | M195: 10446 | N195: 0 | O195: 14316 | P195: 0 | Q195: 3037 | R195: 0.169 | S195: 0 | T195: 0
A196: 12 | B196: 11 | C196: 7 | D196: 14 | E196: 970.1 | F196: 0 | G196: 1940 | H196: 1940 | I196: 1 | J196: 26220 | K196: 1453 | L196: 0 | M196: 10383 | N196: 0 | O196: 14532 | P196: 0 | Q196: 3100 | R196: 0.172 | S196: 0 | T196: 0
A197: 12 | B197: 11 | C197: 7 | D197: 15 | E197: 992.9 | F197: 0 | G197: 1940 | H197: 1940 | I197: 1 | J197: 26350 | K197: 1457 | L197: 0 | M197: 10360 | N197: 0 | O197: 14631 | P197: 31 | Q197: 3123 | R197: 0.174 | S197: 0.01 | T197: 0
A198: 12 | B198: 11 | C198: 7 | D198: 16 | E198: 933.5 | F198: 0 | G198: 1940 | H198: 1940 | I198: 1 | J198: 26442 | K198: 1507 | L198: 0 | M198: 10419 | N198: 0 | O198: 15549 | P198: 31 | Q198: 3064 | R198: 0.17 | S198: 0.01 | T198: 0
A199: 12 | B199: 11 | C199: 7 | D199: 17 | E199: 933.5 | F199: 0 | G199: 1940 | H199: 1940 | I199: 1 | J199: 26541 | K199: 1540 | L199: 0 | M199: 10419 | N199: 0 | O199: 16204 | P199: 0 | Q199: 3064 | R199: 0.17 | S199: 0 | T199: 0
A200: 12 | B200: 11 | C200: 7 | D200: 18 | E200: 1166.5 | F200: 0 | G200: 1940 | H200: 1940 | I200: 1 | J200: 26392 | K200: 1516 | L200: 0 | M200: 10186 | N200: 0 | O200: 16055 | P200: 0 | Q200: 3297 | R200: 0.183 | S200: 0 | T200: 0
A201: 12 | B201: 11 | C201: 7 | D201: 19 | E201: 1222.5 | F201: 0 | G201: 1940 | H201: 1940 | I201: 1 | J201: 26053 | K201: 1495 | L201: 0 | M201: 10130 | N201: 0 | O201: 15716 | P201: 0 | Q201: 3353 | R201: 0.186 | S201: 0 | T201: 0
... 184 more rows
